Workbook

Sheet Instructions
B2: Show summer times as | C2: BST
B49: Version Control: | C49: Ver | D49: Date | E49: Change | F49: Author / Contributor
C51: 1.00 | D51: 01/03/2010 | E51: Initial Release | F51: P.Orr
C52: 1.01 | D52: 26/04/2010 | E52: Add BST view option, and Liverpool and Dover times. | F52: P. Orr / N. Hackney
C53: 1.02 | D53: 12/01/2011 | E53: 2011 data inserted | F53: P.Orr
C54: 1.03 | D54: 29/10/2010 | E54: 2012 data inserted | F54: P.Orr
C55: 1.04 | D55: 09/03/2012 | E55: Victoria Dock gate operation times added | F55: P.Orr
C56: 1.05 | D56: 2012-02-03 | E56: 2013 data inserted REPLACED with 2014 data 09/02/2014 | F56: P. Orr

Sheet 4 day view
D1: 10 | E1: 11 | F1: 12 | G1: 13 | H1: 14 | I1: 15 | J1: 16 | K1: 17 | L1: 18 | M1: 19 | N1: 20 | O1: 21 | P1: 22 | Q1: 23 | R1: 24 | S1: 25
A2: =MATCH(B3,Tides!D11:D1420,0) -> 523 | B2: 9 | C2: 10 | D2: =$A$2+D1 -> 533 | E2: 534 | F2: 535 | G2: 536 | H2: 537 | I2: 538 | J2: 539 | K2: 540 | L2: 541 | M2: 542 | N2: 543 | O2: 544 | P2: 545 | Q2: 546 | R2: 547 | S2: 548
A3: 5 | B3: =TODAY() + (5 - WEEKDAY(TODAY(), 2)) + C3 - 366 -> 2020-05-15 | C3: 1905-01-01 | D3: =INDIRECT("'Tides'!"&ADDRESS(D$2,$A3)) -> 2020-05-15 | E3: Fri | G3: 2020-05-16 | H3: Sat | K3: 2020-05-17 | L3: Sun | O3: 2020-05-18 | P3: Mon | S3: 2020-05-19
A4: 3 | D4: 2020-05-15T04:17:00 | E4: 2020-05-15T10:51:00 | F4: 2020-05-15T17:25:00 | G4: 2020-05-15T23:23:00 | H4: 2020-05-16T05:36:00 | I4: 2020-05-16T12:07:00 | J4: 2020-05-16T18:38:00 | K4: 2020-05-17T00:34:00 | L4: 2020-05-17T06:44:00 | M4: 2020-05-17T13:07:00 | N4: 2020-05-17T19:32:00 | O4: 2020-05-18T01:28:00 | P4: 2020-05-18T07:37:00 | Q4: 2020-05-18T13:52:00 | R4: 2020-05-18T20:14:00 | S4: 2020-05-19T02:11:00
A5: 13 | B5: =IF(Instructions!C2="BST","All Times Local","All Times UTC") -> All Times Local | C5: =INDIRECT("'Tides'!"&ADDRESS(C$2,$A5)) -> State | D5: HW | E5: LW | F5: HW | G5: LW | H5: HW | I5: LW | J5: HW | K5: LW | L5: HW | M5: LW | N5: HW | O5: LW | P5: HW | Q5: LW | R5: HW | S5: LW
A6: 11 | B6: =INDIRECT("'Tides'!"&ADDRESS(B$2,$A6)) -> HOLYHEAD | C6: Time | D6: 42504.22014 | E6: 42504.49375 | F6: 42504.76736 | G6: 42505.01597 | H6: 42505.275 | I6: 42505.54653 | J6: 42505.81806 | K6: 42506.06528 | L6: 42506.32222 | M6: 42506.58819 | N6: 42506.85556 | O6: 42507.10278 | P6: 42507.35903 | Q6: 42507.61944 | R6: 42507.88472 | S6: 42508.13264
A7: 12 | B7: =INDIRECT("'Tides 2010'!"&ADDRESS(B$2,$A7)) ->  | C7: Ht | D7: 4.53 | E7: 1.89 | F7: 4.25 | G7: 2.28 | H7: 4.5 | I7: 1.85 | J7: 4.36 | K7: 2.15 | L7: 4.61 | M7: 1.69 | N7: 4.54 | O7: 1.93 | P7: 4.78 | Q7: 1.51 | R7: 4.74 | S7: 1.7
A8: 19 | B8: =INDIRECT("'Tides'!"&ADDRESS(B$2,$A8)) -> Beaumaris | C8: Time | D8: 42504.23006 | E8: 42504.5184 | F8: 42504.77532 | G8: 42505.04117 | H8: 42505.28264 | I8: 42505.57342 | J8: 42505.8261 | K8: 42506.09321 | L8: 42506.33044 | M8: 42506.6174 | N8: 42506.86516 | O8: 42507.13279 | P8: 42507.36878 | Q8: 42507.65039 | R8: 42507.89554 | S8: 42508.16431
A9: 20 | B9: =INDIRECT("'Tides 2010'!"&ADDRESS(B$2,$A9)) ->  | C9: Ht | D9: 6.055652174 | E9: 2.33129771 | F9: 5.666086957 | G9: 2.83740458 | H9: 6.013913043 | I9: 2.279389313 | J9: 5.819130435 | K9: 2.66870229 | L9: 6.166956522 | M9: 2.071755725 | N9: 6.069565217 | O9: 2.383206107 | P9: 6.403478261 | Q9: 1.838167939 | R9: 6.347826087 | S9: 2.084732824
A10: 21 | B10: =INDIRECT("'Tides'!"&ADDRESS(B$2,$A10)) -> SLACK | C10: Time | D10: 42504.29604 | E10: 42504.58438 | F10: 42504.84129 | G10: 42505.10714 | H10: 42505.34861 | I10: 42505.63939 | J10: 42505.89207 | K10: 42506.15918 | L10: 42506.39641 | M10: 42506.68337 | N10: 42506.93113 | O10: 42507.19877 | P10: 42507.43475 | Q10: 42507.71636 | R10: 42507.96152 | S10: 42508.23029
A11: 22 | B11: =INDIRECT("'Tides'!"&ADDRESS(B$2,$A11)) -> Menai Bridge | C11: Time | D11: 42504.23106 | E11: 42504.51762 | F11: 42504.77566 | G11: 42505.03917 | H11: 42505.28287 | I11: 42505.5676 | J11: 42505.82647 | K11: 42506.08505 | L11: 42506.33086 | M11: 42506.60638 | N11: 42506.86605 | O11: 42507.11995 | P11: 42507.36971 | Q11: 42507.63546 | R11: 42507.89684 | S11: 42508.14773
A12: 23 | B12: =INDIRECT("'Tides 2010'!"&ADDRESS(B$2,$A12)) ->  | C12: Ht | D12: 5.852173913 | E12: 2.141221374 | F12: 5.486956522 | G12: 2.617557252 | H12: 5.813043478 | I12: 2.092366412 | J12: 5.630434783 | K12: 2.458778626 | L12: 5.956521739 | M12: 1.896946565 | N12: 5.865217391 | O12: 2.190076336 | P12: 6.17826087 | Q12: 1.677099237 | R12: 6.126086957 | S12: 1.909160305
A13: 24 | B13: =INDIRECT("'Tides'!"&ADDRESS(B$2,$A13)) -> Swellies SLACK | C13: Time | D13: =INDIRECT("'Tides'!"&ADDRESS(D$2,$A13)) -> 42504.17847 | E13: 42504.45208 | F13: 42504.72569 | G13: 42504.97431 | H13: 42505.23333 | I13: 42505.50486 | J13: 42505.77639 | K13: 42506.02361 | L13: 42506.28056 | M13: 42506.54653 | N13: 42506.81389 | O13: 42507.06111 | P13: 42507.31736 | Q13: 42507.57778 | R13: 42507.84306 | S13: 42508.09097
A14: 25 | B14: =INDIRECT("'Tides'!"&ADDRESS(B$2,$A14)) -> P'dinorwic | C14: Time | D14: 42504.20476 | E14: 42504.49427 | F14: 42504.75068 | G14: 42505.0173 | H14: 42505.2581 | I14: 42505.55041 | J14: 42505.80143 | K14: 42506.07072 | L14: 42506.30571 | M14: 42506.59554 | N14: 42506.83997 | O14: 42507.11134 | P14: 42507.34354 | Q14: 42507.6294 | R14: 42507.86995 | S14: 42508.14369
A15: 26 | B15: =INDIRECT("'Tides 2010'!"&ADDRESS(B$2,$A15)) ->  | C15: Ht | D15: 4.44173913 | E15: 1.880916031 | F15: 4.149565217 | G15: 2.238167939 | H15: 4.410434783 | I15: 1.844274809 | J15: 4.264347826 | K15: 2.119083969 | L15: 4.525217391 | M15: 1.697709924 | N15: 4.452173913 | O15: 1.917557252 | P15: 4.702608696 | Q15: 1.532824427 | R15: 4.660869565 | S15: 1.706870229
A16: 27 | B16: =INDIRECT("'Tides'!"&ADDRESS(B$2,$A16)) -> P.D. SLACK | C16: Time | D16: 42504.19435 | E16: 42504.48281 | F16: 42504.74026 | G16: 42505.00422 | H16: 42505.24769 | I16: 42505.53223 | J16: 42505.79101 | K16: 42506.04942 | L16: 42506.29529 | M16: 42506.57043 | N16: 42506.82955 | O16: 42507.0838 | P16: 42507.33312 | Q16: 42507.59907 | R16: 42507.85953 | S16: 42508.11117
A17: 28 | B17: =INDIRECT("'Tides'!"&ADDRESS(B$2,$A17)) -> Caern'fon | C17: Time | D17: 42504.19931 | E17: 42504.49063 | F17: 42504.74653 | G17: 42505.01339 | H17: 42505.25417 | I17: 42505.54564 | J17: 42505.79722 | K17: 42506.06543 | L17: 42506.30139 | M17: 42506.58962 | N17: 42506.83472 | O17: 42507.10502 | P17: 42507.33819 | Q17: 42507.62261 | R17: 42507.86389 | S17: 42508.13654
A18: 29 | B18: =INDIRECT("'Tides 2010'!"&ADDRESS(B$2,$A18)) ->  | C18: Ht | D18: 4.04173913 | E18: 1.770992366 | F18: 3.749565217 | G18: 2.158015267 | H18: 4.010434783 | I18: 1.73129771 | J18: 3.864347826 | K18: 2.029007634 | L18: 4.125217391 | M18: 1.572519084 | N18: 4.052173913 | O18: 1.810687023 | P18: 4.302608696 | Q18: 1.39389313 | R18: 4.260869565 | S18: 1.582442748
A19: 30 | B19: =INDIRECT("'Tides'!"&ADDRESS(B$2,$A19)) -> Victoria Dock Gt | C19: Gate | D19: =INDIRECT("'Tides'!"&ADDRESS(D$2,$A19)) -> Opn | E19: Cls | F19: Opn | G19: Cls | H19: Opn | I19: Cls | J19: Opn | K19: Cls | L19: Opn | M19: Cls | N19: Opn | O19: Cls | P19: Opn | Q19: Cls | R19: Opn | S19: Cls
A20: 31 | B20: =INDIRECT("'Tides 2010'!"&ADDRESS(B$2,$A20)) ->  | C20: =INDIRECT("'Tides'!"&ADDRESS(C$2,$A20)) -> Time | D20: 42504.08472 | E20: 42504.31389 | F20: 42504.63194 | G20: 42504.86111 | H20: 42505.13958 | I20: 42505.36875 | J20: 42505.68264 | K20: 42505.91181 | L20: 42506.18681 | M20: 42506.41597 | N20: 42506.72014 | O20: 42506.94931 | P20: 42507.22361 | Q20: 42507.45278 | R20: 42507.74931 | S20: 42507.97847
A21: 32 | B21: =INDIRECT("'Tides'!"&ADDRESS(B$2,$A21)) -> Ft Belan | C21: Time | D21: 42504.20476 | E21: 42504.48993 | F21: 42504.75526 | G21: 42505.01161 | H21: 42505.26343 | I21: 42505.54047 | J21: 42505.80581 | K21: 42506.05818 | L21: 42506.30968 | M21: 42506.57982 | N21: 42506.8407 | O21: 42507.0936 | P21: 42507.34393 | Q21: 42507.60934 | R21: 42507.86784 | S21: 42508.1218
A22: 33 | B22: =INDIRECT("'Tides 2010'!"&ADDRESS(B$2,$A22)) ->  | C22: Ht | D22: 3.53826087 | E22: 1.680916031 | F22: 3.270434783 | G22: 2.038167939 | H22: 3.509565217 | I22: 1.644274809 | J22: 3.375652174 | K22: 1.919083969 | L22: 3.614782609 | M22: 1.497709924 | N22: 3.547826087 | O22: 1.717557252 | P22: 3.777391304 | Q22: 1.332824427 | R22: 3.739130435 | S22: 1.506870229
A23: 34 | B23: =INDIRECT("'Tides'!"&ADDRESS(B$2,$A23)) -> Llanddwyn | C23: Time | D23: 42504.17797 | E23: 42504.47969 | F23: 42504.72782 | G23: 42505.00164 | H23: 42505.23588 | I23: 42505.53135 | J23: 42505.7784 | K23: 42506.04958 | L23: 42506.28233 | M23: 42506.57186 | N23: 42506.81381 | O23: 42507.08603 | P23: 42507.31709 | Q23: 42507.60224 | R23: 42507.84136 | S23: 42508.11507
A24: 35 | B24: =INDIRECT("'Tides 2010'!"&ADDRESS(B$2,$A24)) ->  | C24: Ht | D24: 3.934782609 | E24: 1.780916031 | F24: 3.691304348 | G24: 2.138167939 | H24: 3.908695652 | I24: 1.744274809 | J24: 3.786956522 | K24: 2.019083969 | L24: 4.004347826 | M24: 1.597709924 | N24: 3.943478261 | O24: 1.817557252 | P24: 4.152173913 | Q24: 1.432824427 | R24: 4.117391304 | S24: 1.606870229
A25: 36 | B25: =INDIRECT("'Tides'!"&ADDRESS(B$2,$A25)) -> Trwyn Dimnor | C25: Time | D25: 42504.23254 | E25: 42504.51832 | F25: 42504.77845 | G25: 42505.04094 | H25: 42505.28588 | I25: 42505.57277 | J25: 42505.82921 | K25: 42506.0923 | L25: 42506.33349 | M25: 42506.61617 | N25: 42506.86775 | O25: 42507.13137 | P25: 42507.37132 | Q25: 42507.64873 | R25: 42507.89772 | S25: 42508.16247
A26: 37 | B26: =INDIRECT("'Tides 2010'!"&ADDRESS(B$2,$A26)) ->  | C26: Ht | D26: 5.955652174 | E26: 2.341221374 | F26: 5.566086957 | G26: 2.817557252 | H26: 5.913913043 | I26: 2.292366412 | J26: 5.719130435 | K26: 2.658778626 | L26: 6.066956522 | M26: 2.096946565 | N26: 5.969565217 | O26: 2.390076336 | P26: 6.303478261 | Q26: 1.877099237 | R26: 6.247826087 | S26: 2.109160305
A27: 38 | B27: =INDIRECT("'Tides'!"&ADDRESS(B$2,$A27)) -> Moelfre | C27: Time | D27: 42504.23502 | E27: 42504.51832 | F27: 42504.78159 | G27: 42505.04094 | H27: 42505.28912 | I27: 42505.57277 | J27: 42505.83231 | K27: 42506.0923 | L27: 42506.33654 | M27: 42506.61617 | N27: 42506.87033 | O27: 42507.13137 | P27: 42507.37385 | Q27: 42507.64873 | R27: 42507.8999 | S27: 42508.16247
A28: 39 | B28: =INDIRECT("'Tides 2010'!"&ADDRESS(B$2,$A28)) ->  | C28: Ht | D28: 5.859130435 | E28: 2.341221374 | F28: 5.445217391 | G28: 2.817557252 | H28: 5.814782609 | I28: 2.292366412 | J28: 5.607826087 | K28: 2.658778626 | L28: 5.977391304 | M28: 2.096946565 | N28: 5.873913043 | O28: 2.390076336 | P28: 6.228695652 | Q28: 1.877099237 | R28: 6.169565217 | S28: 2.109160305
A29: 40 | B29: =INDIRECT("'Tides'!"&ADDRESS(B$2,$A29)) -> Amlwch | C29: Time | D29: 42504.22907 | E29: 42504.51128 | F29: 42504.77498 | G29: 42505.03378 | H29: 42505.28241 | I29: 42505.56518 | J29: 42505.82573 | K29: 42506.08445 | L29: 42506.33002 | M29: 42506.60801 | N29: 42506.86427 | O29: 42507.12299 | P29: 42507.36784 | Q29: 42507.64012 | R29: 42507.89425 | S29: 42508.15368
A30: 41 | B30: =INDIRECT("'Tides 2010'!"&ADDRESS(B$2,$A30)) ->  | C30: Ht | D30: 5.752173913 | E30: 2.341221374 | F30: 5.386956522 | G30: 2.817557252 | H30: 5.713043478 | I30: 2.292366412 | J30: 5.530434783 | K30: 2.658778626 | L30: 5.856521739 | M30: 2.096946565 | N30: 5.765217391 | O30: 2.390076336 | P30: 6.07826087 | Q30: 1.877099237 | R30: 6.026086957 | S30: 2.109160305
A31: 42 | B31: =INDIRECT("'Tides'!"&ADDRESS(B$2,$A31)) -> Cemaes | C31: Time | D31: 42504.23651 | E31: 42504.51814 | F31: 42504.78438 | G31: 42505.0405 | H31: 42505.29213 | I31: 42505.57148 | J31: 42505.83505 | K31: 42506.09049 | L31: 42506.33916 | M31: 42506.61372 | N31: 42506.87203 | O31: 42507.12851 | P31: 42507.37545 | Q31: 42507.64541 | R31: 42507.90079 | S31: 42508.15879
A32: 43 | B32: =INDIRECT("'Tides 2010'!"&ADDRESS(B$2,$A32)) ->  | C32: Ht | D32: 5.152173913 | E32: 2.151145038 | F32: 4.786956522 | G32: 2.597709924 | H32: 5.113043478 | I32: 2.105343511 | J32: 4.930434783 | K32: 2.448854962 | L32: 5.256521739 | M32: 1.922137405 | N32: 5.165217391 | O32: 2.196946565 | P32: 5.47826087 | Q32: 1.716030534 | R32: 5.426086957 | S32: 1.933587786
A33: 44 | B33: =INDIRECT("'Tides'!"&ADDRESS(B$2,$A33)) -> Skrries SLACK | C33: Time | D33: 42504.20972 | E33: 42504.48333 | F33: 42504.75694 | G33: 42505.00556 | H33: 42505.26458 | I33: 42505.53611 | J33: 42505.80764 | K33: 42506.05486 | L33: 42506.31181 | M33: 42506.57778 | N33: 42506.84514 | O33: 42507.09236 | P33: 42507.34861 | Q33: 42507.60903 | R33: 42507.87431 | S33: 42508.12222
A34: 45 | B34: =INDIRECT("'Tides'!"&ADDRESS(B$2,$A34)) -> Sth.Stck SLACK | C34: Time | D34: 42504.23056 | E34: 42504.50764 | F34: 42504.77778 | G34: 42505.02986 | H34: 42505.28542 | I34: 42505.56042 | J34: 42505.82847 | K34: 42506.07917 | L34: 42506.33264 | M34: 42506.60208 | N34: 42506.86597 | O34: 42507.11667 | P34: 42507.36944 | Q34: 42507.63333 | R34: 42507.89514 | S34: 42508.14653
A35: 46 | B35: =INDIRECT("'Tides'!"&ADDRESS(B$2,$A35)) -> Tr'ddr Bay | C35: Time | D35: 42504.1988 | E35: 42504.48333 | F35: 42504.74865 | G35: 42505.00556 | H35: 42505.25671 | I35: 42505.53611 | J35: 42505.79923 | K35: 42506.05486 | L35: 42506.30316 | M35: 42506.57778 | N35: 42506.83465 | O35: 42507.09236 | P35: 42507.33792 | Q35: 42507.60903 | R35: 42507.86219 | S35: =INDIRECT("'Tides'!"&ADDRESS(S$2,$A35)) -> 42508.12222
A36: 47 | B36: =INDIRECT("'Tides 2010'!"&ADDRESS(B$2,$A36)) ->  | C36: Ht | D36: 4.04173913 | E36: 1.880916031 | F36: 3.749565217 | G36: 2.238167939 | H36: 4.010434783 | I36: 1.844274809 | J36: 3.864347826 | K36: 2.119083969 | L36: 4.125217391 | M36: 1.697709924 | N36: 4.052173913 | O36: 1.917557252 | P36: 4.302608696 | Q36: 1.532824427 | R36: 4.260869565 | S36: 1.706870229
A37: 48 | B37: =INDIRECT("'Tides'!"&ADDRESS(B$2,$A37)) -> Porth T'castell | C37: Time | D37: 42504.1988 | E37: 42504.48351 | F37: 42504.74865 | G37: 42505.006 | H37: 42505.25671 | I37: 42505.5374 | J37: 42505.79923 | K37: 42506.05667 | L37: 42506.30316 | M37: 42506.58023 | N37: 42506.83465 | O37: 42507.09522 | P37: 42507.33792 | Q37: 42507.61235 | R37: 42507.86219 | S37: 42508.12591
A38: 49 | B38: =INDIRECT("'Tides 2010'!"&ADDRESS(B$2,$A38)) ->  | C38: Ht | D38: 3.84173913 | E38: 1.870992366 | F38: 3.549565217 | G38: 2.258015267 | H38: 3.810434783 | I38: 1.83129771 | J38: 3.664347826 | K38: 2.129007634 | L38: 3.925217391 | M38: 1.672519084 | N38: 3.852173913 | O38: 1.910687023 | P38: 4.102608696 | Q38: 1.49389313 | R38: 4.060869565 | S38: 1.682442748
A39: 50 | B39: =INDIRECT("'Tides'!"&ADDRESS(B$2,$A39)) -> Trefor | C39: Time | D39: 42504.17549 | E39: 42504.47969 | F39: 42504.72468 | G39: 42505.00164 | H39: 42505.23264 | I39: 42505.53135 | J39: 42505.77529 | K39: 42506.04958 | L39: 42506.27928 | M39: 42506.57186 | N39: 42506.81123 | O39: 42507.08603 | P39: 42507.31455 | Q39: 42507.60224 | R39: 42507.83918 | S39: 42508.11507
A40: 51 | B40: =INDIRECT("'Tides 2010'!"&ADDRESS(B$2,$A40)) ->  | C40: Ht | D40: 3.545217391 | E40: 1.680916031 | F40: 3.228695652 | G40: 2.038167939 | H40: 3.511304348 | I40: 1.644274809 | J40: 3.353043478 | K40: 1.919083969 | L40: 3.635652174 | M40: 1.497709924 | N40: 3.556521739 | O40: 1.717557252 | P40: 3.827826087 | Q40: 1.332824427 | R40: 3.782608696 | S40: 1.506870229
A41: 52 | B41: =INDIRECT("'Tides'!"&ADDRESS(B$2,$A41)) -> Porth Dinllaen | C41: Time | D41: 42504.17202 | E41: 42504.47622 | F41: 42504.72121 | G41: 42504.99817 | H41: 42505.22917 | I41: 42505.52787 | J41: 42505.77182 | K41: 42506.0461 | L41: 42506.27581 | M41: 42506.56838 | N41: 42506.80775 | O41: 42507.08256 | P41: 42507.31108 | Q41: 42507.59877 | R41: 42507.83571 | S41: 42508.11159
A42: 53 | B42: =INDIRECT("'Tides 2010'!"&ADDRESS(B$2,$A42)) ->  | C42: Ht | D42: 3.44173913 | E42: 1.670992366 | F42: 3.149565217 | G42: 2.058015267 | H42: 3.410434783 | I42: 1.63129771 | J42: 3.264347826 | K42: 1.929007634 | L42: 3.525217391 | M42: 1.472519084 | N42: 3.452173913 | O42: 1.710687023 | P42: 3.702608696 | Q42: 1.29389313 | R42: 3.660869565 | S42: 1.482442748
A43: 54 | B43: =INDIRECT("'Tides'!"&ADDRESS(B$2,$A43)) -> Port Ysgaden | C43: Time | D43: 42504.16855 | E43: 42504.46936 | F43: 42504.71774 | G43: 42504.99144 | H43: 42505.22569 | I43: 42505.52158 | J43: 42505.76834 | K43: 42506.04007 | L43: 42506.27234 | M43: 42506.56266 | N43: 42506.80428 | O43: 42507.07704 | P43: 42507.30761 | Q43: 42507.59348 | R43: 42507.83223 | S43: 42508.10649
A44: 55 | B44: =INDIRECT("'Tides 2010'!"&ADDRESS(B$2,$A44)) ->  | C44: Ht | D44: 3.43826087 | E44: 1.770992366 | F44: 3.170434783 | G44: 2.158015267 | H44: 3.409565217 | I44: 1.73129771 | J44: 3.275652174 | K44: 2.029007634 | L44: 3.514782609 | M44: 1.572519084 | N44: 3.447826087 | O44: 1.810687023 | P44: 3.677391304 | Q44: 1.39389313 | R44: 3.639130435 | S44: 1.582442748
A45: 56 | B45: =INDIRECT("'Tides'!"&ADDRESS(B$2,$A45)) -> Bardsey Is | C45: Time | D45: 42504.113 | E45: 42504.42422 | F45: 42504.6576 | G45: 42504.94631 | H45: 42505.16481 | I45: 42505.47644 | J45: 42505.70841 | K45: 42505.99493 | L45: 42506.21281 | M45: 42506.51753 | N45: 42506.74799 | O45: 42507.03191 | P45: 42507.25166 | Q45: 42507.54834 | R45: 42507.77878 | S45: 42508.06135
A46: 57 | B46: =INDIRECT("'Tides 2010'!"&ADDRESS(B$2,$A46)) ->  | C46: Ht | D46: 3.24173913 | E46: 1.410687023 | F46: 2.949565217 | G46: 1.678625954 | H46: 3.210434783 | I46: 1.383206107 | J46: 3.064347826 | K46: 1.589312977 | L46: 3.325217391 | M46: 1.273282443 | N46: 3.252173913 | O46: 1.438167939 | P46: 3.502608696 | Q46: 1.149618321 | R46: 3.460869565 | S46: 1.280152672
A47: 58 | B47: =INDIRECT("'Tides'!"&ADDRESS(B$2,$A47)) -> Sound SLACK | C47: Time | D47: 42504.20972 | E47: 42504.51806 | F47: 42504.75694 | G47: 42505.04028 | H47: 42505.26458 | I47: 42505.57083 | J47: 42505.80764 | K47: 42506.08958 | L47: 42506.31181 | M47: 42506.6125 | N47: 42506.84514 | O47: 42507.12708 | P47: 42507.34861 | Q47: 42507.64375 | R47: 42507.87431 | S47: 42508.15694
A48: 3
A49: 60 | B49: =INDIRECT("'Tides'!"&ADDRESS(B$2,$A49)) -> L'pool (approx) | C49: Time | D49: 42504.26181 | E49: 42504.53542 | F49: 42504.80903 | G49: 42505.05764 | H49: 42505.31667 | I49: 42505.58819 | J49: 42505.85972 | K49: 42506.10694 | L49: 42506.36389 | M49: 42506.62986 | N49: 42506.89722 | O49: 42507.14444 | P49: 42507.40069 | Q49: 42507.66111 | R49: =INDIRECT("'Tides'!"&ADDRESS(R$2,$A49)) -> 42507.92639 | S49: =INDIRECT("'Tides'!"&ADDRESS(S$2,$A49)) -> 42508.17431
A50: 61 | B50: Dover (approx) | C50: Time | D50: 42504.25139 | E50: 42504.525 | F50: 42504.79861 | G50: 42505.04722 | H50: 42505.30625 | I50: 42505.57778 | J50: 42505.84931 | K50: 42506.09653 | L50: 42506.35347 | M50: 42506.61944 | N50: 42506.88681 | O50: 42507.13403 | P50: 42507.39028 | Q50: 42507.65069 | R50: =INDIRECT("'Tides'!"&ADDRESS(R$2,$A50)) -> 42507.91597 | S50: =INDIRECT("'Tides'!"&ADDRESS(S$2,$A50)) -> 42508.16389

Sheet Tides
A1: Time | B1: Adjustment to apply | C1: Raw HOLYHEAD DateTime | G1: MHWS | K1: 5.64 | S1: 7.6 | V1: 7.3 | Y1: 5.6 | AB1: 5.2 | AF1: 4.6 | AH1: 4.9 | AJ1: 7.5 | AL1: 7.5 | AN1: 7.2 | AP1: 6.6 | AT1: 5.2 | AV1: 5 | AX1: 4.8 | AZ1: 4.6 | BB1: 4.5 | BD1: 4.4
G2: MHWN | K2: 4.49 | S2: 6 | V2: 5.8 | Y2: 4.4 | AB2: 4 | AF2: 3.5 | AH2: 3.9 | AJ2: 5.9 | AL2: 5.8 | AN2: 5.7 | AP2: 5.1 | AT2: 4 | AV2: 3.8 | AX2: 3.5 | AZ2: 3.4 | BB2: 3.4 | BD2: 3.2
A3: BST Offset | G3: MLWN | K3: 2.02 | S3: 2.5 | V3: 2.3 | Y3: 2 | AB3: 1.9 | AF3: 1.8 | AH3: 1.9 | AJ3: 2.5 | AL3: 2.5 | AN3: 2.5 | AP3: 2.3 | AT3: 2 | AV3: 2 | AX3: 1.8 | AZ3: 1.8 | BB3: 1.9 | BD3: 1.5
G4: MLWS | K4: 0.71 | S4: 0.8 | V4: 0.7 | Y4: 0.8 | AB4: 0.6 | AF4: 0.6 | AH4: 0.7 | AJ4: 0.9 | AL4: 0.9 | AN4: 0.9 | AP4: 0.8 | AT4: 0.8 | AV4: 0.7 | AX4: 0.6 | AZ4: 0.5 | BB4: 0.6 | BD4: 0.6
G5: T Diff HW Sp | K5: @ | L5: 00:00:00 | M5: 12:00:00 | S5: 00:25:00 | U5: 02:00:00 | V5: 00:30:00 | X5: -0.04166666667 | Y5: -0.01041666667 | AA5: -0.02083333333 | AB5: -0.02083333333 | AF5: -0.02777777778 | AH5: -0.05208333333 | AJ5: 00:25:00 | AL5: 00:25:00 | AN5: 00:20:00 | AP5: 00:20:00 | AR5: -0.01041666667 | AS5: 00:15:00 | AT5: -0.03125 | AV5: -0.03125 | AX5: -0.05208333333 | AZ5: -0.05555555556 | BB5: -0.05902777778 | BD5: -0.09722222222 | BF5: -0.01041666667 | BH5: 01:00:00 | BI5: 00:45:00
G6: T Diff HW Np | K6: @ | L6: 06:00:00 | M6: 18:00:00 | S6: 00:10:00 | U6: 01:45:00 | V6: 00:10:00 | X6: -0.04166666667 | Y6: -0.01736111111 | AA6: -0.02777777778 | AB6: -0.02083333333 | AF6: -0.01041666667 | AH6: -0.03819444444 | AJ6: 00:15:00 | AL6: 00:20:00 | AN6: 00:10:00 | AP6: 00:25:00 | AR6: -0.01041666667 | AS6: 00:15:00 | AT6: -0.01736111111 | AV6: -0.01736111111 | AX6: -0.04166666667 | AZ6: -0.04513888889 | BB6: -0.04861111111 | BD6: -0.1111111111 | BF6: -0.01041666667 | BH6: 01:00:00 | BI6: 00:45:00
G7: T Diff LW Sp | K7: @ | L7: 05:00:00 | M7: 17:00:00 | S7: 00:55:00 | U7: 02:30:00 | V7: 00:10:00 | X7: -0.04166666667 | Y7: 00:30:00 | AA7: -0.03125 | AB7: 00:15:00 | AD7: +/- HW | AF7: -0.01736111111 | AH7: -0.02083333333 | AJ7: 00:50:00 | AL7: 00:50:00 | AN7: 00:35:00 | AP7: 00:40:00 | AR7: -0.01041666667 | AS7: 00:20:00 | AT7: -0.01041666667 | AV7: -0.003472222222 | AX7: -0.02083333333 | AZ7: -0.02430555556 | BB7: -0.02777777778 | BD7: -0.07291666667 | BF7: 00:35:00 | BH7: 01:00:00 | BI7: 00:45:00
G8: T Diff LW Np | K8: @ | L8: 11:00:00 | M8: 23:00:00 | S8: 00:35:00 | U8: 02:10:00 | V8: 00:35:00 | X8: -0.04166666667 | Y8: 00:00:00 | AA8: -0.01041666667 | AB8: -0.003472222222 | AD8: 02:45:00 | AF8: -0.003472222222 | AH8: -0.01388888889 | AJ8: 00:35:00 | AL8: 00:35:00 | AN8: 00:25:00 | AP8: 00:35:00 | AR8: -0.01041666667 | AS8: 00:20:00 | AT8: -0.01041666667 | AV8: -0.01041666667 | AX8: -0.01388888889 | AZ8: -0.01736111111 | BB8: -0.02430555556 | BD8: -0.06944444444 | BF8: 00:35:00 | BH8: 01:00:00 | BI8: 00:45:00
G9: Place | K9: HOLYHEAD | S9: Beaumaris | U9: SLACK | V9: Menai Bridge | X9: Swellies SLACK | Y9: P'dinorwic | AA9: P.D. SLACK | AB9: Caern'fon | AD9: Victoria Dock Gt | AF9: Ft Belan | AH9: Llanddwyn | AJ9: Trwyn Dimnor | AL9: Moelfre | AN9: Amlwch | AP9: Cemaes | AR9: Skrries SLACK | AS9: Sth.Stck SLACK | AT9: Tr'ddr Bay | AV9: Porth T'castell | AX9: Trefor | AZ9: Porth Dinllaen | BB9: Port Ysgaden | BD9: Bardsey Is | BF9: Sound SLACK | BH9: L'pool (approx) | BI9: Dover (approx)
K10: =$A$1 -> Time | L10: Ht | M10: State | N10: %SpHt | O10: Time | P10: SpTm | Q10: NpTm | R10: %SpTm | S10: Time | T10: Ht | U10: Time | V10: Time | W10: Ht | X10: Time | Y10: Time | Z10: Ht | AA10: Time | AB10: Time | AC10: Ht | AD10: Gate | AE10: Time | AF10: Time | AG10: Ht | AH10: Time | AI10: Ht | AJ10: Time | AK10: Ht | AL10: Time | AM10: Ht | AN10: Time | AO10: Ht | AP10: Time | AQ10: Ht | AR10: Time | AS10: Time | AT10: Time | AU10: Ht | AV10: Time | AW10: Ht | AX10: Time | AY10: Ht | AZ10: Time | BA10: Ht | BB10: Time | BC10: Ht | BD10: Time | BE10: Ht | BF10: Time | BH10: Time | BI10: Time
A11: 0 | B11: =IF(Instructions!$C$2="BST",A11,0) -> 0 | C11: 2020-01-01T01:56:00 | D11: =DATE(YEAR(K11),MONTH(K11),DAY(K11)) -> 2020-01-01 | E11: =IF(D11=D10,IF(J10="","",J10),D11) -> 2020-01-01 | F11: =MONTH(K11) -> 1 | G11: =IF(H11="","",TEXT(F11*29,"mmm")) -> Jan | H11: =IF(I11=I10,"",DAY(K11)) -> 1 | I11: =WEEKDAY(K11,2) -> 3 | J11: =IF(I11=I10,"",TEXT(I11+2,"ddd")) -> Wed | K11: =C11+B11/24 -> 42369.08056 | L11: 4.73 | M11: HW | N11: =IF(M11="HW",(L11-K$2)/(K$1-K$2),(L11-K$3)/(K$4-K$3)) -> 0.2086956522 | O11: =C11-INT(C11) -> 01:56:00 | P11: =IF(M11="HW",IF(AND(O11>=L$5,O11<L$6),L$5,IF(AND(O11>=L$6,O11<M$5),M$5,IF(AND(O11>=M$5,O11<M$6),M$5,IF(O11>=M$6,L$5+1,L$5)))),IF(AND(O11>=L$7,O11<L$8),L$7,IF(AND(O11>=L$8,O11<M$7),M$7,IF(AND(O11>=M$7,O11<M$8),M$7,IF(O11>=M$8,L$7+1,L$7))))) -> 00:00:00 | Q11: =IF(M11="HW",IF(AND(O11>=L$5,O11<L$6),L$6,IF(AND(O11>=L$6,O11<M$5),L$6,IF(AND(O11>=M$5,O11<M$6),M$6,IF(O11>=M$6,M$6,M$6-1)))),IF(AND(O11>=L$7,O11<L$8),L$8,IF(AND(O11>=L$8,O11<M$7),L$8,IF(AND(O11>=M$7,O11<M$8),M$8,IF(O11>=M$8,M$8,M$8-1))))) -> 06:00:00 | R11: =ABS((O11-Q11)/(P11-Q11)) -> 0.6777777778 | S11: =IF($M11="HW",$K11+S$6+(S$5-S$6)*$R11,$K11+S$8+(S$7-S$8)*$R11) -> 42369.09456 | T11: =IF($M11="HW",S$2+(S$1-S$2)*$N11,S$3+(S$4-S$3)*$N11) -> 6.333913043 | U11: 42369.16053 | V11: 42369.09691 | W11: =IF($M11="HW",V$2+(V$1-V$2)*$N11,V$3+(V$4-V$3)*$N11) -> 6.113043478 | X11: =IF($M11="HW",$K11+X$6+(X$5-X$6)*$R11,$K11+X$8+(X$7-X$8)*$R11) -> 42369.03889 | Y11: 42369.0679 | Z11: =IF($M11="HW",Y$2+(Y$1-Y$2)*$N11,Y$3+(Y$4-Y$3)*$N11) -> 4.650434783 | AA11: =IF($M11="HW",$K11+AA$6+(AA$5-AA$6)*$R11,$K11+AA$8+(AA$7-AA$8)*$R11) -> 42369.05748 | AB11: =IF($M11="HW",$K11+AB$6+(AB$5-AB$6)*$R11,$K11+AB$8+(AB$7-AB$8)*$R11) -> 42369.05972 | AC11: =IF($M11="HW",AB$2+(AB$1-AB$2)*$N11,AB$3+(AB$4-AB$3)*$N11) -> 4.250434783 | AD11: =IF($M11="HW","Opn","Cls") -> Opn | AE11: =IF($M11="HW",$AB11-AD$8,IF($AB10="HW",$AB11+AD$8,"?")) -> 42368.94514 | AF11: =IF($M11="HW",$K11+AF$6+(AF$5-AF$6)*$R11,$K11+AF$8+(AF$7-AF$8)*$R11) -> 42369.05837 | AG11: =IF($M11="HW",AF$2+(AF$1-AF$2)*$N11,AF$3+(AF$4-AF$3)*$N11) -> 3.729565217 | AH11: =IF($M11="HW",$K11+AH$6+(AH$5-AH$6)*$R11,$K11+AH$8+(AH$7-AH$8)*$R11) -> 42369.03295 | AI11: =IF($M11="HW",AH$2+(AH$1-AH$2)*$N11,AH$3+(AH$4-AH$3)*$N11) -> 4.108695652 | AJ11: =IF($M11="HW",$K11+AJ$6+(AJ$5-AJ$6)*$R11,$K11+AJ$8+(AJ$7-AJ$8)*$R11) -> 42369.09568 | AK11: =IF($M11="HW",AJ$2+(AJ$1-AJ$2)*$N11,AJ$3+(AJ$4-AJ$3)*$N11) -> 6.233913043 | AL11: =IF($M11="HW",$K11+AL$6+(AL$5-AL$6)*$R11,$K11+AL$8+(AL$7-AL$8)*$R11) -> 42369.0968 | AM11: =IF($M11="HW",AL$2+(AL$1-AL$2)*$N11,AL$3+(AL$4-AL$3)*$N11) -> 6.154782609 | AN11: =IF($M11="HW",$K11+AN$6+(AN$5-AN$6)*$R11,$K11+AN$8+(AN$7-AN$8)*$R11) -> 42369.09221 | AO11: =IF($M11="HW",AN$2+(AN$1-AN$2)*$N11,AN$3+(AN$4-AN$3)*$N11) -> 6.013043478 | AP11: =IF($M11="HW",$K11+AP$6+(AP$5-AP$6)*$R11,$K11+AP$8+(AP$7-AP$8)*$R11) -> 42369.09556 | AQ11: =IF($M11="HW",AP$2+(AP$1-AP$2)*$N11,AP$3+(AP$4-AP$3)*$N11) -> 5.413043478 | AR11: =IF($M11="HW",$K11+AR$6+(AR$5-AR$6)*$R11,$K11+AR$8+(AR$7-AR$8)*$R11) -> 42369.07014 | AS11: 42369.09097 | AT11: =IF($M11="HW",$K11+AT$6+(AT$5-AT$6)*$R11,$K11+AT$8+(AT$7-AT$8)*$R11) -> 42369.05378 | AU11: =IF($M11="HW",AT$2+(AT$1-AT$2)*$N11,AT$3+(AT$4-AT$3)*$N11) -> 4.250434783 | AV11: =IF($M11="HW",$K11+AV$6+(AV$5-AV$6)*$R11,$K11+AV$8+(AV$7-AV$8)*$R11) -> 42369.05378 | AW11: =IF($M11="HW",AV$2+(AV$1-AV$2)*$N11,AV$3+(AV$4-AV$3)*$N11) -> 4.050434783 | AX11: =IF($M11="HW",$K11+AX$6+(AX$5-AX$6)*$R11,$K11+AX$8+(AX$7-AX$8)*$R11) -> 42369.03183 | AY11: =IF($M11="HW",AX$2+(AX$1-AX$2)*$N11,AX$3+(AX$4-AX$3)*$N11) -> 3.771304348 | AZ11: =IF($M11="HW",$K11+AZ$6+(AZ$5-AZ$6)*$R11,$K11+AZ$8+(AZ$7-AZ$8)*$R11) -> 42369.02836 | BA11: =IF($M11="HW",AZ$2+(AZ$1-AZ$2)*$N11,AZ$3+(AZ$4-AZ$3)*$N11) -> 3.650434783 | BB11: =IF($M11="HW",$K11+BB$6+(BB$5-BB$6)*$R11,$K11+BB$8+(BB$7-BB$8)*$R11) -> 42369.02488 | BC11: =IF($M11="HW",BB$2+(BB$1-BB$2)*$N11,BB$3+(BB$4-BB$3)*$N11) -> 3.629565217 | BD11: =IF($M11="HW",$K11+BD$6+(BD$5-BD$6)*$R11,$K11+BD$8+(BD$7-BD$8)*$R11) -> 42368.97886 | BE11: =IF($M11="HW",BD$2+(BD$1-BD$2)*$N11,BD$3+(BD$4-BD$3)*$N11) -> 3.450434783 | BF11: =IF($M11="HW",$K11+BF$6+(BF$5-BF$6)*$R11,$K11+BF$8+(BF$7-BF$8)*$R11) -> 42369.07014 | BH11: 42369.12222 | BI11: 42369.11181
A12: 0 | B12: =IF(Instructions!$C$2="BST",A12,0) -> 0 | C12: 2020-01-01T07:57:00 | D12: =DATE(YEAR(K12),MONTH(K12),DAY(K12)) -> 2020-01-01 | E12: =IF(D12=D11,IF(J11="","",J11),D12) -> Wed | F12: =MONTH(K12) -> 1 | G12: =IF(H12="","",TEXT(F12*29,"mmm")) ->  | H12: =IF(I12=I11,"",DAY(K12)) ->  | I12: 3 | J12: =IF(I12=I11,"",TEXT(I12+2,"ddd")) ->  | K12: =C12+B12/24 -> 42369.33125 | L12: 1.93 | M12: LW | N12: 0.06870229008 | O12: =C12-INT(C12) -> 07:57:00 | P12: 05:00:00 | Q12: 11:00:00 | R12: =ABS((O12-Q12)/(P12-Q12)) -> 0.5083333333 | S12: 42369.36262 | T12: 2.383206107 | U12: 42369.42859 | V12: 42369.34673 | W12: 2.190076336 | X12: 42369.28958 | Y12: 42369.34184 | Z12: =IF($M12="HW",Y$2+(Y$1-Y$2)*$N12,Y$3+(Y$4-Y$3)*$N12) -> 1.917557252 | AA12: 42369.31024 | AB12: 42369.33484 | AC12: =IF($M12="HW",AB$2+(AB$1-AB$2)*$N12,AB$3+(AB$4-AB$3)*$N12) -> 1.810687023 | AD12: Cls | AE12: =IF($M12="HW",$AB12-AD$8,$AB11+AD$8) -> 42369.17431 | AF12: 42369.32072 | AG12: =IF($M12="HW",AF$2+(AF$1-AF$2)*$N12,AF$3+(AF$4-AF$3)*$N12) -> 1.717557252 | AH12: 42369.31383 | AI12: =IF($M12="HW",AH$2+(AH$1-AH$2)*$N12,AH$3+(AH$4-AH$3)*$N12) -> 1.817557252 | AJ12: 42369.36085 | AK12: =IF($M12="HW",AJ$2+(AJ$1-AJ$2)*$N12,AJ$3+(AJ$4-AJ$3)*$N12) -> 2.390076336 | AL12: 42369.36085 | AM12: =IF($M12="HW",AL$2+(AL$1-AL$2)*$N12,AL$3+(AL$4-AL$3)*$N12) -> 2.390076336 | AN12: 42369.35214 | AO12: =IF($M12="HW",AN$2+(AN$1-AN$2)*$N12,AN$3+(AN$4-AN$3)*$N12) -> 2.390076336 | AP12: 42369.35732 | AQ12: =IF($M12="HW",AP$2+(AP$1-AP$2)*$N12,AP$3+(AP$4-AP$3)*$N12) -> 2.196946565 | AR12: 42369.32083 | AS12: 42369.34514 | AT12: 42369.32083 | AU12: =IF($M12="HW",AT$2+(AT$1-AT$2)*$N12,AT$3+(AT$4-AT$3)*$N12) -> 1.917557252 | AV12: 42369.32436 | AW12: =IF($M12="HW",AV$2+(AV$1-AV$2)*$N12,AV$3+(AV$4-AV$3)*$N12) -> 1.910687023 | AX12: 42369.31383 | AY12: =IF($M12="HW",AX$2+(AX$1-AX$2)*$N12,AX$3+(AX$4-AX$3)*$N12) -> 1.717557252 | AZ12: 42369.31036 | BA12: =IF($M12="HW",AZ$2+(AZ$1-AZ$2)*$N12,AZ$3+(AZ$4-AZ$3)*$N12) -> 1.710687023 | BB12: 42369.30518 | BC12: =IF($M12="HW",BB$2+(BB$1-BB$2)*$N12,BB$3+(BB$4-BB$3)*$N12) -> 1.810687023 | BD12: 42369.26004 | BE12: =IF($M12="HW",BD$2+(BD$1-BD$2)*$N12,BD$3+(BD$4-BD$3)*$N12) -> 1.438167939 | BF12: 42369.35556 | BH12: 42369.37292 | BI12: 42369.3625
A13: 0 | B13: =IF(Instructions!$C$2="BST",A13,0) -> 0 | C13: 2020-01-01T14:09:00 | D13: 2020-01-01 | E13: =IF(D13=D12,IF(J12="","",J12),D13) ->  | F13: 1 | I13: 3 | K13: 42369.58958 | L13: 5.06 | M13: HW | N13: 0.4956521739 | O13: 14:09:00 | P13: 12:00:00 | Q13: 18:00:00 | R13: 0.6416666667 | S13: 42369.60321 | T13: 6.793043478 | U13: 42369.66918 | V13: 42369.60544 | W13: 6.543478261 | X13: 42369.54792 | Y13: 42369.57668 | Z13: 4.994782609 | AA13: 42369.56626 | AB13: 42369.56875 | AC13: 4.594782609 | AD13: Opn | AE13: 42369.45417 | AF13: 42369.56803 | AG13: 4.045217391 | AH13: 42369.54248 | AI13: 4.395652174 | AJ13: 42369.60446 | AK13: 6.693043478 | AL13: 42369.6057 | AM13: 6.642608696 | AN13: 42369.60098 | AO13: 6.443478261 | AP13: 42369.60472 | AQ13: 5.843478261 | AR13: 42369.57917 | AS13: 42369.6 | AT13: 42369.56331 | AU13: 4.594782609 | AV13: 42369.56331 | AW13: 4.394782609 | AX13: 42369.54123 | AY13: 4.144347826 | AZ13: 42369.53776 | BA13: 3.994782609 | BB13: 42369.53429 | BC13: 3.945217391 | BD13: 42369.48738 | BE13: 3.794782609 | BF13: 42369.57917 | BH13: 42369.63125 | BI13: 42369.62083
A14: 0 | B14: =IF(Instructions!$C$2="BST",A14,0) -> 0 | C14: 2020-01-01T20:30:00 | D14: 2020-01-01 | F14: 1 | I14: 3 | J14: =IF(I14=I13,"",TEXT(I14+2,"ddd")) ->  | K14: 42369.85417 | L14: 1.77 | M14: LW | N14: 0.1908396947 | O14: 20:30:00 | P14: 17:00:00 | Q14: 23:00:00 | R14: 0.4166666667 | S14: 42369.88426 | T14: 2.175572519 | U14: 42369.95023 | V14: 42369.87124 | W14: 1.994656489 | X14: 42369.8125 | Y14: 42369.86285 | Z14: =IF($M14="HW",Y$2+(Y$1-Y$2)*$N14,Y$3+(Y$4-Y$3)*$N14) -> 1.770992366 | AA14: 42369.83507 | AB14: 42369.85648 | AC14: =IF($M14="HW",AB$2+(AB$1-AB$2)*$N14,AB$3+(AB$4-AB$3)*$N14) -> 1.651908397 | AD14: Cls | AE14: 42369.68333 | AF14: 42369.84491 | AG14: =IF($M14="HW",AF$2+(AF$1-AF$2)*$N14,AF$3+(AF$4-AF$3)*$N14) -> 1.570992366 | AH14: 42369.83738 | AI14: =IF($M14="HW",AH$2+(AH$1-AH$2)*$N14,AH$3+(AH$4-AH$3)*$N14) -> 1.670992366 | AJ14: 42369.88281 | AK14: =IF($M14="HW",AJ$2+(AJ$1-AJ$2)*$N14,AJ$3+(AJ$4-AJ$3)*$N14) -> 2.194656489 | AL14: 42369.88281 | AM14: =IF($M14="HW",AL$2+(AL$1-AL$2)*$N14,AL$3+(AL$4-AL$3)*$N14) -> 2.194656489 | AN14: 42369.87442 | AO14: =IF($M14="HW",AN$2+(AN$1-AN$2)*$N14,AN$3+(AN$4-AN$3)*$N14) -> 2.194656489 | AP14: 42369.87992 | AQ14: =IF($M14="HW",AP$2+(AP$1-AP$2)*$N14,AP$3+(AP$4-AP$3)*$N14) -> 2.013740458 | AR14: 42369.84375 | AS14: 42369.86806 | AT14: 42369.84375 | AU14: =IF($M14="HW",AT$2+(AT$1-AT$2)*$N14,AT$3+(AT$4-AT$3)*$N14) -> 1.770992366 | AV14: 42369.84664 | AW14: =IF($M14="HW",AV$2+(AV$1-AV$2)*$N14,AV$3+(AV$4-AV$3)*$N14) -> 1.751908397 | AX14: 42369.83738 | AY14: =IF($M14="HW",AX$2+(AX$1-AX$2)*$N14,AX$3+(AX$4-AX$3)*$N14) -> 1.570992366 | AZ14: 42369.83391 | BA14: =IF($M14="HW",AZ$2+(AZ$1-AZ$2)*$N14,AZ$3+(AZ$4-AZ$3)*$N14) -> 1.551908397 | BB14: 42369.82841 | BC14: =IF($M14="HW",BB$2+(BB$1-BB$2)*$N14,BB$3+(BB$4-BB$3)*$N14) -> 1.651908397 | BD14: 42369.78328 | BE14: =IF($M14="HW",BD$2+(BD$1-BD$2)*$N14,BD$3+(BD$4-BD$3)*$N14) -> 1.328244275 | BF14: 42369.87847 | BH14: 42369.89583 | BI14: 42369.88542
A15: 0 | B15: =IF(Instructions!$C$2="BST",A15,0) -> 0 | C15: 2020-01-02T02:41:00 | D15: 2020-01-02 | E15: 2020-01-02 | F15: 1 | G15: Jan | H15: 2 | I15: 4 | J15: Thu | K15: 42370.11181 | L15: 4.55 | M15: HW | N15: 0.05217391304 | O15: 02:41:00 | P15: 00:00:00 | Q15: 06:00:00 | R15: 0.5527777778 | S15: 42370.12451 | T15: 6.083478261 | U15: 42370.19048 | V15: 42370.12643 | W15: 5.87826087 | X15: 42370.07014 | Y15: 42370.09828 | Z15: 4.462608696 | AA15: 42370.08787 | AB15: 42370.09097 | AC15: 4.062608696 | AD15: Opn | AE15: 42369.97639 | AF15: 42370.09179 | AG15: 3.557391304 | AH15: 42370.06593 | AI15: 3.952173913 | AJ15: 42370.12606 | AK15: 5.983478261 | AL15: 42370.12761 | AM15: 5.888695652 | AN15: 42370.12259 | AO15: 5.77826087 | AP15: 42370.12725 | AQ15: 5.17826087 | AR15: 42370.10139 | AS15: 42370.12222 | AT15: 42370.08677 | AU15: 4.062608696 | AV15: 42370.08677 | AW15: 3.862608696 | AX15: 42370.06438 | AY15: 3.567826087 | AZ15: 42370.06091 | BA15: 3.462608696 | BB15: 42370.05744 | BC15: 3.457391304 | BD15: 42370.00837 | BE15: 3.262608696 | BF15: 42370.10139 | BH15: 42370.15347 | BI15: 42370.14306
A16: 0 | B16: =IF(Instructions!$C$2="BST",A16,0) -> 0 | C16: 2020-01-02T08:43:00 | D16: 2020-01-02 | E16: Thu | F16: 1 | I16: 4 | K16: 42370.36319 | L16: 2.13 | M16: LW | N16: -0.08396946565 | O16: 08:43:00 | P16: 05:00:00 | Q16: 11:00:00 | R16: 0.3805555556 | S16: 42370.39279 | T16: 2.642748092 | U16: 42370.45876 | V16: 42370.38089 | W16: 2.434351145 | X16: 42370.32153 | Y16: 42370.37112 | Z16: 2.100763359 | AA16: 42370.34485 | AB16: 42370.36501 | AC16: 2.009160305 | AD16: Cls | AE16: 42370.20556 | AF16: 42370.35444 | AG16: 1.900763359 | AH16: 42370.34666 | AI16: 2.000763359 | AJ16: 42370.39146 | AK16: 2.634351145 | AL16: 42370.39146 | AM16: 2.634351145 | AN16: 42370.3832 | AO16: 2.634351145 | AP16: 42370.38882 | AQ16: 2.425954198 | AR16: 42370.35278 | AS16: 42370.37708 | AT16: 42370.35278 | AU16: 2.100763359 | AV16: 42370.35542 | AW16: 2.109160305 | AX16: 42370.34666 | AY16: 1.900763359 | AZ16: 42370.34319 | BA16: 1.909160305 | BB16: 42370.33757 | BC16: 2.009160305 | BD16: 42370.29243 | BE16: 1.575572519 | BF16: 42370.3875 | BH16: 42370.40486 | BI16: 42370.39444
A17: 0 | B17: =IF(Instructions!$C$2="BST",A17,0) -> 0 | C17: 2020-01-02T14:55:00 | D17: 2020-01-02 | F17: 1 | I17: 4 | K17: 42370.62153 | L17: 4.87 | M17: HW | N17: 0.3304347826 | O17: 14:55:00 | P17: 12:00:00 | Q17: 18:00:00 | R17: 0.5138888889 | S17: 42370.63383 | T17: 6.528695652 | U17: 42370.6998 | V17: 42370.63561 | W17: 6.295652174 | X17: 42370.57986 | Y17: 42370.60774 | Z17: 4.796521739 | AA17: 42370.59732 | AB17: 42370.60069 | AC17: 4.396521739 | AD17: Opn | AE17: 42370.48611 | AF17: 42370.60219 | AG17: 3.863478261 | AH17: 42370.5762 | AI17: 4.230434783 | AJ17: 42370.63551 | AK17: 6.428695652 | AL17: 42370.6372 | AM17: 6.36173913 | AN17: 42370.63204 | AO17: 6.195652174 | AP17: 42370.6371 | AQ17: 5.595652174 | AR17: 42370.61111 | AS17: 42370.63194 | AT17: 42370.59703 | AU17: 4.396521739 | AV17: 42370.59703 | AW17: 4.196521739 | AX17: 42370.57451 | AY17: 3.929565217 | AZ17: 42370.57104 | BA17: 3.796521739 | BB17: 42370.56756 | BC17: 3.763478261 | BD17: 42370.51755 | BE17: 3.596521739 | BF17: 42370.61111 | BH17: 42370.66319 | BI17: 42370.65278
A18: 0 | B18: =IF(Instructions!$C$2="BST",A18,0) -> 0 | C18: 2020-01-02T21:19:00 | D18: 2020-01-02 | F18: 1 | I18: 4 | K18: 42370.88819 | L18: 1.94 | M18: LW | N18: 0.06106870229 | O18: 21:19:00 | P18: 17:00:00 | Q18: 23:00:00 | R18: 0.2805555556 | S18: 42370.9164 | T18: 2.396183206 | U18: 42370.98237 | V18: 42370.90763 | W18: 2.202290076 | X18: 42370.84653 | Y18: 42370.89404 | Z18: =IF($M18="HW",Y$2+(Y$1-Y$2)*$N18,Y$3+(Y$4-Y$3)*$N18) -> 1.926717557 | AA18: 42370.87193 | AB18: 42370.88862 | AC18: =IF($M18="HW",AB$2+(AB$1-AB$2)*$N18,AB$3+(AB$4-AB$3)*$N18) -> 1.820610687 | AD18: Cls | AE18: 42370.71528 | AF18: 42370.88083 | AG18: =IF($M18="HW",AF$2+(AF$1-AF$2)*$N18,AF$3+(AF$4-AF$3)*$N18) -> 1.726717557 | AH18: 42370.87236 | AI18: =IF($M18="HW",AH$2+(AH$1-AH$2)*$N18,AH$3+(AH$4-AH$3)*$N18) -> 1.826717557 | AJ18: 42370.91542 | AK18: =IF($M18="HW",AJ$2+(AJ$1-AJ$2)*$N18,AJ$3+(AJ$4-AJ$3)*$N18) -> 2.402290076 | AL18: 42370.91542 | AM18: =IF($M18="HW",AL$2+(AL$1-AL$2)*$N18,AL$3+(AL$4-AL$3)*$N18) -> 2.402290076 | AN18: 42370.9075 | AO18: =IF($M18="HW",AN$2+(AN$1-AN$2)*$N18,AN$3+(AN$4-AN$3)*$N18) -> 2.402290076 | AP18: 42370.91347 | AQ18: =IF($M18="HW",AP$2+(AP$1-AP$2)*$N18,AP$3+(AP$4-AP$3)*$N18) -> 2.208396947 | AR18: 42370.87778 | AS18: 42370.90208 | AT18: 42370.87778 | AU18: =IF($M18="HW",AT$2+(AT$1-AT$2)*$N18,AT$3+(AT$4-AT$3)*$N18) -> 1.926717557 | AV18: 42370.87973 | AW18: =IF($M18="HW",AV$2+(AV$1-AV$2)*$N18,AV$3+(AV$4-AV$3)*$N18) -> 1.920610687 | AX18: 42370.87236 | AY18: =IF($M18="HW",AX$2+(AX$1-AX$2)*$N18,AX$3+(AX$4-AX$3)*$N18) -> 1.726717557 | AZ18: 42370.86889 | BA18: =IF($M18="HW",AZ$2+(AZ$1-AZ$2)*$N18,AZ$3+(AZ$4-AZ$3)*$N18) -> 1.720610687 | BB18: 42370.86291 | BC18: =IF($M18="HW",BB$2+(BB$1-BB$2)*$N18,BB$3+(BB$4-BB$3)*$N18) -> 1.820610687 | BD18: 42370.81778 | BE18: =IF($M18="HW",BD$2+(BD$1-BD$2)*$N18,BD$3+(BD$4-BD$3)*$N18) -> 1.445038168 | BF18: 42370.9125 | BH18: 42370.92986 | BI18: 42370.91944
A19: 0 | B19: =IF(Instructions!$C$2="BST",A19,0) -> 0 | C19: 2020-01-03T03:34:00 | D19: 2020-01-03 | E19: 2020-01-03 | F19: 1 | G19: Jan | H19: 3 | I19: 5 | J19: Fri | K19: 42371.14861 | L19: 4.42 | M19: HW | N19: -0.06086956522 | O19: 03:34:00 | P19: 00:00:00 | Q19: 06:00:00 | R19: 0.4055555556 | S19: 42371.15978 | T19: 5.902608696 | U19: 42371.22575 | V19: 42371.16119 | W19: 5.708695652 | X19: 42371.10694 | Y19: 42371.13407 | Z19: 4.326956522 | AA19: 42371.12365 | AB19: 42371.12778 | AC19: 3.926956522 | AD19: Opn | AE19: 42371.01319 | AF19: 42371.13115 | AG19: 3.433043478 | AH19: 42371.10478 | AI19: 3.839130435 | AJ19: 42371.16184 | AK19: 5.802608696 | AL19: 42371.16391 | AM19: 5.696521739 | AN19: 42371.15837 | AO19: 5.608695652 | AP19: 42371.16456 | AQ19: 5.008695652 | AR19: 42371.13819 | AS19: 42371.15903 | AT19: 42371.12562 | AU19: 3.926956522 | AV19: 42371.12562 | AW19: 3.726956522 | AX19: 42371.10272 | AY19: 3.420869565 | AZ19: 42371.09925 | BA19: 3.326956522 | BB19: 42371.09578 | BC19: 3.333043478 | BD19: 42371.04313 | BE19: 3.126956522 | BF19: 42371.13819 | BH19: 42371.19028 | BI19: 42371.17986
A20: 0 | B20: =IF(Instructions!$C$2="BST",A20,0) -> 0 | C20: 2020-01-03T09:37:00 | D20: 2020-01-03 | E20: Fri | F20: 1 | I20: 5 | K20: 42371.40069 | L20: 2.29 | M20: LW | N20: -0.2061068702 | O20: 09:37:00 | P20: 05:00:00 | Q20: 11:00:00 | R20: 0.2305555556 | S20: 42371.4282 | T20: 2.850381679 | U20: 42371.49417 | V20: 42371.421 | W20: 2.629770992 | X20: 42371.35903 | Y20: 42371.4055 | Z20: 2.247328244 | AA20: 42371.38547 | AB20: 42371.40042 | AC20: 2.167938931 | AD20: Cls | AE20: 42371.24236 | AF20: 42371.39402 | AG20: 2.047328244 | AH20: 42371.3852 | AI20: 2.147328244 | AJ20: 42371.4274 | AK20: 2.829770992 | AL20: 42371.4274 | AM20: 2.829770992 | AN20: 42371.41966 | AO20: 2.829770992 | AP20: 42371.4258 | AQ20: 2.609160305 | AR20: 42371.39028 | AS20: 42371.41458 | AT20: 42371.39028 | AU20: 2.247328244 | AV20: 42371.39188 | AW20: 2.267938931 | AX20: 42371.3852 | AY20: 2.047328244 | AZ20: 42371.38173 | BA20: 2.067938931 | BB20: 42371.37559 | BC20: 2.167938931 | BD20: 42371.33045 | BE20: 1.685496183 | BF20: 42371.425 | BH20: 42371.44236 | BI20: 42371.43194
A21: 0 | B21: =IF(Instructions!$C$2="BST",A21,0) -> 0 | C21: 2020-01-03T15:50:00 | D21: 2020-01-03 | F21: 1 | I21: 5 | K21: 42371.65972 | L21: 4.71 | M21: HW | N21: 0.1913043478 | O21: 15:50:00 | P21: 12:00:00 | Q21: 18:00:00 | R21: 0.3611111111 | S21: 42371.67043 | T21: 6.306086957 | U21: 42371.7364 | V21: 42371.67168 | W21: 6.086956522 | X21: 42371.61806 | Y21: 42371.64487 | Z21: 4.629565217 | AA21: 42371.63445 | AB21: 42371.63889 | AC21: 4.229565217 | AD21: Opn | AE21: 42371.52431 | AF21: 42371.64304 | AG21: 3.710434783 | AH21: 42371.61651 | AI21: 4.091304348 | AJ21: 42371.67265 | AK21: 6.206086957 | AL21: 42371.67486 | AM21: 6.125217391 | AN21: 42371.66917 | AO21: 5.986956522 | AP21: 42371.67583 | AQ21: 5.386956522 | AR21: 42371.64931 | AS21: 42371.67014 | AT21: 42371.63735 | AU21: 4.229565217 | AV21: 42371.63735 | AW21: 4.029565217 | AX21: 42371.61429 | AY21: 3.748695652 | AZ21: 42371.61082 | BA21: 3.629565217 | BB21: 42371.60735 | BC21: 3.610434783 | BD21: 42371.55363 | BE21: 3.429565217 | BF21: 42371.64931 | BH21: 42371.70139 | BI21: 42371.69097
A22: 0 | B22: =IF(Instructions!$C$2="BST",A22,0) -> 0 | C22: 2020-01-03T22:16:00 | D22: 2020-01-03 | F22: 1 | I22: 5 | K22: 42371.92778 | L22: 2.06 | M22: LW | N22: -0.03053435115 | O22: 22:16:00 | P22: 17:00:00 | Q22: 23:00:00 | R22: 0.1222222222 | S22: 42371.95378 | T22: 2.551908397 | U22: 42372.01975 | V22: 42371.94996 | W22: 2.348854962 | X22: 42371.88611 | Y22: 42371.93032 | Z22: 2.036641221 | AA22: 42371.91481 | AB22: 42371.926 | AC22: 1.939694656 | AD22: Cls | AE22: 42371.75347 | AF22: 42371.92261 | AG22: 1.836641221 | AH22: 42371.91304 | AI22: 1.936641221 | AJ22: 42371.95336 | AK22: 2.548854962 | AL22: 42371.95336 | AM22: 2.548854962 | AN22: 42371.94599 | AO22: 2.548854962 | AP22: 42371.95251 | AQ22: 2.345801527 | AR22: 42371.91736 | AS22: 42371.94167 | AT22: 42371.91736 | AU22: 2.036641221 | AV22: 42371.91821 | AW22: 2.039694656 | AX22: 42371.91304 | AY22: 1.836641221 | AZ22: 42371.90957 | BA22: 1.839694656 | BB22: 42371.90305 | BC22: 1.939694656 | BD22: 42371.85791 | BE22: 1.527480916 | BF22: 42371.95208 | BH22: 42371.96944 | BI22: 42371.95903
A23: 0 | B23: =IF(Instructions!$C$2="BST",A23,0) -> 0 | C23: 2020-01-04T04:36:00 | D23: 2020-01-04 | E23: 2020-01-04 | F23: 1 | G23: Jan | H23: 4 | I23: 6 | J23: Sat | K23: 42372.19167 | L23: 4.36 | M23: HW | N23: -0.1130434783 | O23: 04:36:00 | P23: 00:00:00 | Q23: 06:00:00 | R23: 0.2333333333 | S23: 42372.20104 | T23: 5.819130435 | U23: 42372.26701 | V23: 42372.20185 | W23: 5.630434783 | X23: 42372.15 | Y23: 42372.17593 | Z23: 4.264347826 | AA23: 42372.16551 | AB23: 42372.17083 | AC23: 3.864347826 | AD23: Opn | AE23: 42372.05625 | AF23: 42372.1772 | AG23: 3.375652174 | AH23: 42372.15023 | AI23: 3.786956522 | AJ23: 42372.2037 | AK23: 5.719130435 | AL23: 42372.20637 | AM23: 5.607826087 | AN23: 42372.20023 | AO23: 5.530434783 | AP23: 42372.20822 | AQ23: 4.930434783 | AR23: 42372.18125 | AS23: 42372.20208 | AT23: 42372.17106 | AU23: 3.864347826 | AV23: 42372.17106 | AW23: 3.664347826 | AX23: 42372.14757 | AY23: 3.353043478 | AZ23: 42372.1441 | BA23: 3.264347826 | BB23: 42372.14062 | BC23: 3.275652174 | BD23: 42372.0838 | BE23: 3.064347826 | BF23: 42372.18125 | BH23: 42372.23333 | BI23: 42372.22292
A24: 0 | B24: =IF(Instructions!$C$2="BST",A24,0) -> 0 | C24: 2020-01-04T10:41:00 | D24: 2020-01-04 | E24: Sat | F24: 1 | I24: 6 | K24: 42372.44514 | L24: 2.39 | M24: LW | N24: -0.2824427481 | O24: 10:41:00 | P24: 05:00:00 | Q24: 11:00:00 | R24: 0.05277777777 | S24: 42372.47018 | T24: 2.980152672 | U24: 42372.53615 | V24: 42372.46853 | W24: 2.751908397 | X24: 42372.40347 | Y24: 42372.44624 | Z24: 2.338931298 | AA24: 42372.43362 | AB24: 42372.4424 | AC24: 2.267175573 | AD24: Cls | AE24: 42372.28542 | AF24: 42372.44093 | AG24: 2.138931298 | AH24: 42372.43088 | AI24: 2.238931298 | AJ24: 42372.46999 | AK24: 2.951908397 | AL24: 42372.46999 | AM24: 2.951908397 | AN24: 42372.46287 | AO24: 2.951908397 | AP24: 42372.46963 | AQ24: 2.723664122 | AR24: 42372.43472 | AS24: 42372.45903 | AT24: 42372.43472 | AU24: 2.338931298 | AV24: 42372.43509 | AW24: 2.367175573 | AX24: 42372.43088 | AY24: 2.138931298 | AZ24: 42372.42741 | BA24: 2.167175573 | BB24: 42372.42065 | BC24: 2.267175573 | BD24: 42372.37551 | BE24: 1.754198473 | BF24: 42372.46944 | BH24: 42372.48681 | BI24: 42372.47639
A25: 0 | B25: =IF(Instructions!$C$2="BST",A25,0) -> 0 | C25: 2020-01-04T16:53:00 | D25: 2020-01-04 | F25: 1 | I25: 6 | K25: 42372.70347 | L25: 4.62 | M25: HW | N25: 0.1130434783 | O25: 16:53:00 | P25: 12:00:00 | Q25: 18:00:00 | R25: 0.1861111111 | S25: 42372.71236 | T25: 6.180869565 | U25: 42372.77833 | V25: 42372.713 | W25: 5.969565217 | X25: 42372.66181 | Y25: 42372.6874 | Z25: 4.535652174 | AA25: 42372.67699 | AB25: 42372.68264 | AC25: 4.135652174 | AD25: Opn | AE25: 42372.56806 | AF25: 42372.68982 | AG25: 3.624347826 | AH25: 42372.66269 | AI25: 4.013043478 | AJ25: 42372.71518 | AK25: 6.080869565 | AL25: 42372.71801 | AM25: 5.992173913 | AN25: 42372.71171 | AO25: 5.869565217 | AP25: 42372.72019 | AQ25: 5.269565217 | AR25: 42372.69306 | AS25: 42372.71389 | AT25: 42372.68353 | AU25: 4.135652174 | AV25: 42372.68353 | AW25: 3.935652174 | AX25: 42372.65987 | AY25: 3.646956522 | AZ25: 42372.65639 | BA25: 3.535652174 | BB25: 42372.65292 | BC25: 3.524347826 | BD25: 42372.59495 | BE25: 3.335652174 | BF25: 42372.69306 | BH25: 42372.74514 | BI25: 42372.73472
A26: 0 | B26: =IF(Instructions!$C$2="BST",A26,0) -> 0 | C26: 2020-01-04T23:21:00 | D26: 2020-01-04 | F26: 1 | I26: 6 | K26: 42372.97292 | L26: 2.09 | M26: LW | N26: -0.0534351145 | O26: 23:21:00 | P26: 1.208333333 | Q26: 23:00:00 | R26: 0.05833333333 | S26: 42372.99803 | T26: 2.590839695 | U26: 42373.064 | V26: 42372.99621 | W26: 2.385496183 | X26: 42372.93125 | Y26: 42372.97413 | Z26: =IF($M26="HW",Y$2+(Y$1-Y$2)*$N26,Y$3+(Y$4-Y$3)*$N26) -> 2.064122137 | AA26: 42372.96128 | AB26: 42372.97025 | AC26: =IF($M26="HW",AB$2+(AB$1-AB$2)*$N26,AB$3+(AB$4-AB$3)*$N26) -> 1.969465649 | AD26: Cls | AE26: 42372.79722 | AF26: 42372.96863 | AG26: =IF($M26="HW",AF$2+(AF$1-AF$2)*$N26,AF$3+(AF$4-AF$3)*$N26) -> 1.864122137 | AH26: 42372.95862 | AI26: =IF($M26="HW",AH$2+(AH$1-AH$2)*$N26,AH$3+(AH$4-AH$3)*$N26) -> 1.964122137 | AJ26: 42372.99783 | AK26: =IF($M26="HW",AJ$2+(AJ$1-AJ$2)*$N26,AJ$3+(AJ$4-AJ$3)*$N26) -> 2.585496183 | AL26: 42372.99783 | AM26: =IF($M26="HW",AL$2+(AL$1-AL$2)*$N26,AL$3+(AL$4-AL$3)*$N26) -> 2.585496183 | AN26: 42372.99068 | AO26: =IF($M26="HW",AN$2+(AN$1-AN$2)*$N26,AN$3+(AN$4-AN$3)*$N26) -> 2.585496183 | AP26: 42372.99742 | AQ26: =IF($M26="HW",AP$2+(AP$1-AP$2)*$N26,AP$3+(AP$4-AP$3)*$N26) -> 2.380152672 | AR26: 42372.9625 | AS26: 42372.98681 | AT26: 42372.9625 | AU26: =IF($M26="HW",AT$2+(AT$1-AT$2)*$N26,AT$3+(AT$4-AT$3)*$N26) -> 2.064122137 | AV26: 42372.96291 | AW26: =IF($M26="HW",AV$2+(AV$1-AV$2)*$N26,AV$3+(AV$4-AV$3)*$N26) -> 2.069465649 | AX26: 42372.95862 | AY26: =IF($M26="HW",AX$2+(AX$1-AX$2)*$N26,AX$3+(AX$4-AX$3)*$N26) -> 1.864122137 | AZ26: 42372.95515 | BA26: =IF($M26="HW",AZ$2+(AZ$1-AZ$2)*$N26,AZ$3+(AZ$4-AZ$3)*$N26) -> 1.869465649 | BB26: 42372.94841 | BC26: =IF($M26="HW",BB$2+(BB$1-BB$2)*$N26,BB$3+(BB$4-BB$3)*$N26) -> 1.969465649 | BD26: 42372.90327 | BE26: =IF($M26="HW",BD$2+(BD$1-BD$2)*$N26,BD$3+(BD$4-BD$3)*$N26) -> 1.548091603 | BF26: 42372.99722 | BH26: 42373.01458 | BI26: 42373.00417
A27: 0 | B27: =IF(Instructions!$C$2="BST",A27,0) -> 0 | C27: 2020-01-05T05:46:00 | D27: 2020-01-05 | E27: 2020-01-05 | F27: 1 | G27: Jan | H27: 5 | I27: 7 | J27: Sun | K27: 42373.24028 | L27: 4.4 | M27: HW | N27: -0.07826086957 | O27: 05:46:00 | P27: 00:00:00 | Q27: 06:00:00 | R27: 0.0388888889 | S27: 42373.24763 | T27: 5.874782609 | U27: 42373.3136 | V27: 42373.24776 | W27: 5.682608696 | X27: 42373.19861 | Y27: 42373.22319 | Z27: 4.306086957 | AA27: 42373.21277 | AB27: 42373.21944 | AC27: 3.906086957 | AD27: Opn | AE27: 42373.10486 | AF27: 42373.22919 | AG27: 3.413913043 | AH27: 42373.20154 | AI27: 3.82173913 | AJ27: 42373.25096 | AK27: 5.774782609 | AL27: 42373.2543 | AM27: 5.666956522 | AN27: 42373.24749 | AO27: 5.582608696 | AP27: 42373.2575 | AQ27: 4.982608696 | AR27: 42373.22986 | AS27: 42373.25069 | AT27: 42373.22238 | AU27: 3.906086957 | AV27: 42373.22238 | AW27: 3.706086957 | AX27: 42373.19821 | AY27: 3.39826087 | AZ27: 42373.19473 | BA27: 3.306086957 | BB27: 42373.19126 | BC27: 3.313913043 | BD27: 42373.12971 | BE27: 3.106086957 | BF27: 42373.22986 | BH27: 42373.28194 | BI27: 42373.27153
A28: 0 | B28: =IF(Instructions!$C$2="BST",A28,0) -> 0 | C28: 2020-01-05T11:52:00 | D28: 2020-01-05 | E28: Sun | F28: 1 | I28: 7 | K28: 42373.49444 | L28: 2.36 | M28: LW | N28: -0.2595419847 | O28: 11:52:00 | P28: 17:00:00 | Q28: 11:00:00 | R28: 0.1444444444 | S28: =IF($M28="HW",$K28+S$6+(S$5-S$6)*$R28,$K28+S$8+(S$7-S$8)*$R28) -> 42373.52076 | T28: 2.941221374 | U28: 42373.58673 | V28: 42373.51624 | W28: 2.715267176 | X28: =IF($M28="HW",$K28+X$6+(X$5-X$6)*$R28,$K28+X$8+(X$7-X$8)*$R28) -> 42373.45278 | Y28: 42373.49745 | Z28: 2.311450382 | AA28: 42373.48102 | AB28: 42373.49298 | AC28: 2.23740458 | AD28: Cls | AE28: 42373.33403 | AF28: 42373.48897 | AG28: 2.111450382 | AH28: 42373.47955 | AI28: 2.211450382 | AJ28: 42373.52025 | AK28: 2.915267176 | AL28: 42373.52025 | AM28: 2.915267176 | AN28: 42373.51281 | AO28: 2.915267176 | AP28: 42373.51925 | AQ28: 2.689312977 | AR28: =IF($M28="HW",$K28+AR$6+(AR$5-AR$6)*$R28,$K28+AR$8+(AR$7-AR$8)*$R28) -> 42373.48403 | AS28: 42373.50833 | AT28: 42373.48403 | AU28: 2.311450382 | AV28: 42373.48503 | AW28: 2.33740458 | AX28: 42373.47955 | AY28: 2.111450382 | AZ28: 42373.47608 | BA28: 2.13740458 | BB28: 42373.46964 | BC28: 2.23740458 | BD28: 42373.4245 | BE28: 1.733587786 | BF28: =IF($M28="HW",$K28+BF$6+(BF$5-BF$6)*$R28,$K28+BF$8+(BF$7-BF$8)*$R28) -> 42373.51875 | BH28: 42373.53611 | BI28: 42373.52569
A29: 0 | B29: =IF(Instructions!$C$2="BST",A29,0) -> 0 | C29: 2020-01-05T18:01:00 | D29: 2020-01-05 | F29: 1 | I29: 7 | K29: 42373.75069 | L29: 4.63 | M29: HW | N29: 0.1217391304 | O29: 18:01:00 | P29: 1 | Q29: 18:00:00 | R29: 0.002777777787 | S29: 42373.75767 | T29: 6.194782609 | U29: 42373.82364 | V29: 42373.75768 | W29: 5.982608696 | X29: 42373.70903 | Y29: 42373.73335 | Z29: 4.546086957 | AA29: 42373.72294 | AB29: 42373.72986 | AC29: 4.146086957 | AD29: Opn | AE29: 42373.61528 | AF29: 42373.74023 | AG29: 3.633913043 | AH29: 42373.71246 | AI29: 4.02173913 | AJ29: 42373.76113 | AK29: 6.094782609 | AL29: 42373.76459 | AM29: 6.006956522 | AN29: 42373.75766 | AO29: 5.882608696 | AP29: 42373.76805 | AQ29: 5.282608696 | AR29: 42373.74028 | AS29: 42373.76111 | AT29: 42373.73329 | AU29: 4.146086957 | AV29: 42373.73329 | AW29: 3.946086957 | AX29: 42373.709 | AY29: 3.65826087 | AZ29: 42373.70553 | BA29: 3.546086957 | BB29: 42373.70205 | BC29: 3.533913043 | BD29: 42373.63962 | BE29: 3.346086957 | BF29: 42373.74028 | BH29: 42373.79236 | BI29: 42373.78194
A30: 0 | B30: =IF(Instructions!$C$2="BST",A30,0) -> 0 | C30: 2020-01-06T00:26:00 | D30: 2020-01-06 | E30: 2020-01-06 | F30: 1 | G30: Jan | H30: 6 | I30: 1 | J30: Mon | K30: 42374.01806 | L30: 2.02 | M30: LW | N30: 0 | O30: 00:26:00 | P30: 05:00:00 | Q30: -0.04166666667 | R30: 0.2388888889 | S30: 42374.04568 | T30: 2.5 | U30: 42374.11165 | V30: 42374.03821 | W30: 2.3 | X30: 42373.97639 | Y30: 42374.02303 | Z30: 2 | AA30: 42374.00266 | AB30: 42374.0179 | AC30: 1.9 | AD30: Cls | AE30: 42373.84444 | AF30: 42374.01127 | AG30: 1.8 | AH30: 42374.00251 | AI30: 1.9 | AJ30: 42374.04485 | AK30: 2.5 | AL30: 42374.04485 | AM30: 2.5 | AN30: 42374.03708 | AO30: 2.5 | AP30: 42374.04319 | AQ30: 2.3 | AR30: 42374.00764 | AS30: 42374.03194 | AT30: 42374.00764 | AU30: 2 | AV30: 42374.0093 | AW30: 2 | AX30: 42374.00251 | AY30: 1.8 | AZ30: 42373.99904 | BA30: 1.8 | BB30: 42373.99292 | BC30: 1.9 | BD30: 42373.94778 | BE30: 1.5 | BF30: 42374.04236 | BH30: 42374.05972 | BI30: 42374.04931
A31: 0 | B31: =IF(Instructions!$C$2="BST",A31,0) -> 0 | C31: 2020-01-06T06:52:00 | D31: 2020-01-06 | E31: Mon | F31: 1 | I31: 1 | K31: 42374.28611 | L31: 4.55 | M31: HW | N31: 0.05217391304 | O31: 06:52:00 | P31: 12:00:00 | Q31: 06:00:00 | R31: 0.1444444444 | S31: 42374.29456 | T31: 6.083478261 | U31: 42374.36053 | V31: 42374.29506 | W31: 5.87826087 | X31: 42374.24444 | Y31: 42374.26975 | Z31: 4.462608696 | AA31: 42374.25934 | AB31: 42374.26528 | AC31: 4.062608696 | AD31: Opn | AE31: 42374.15069 | AF31: 42374.27319 | AG31: 3.557391304 | AH31: 42374.24591 | AI31: 3.952173913 | AJ31: 42374.29753 | AK31: 5.983478261 | AL31: 42374.3005 | AM31: 5.888695652 | AN31: 42374.29406 | AO31: 5.77826087 | AP31: 42374.30297 | AQ31: 5.17826087 | AR31: 42374.27569 | AS31: 42374.29653 | AT31: 42374.26674 | AU31: 4.062608696 | AV31: 42374.26674 | AW31: 3.862608696 | AX31: 42374.24294 | AY31: 3.567826087 | AZ31: 42374.23947 | BA31: 3.462608696 | BB31: 42374.236 | BC31: 3.457391304 | BD31: 42374.17701 | BE31: 3.262608696 | BF31: 42374.27569 | BH31: 42374.32778 | BI31: 42374.31736
A32: 0 | B32: =IF(Instructions!$C$2="BST",A32,0) -> 0 | C32: 2020-01-06T12:56:00 | D32: 2020-01-06 | F32: 1 | I32: 1 | K32: 42374.53889 | L32: 2.21 | M32: LW | N32: -0.1450381679 | O32: 12:56:00 | P32: 17:00:00 | Q32: 11:00:00 | R32: 0.3222222222 | S32: 42374.56767 | T32: 2.746564885 | U32: 42374.63364 | V32: 42374.5576 | W32: 2.532061069 | X32: 42374.49722 | Y32: 42374.5456 | Z32: 2.174045802 | AA32: 42374.52176 | AB32: 42374.53989 | AC32: 2.088549618 | AD32: Cls | AE32: 42374.37986 | AF32: 42374.53094 | AG32: 1.974045802 | AH32: 42374.52276 | AI32: 2.074045802 | AJ32: 42374.56655 | AK32: 2.732061069 | AL32: 42374.56655 | AM32: 2.732061069 | AN32: 42374.55849 | AO32: 2.732061069 | AP32: 42374.56431 | AQ32: 2.517557252 | AR32: 42374.52847 | AS32: 42374.55278 | AT32: 42374.52847 | AU32: 2.174045802 | AV32: 42374.53071 | AW32: 2.188549618 | AX32: 42374.52276 | AY32: 1.974045802 | AZ32: 42374.51929 | BA32: 1.988549618 | BB32: 42374.51346 | BC32: 2.088549618 | BD32: 42374.46833 | BE32: 1.630534351 | BF32: 42374.56319 | BH32: 42374.58056 | BI32: 42374.57014
A33: 0 | B33: =IF(Instructions!$C$2="BST",A33,0) -> 0 | C33: 2020-01-06T19:05:00 | D33: 2020-01-06 | F33: 1 | I33: 1 | K33: 42374.79514 | L33: 4.75 | M33: HW | N33: 0.2260869565 | O33: 19:05:00 | P33: 1 | Q33: 18:00:00 | R33: 0.1805555556 | S33: 42374.80396 | T33: 6.36173913 | U33: 42374.86994 | V33: 42374.80459 | W33: 6.139130435 | X33: 42374.75347 | Y33: 42374.77903 | Z33: 4.671304348 | AA33: 42374.76861 | AB33: 42374.77431 | AC33: 4.271304348 | AD33: Opn | AE33: 42374.65972 | AF33: 42374.78159 | AG33: 3.748695652 | AH33: 42374.75444 | AI33: 4.126086957 | AJ33: 42374.80681 | AK33: 6.26173913 | AL33: 42374.80965 | AM33: 6.184347826 | AN33: 42374.80334 | AO33: 6.039130435 | AP33: 42374.81187 | AQ33: 5.439130435 | AR33: 42374.78472 | AS33: 42374.80556 | AT33: 42374.77527 | AU33: 4.271304348 | AV33: 42374.77527 | AW33: 4.071304348 | AX33: 42374.75159 | AY33: 3.793913043 | AZ33: 42374.74812 | BA33: 3.671304348 | BB33: 42374.74465 | BC33: 3.648695652 | BD33: 42374.68654 | BE33: 3.471304348 | BF33: 42374.78472 | BH33: 42374.83681 | BI33: 42374.82639
A34: 0 | B34: =IF(Instructions!$C$2="BST",A34,0) -> 0 | C34: 2020-01-07T01:22:00 | D34: 2020-01-07 | E34: 2020-01-07 | F34: 1 | G34: Jan | H34: 7 | I34: 2 | J34: Tue | K34: 42375.05694 | L34: 1.86 | M34: LW | N34: 0.1221374046 | O34: 01:22:00 | P34: 05:00:00 | Q34: -0.04166666667 | R34: 0.3944444444 | S34: 42375.08673 | T34: 2.292366412 | U34: 42375.1527 | V34: 42375.0744 | W34: 2.104580153 | X34: 42375.01528 | Y34: 42375.06516 | Z34: 1.853435115 | AA34: 42375.03831 | AB34: 42375.05895 | AC34: 1.741221374 | AD34: Cls | AE34: 42374.88889 | AF34: 42375.04799 | AG34: 1.653435115 | AH34: 42375.04032 | AI34: 1.753435115 | AJ34: 42375.08536 | AK34: 2.304580153 | AL34: 42375.08536 | AM34: 2.304580153 | AN34: 42375.07704 | AO34: 2.304580153 | AP34: 42375.08262 | AQ34: 2.116793893 | AR34: 42375.04653 | AS34: 42375.07083 | AT34: 42375.04653 | AU34: 1.853435115 | AV34: 42375.04927 | AW34: 1.841221374 | AX34: 42375.04032 | AY34: 1.653435115 | AZ34: 42375.03684 | BA34: 1.641221374 | BB34: 42375.03127 | BC34: 1.741221374 | BD34: 42374.98613 | BE34: 1.390076336 | BF34: 42375.08125 | BH34: 42375.09861 | BI34: 42375.08819
A35: 0 | B35: =IF(Instructions!$C$2="BST",A35,0) -> 0 | C35: 2020-01-07T07:46:00 | D35: 2020-01-07 | E35: Tue | F35: 1 | I35: 2 | K35: 42375.32361 | L35: 4.78 | M35: HW | N35: 0.252173913 | O35: 07:46:00 | P35: 12:00:00 | Q35: 06:00:00 | R35: 0.2944444444 | S35: 42375.33362 | T35: 6.403478261 | U35: 42375.39959 | V35: 42375.33465 | W35: 6.17826087 | X35: 42375.28194 | Y35: 42375.30829 | Z35: 4.702608696 | AA35: 42375.29788 | AB35: 42375.30278 | AC35: 4.302608696 | AD35: Opn | AE35: 42375.18819 | AF35: 42375.30808 | AG35: 3.777391304 | AH35: 42375.28133 | AI35: 4.152173913 | AJ35: 42375.33607 | AK35: 6.303478261 | AL35: 42375.33852 | AM35: 6.228695652 | AN35: 42375.3326 | AO35: 6.07826087 | AP35: 42375.33995 | AQ35: 5.47826087 | AR35: 42375.31319 | AS35: 42375.33403 | AT35: 42375.30216 | AU35: 4.302608696 | AV35: 42375.30216 | AW35: 4.102608696 | AX35: 42375.27888 | AY35: 3.827826087 | AZ35: 42375.27541 | BA35: 3.702608696 | BB35: 42375.27193 | BC35: 3.677391304 | BD35: 42375.21659 | BE35: 3.502608696 | BF35: 42375.31319 | BH35: 42375.36528 | BI35: 42375.35486
A36: 0 | B36: =IF(Instructions!$C$2="BST",A36,0) -> 0 | C36: 2020-01-07T13:50:00 | D36: 2020-01-07 | F36: 1 | I36: 2 | K36: 42375.57639 | L36: 1.97 | M36: LW | N36: 0.03816793893 | O36: 13:50:00 | P36: 17:00:00 | Q36: 11:00:00 | R36: 0.4722222222 | S36: 42375.60725 | T36: 2.435114504 | U36: 42375.67323 | V36: 42375.5925 | W36: 2.238931298 | X36: 42375.53472 | Y36: 42375.58623 | Z36: 1.954198473 | AA36: 42375.55613 | AB36: 42375.57948 | AC36: 1.850381679 | AD36: Cls | AE36: 42375.41736 | AF36: 42375.56636 | AG36: 1.754198473 | AH36: 42375.55922 | AI36: 1.854198473 | AJ36: 42375.60561 | AK36: 2.438931298 | AL36: 42375.60561 | AM36: 2.438931298 | AN36: 42375.59703 | AO36: 2.438931298 | AP36: 42375.60233 | AQ36: 2.242748092 | AR36: 42375.56597 | AS36: 42375.59028 | AT36: 42375.56597 | AU36: 1.954198473 | AV36: 42375.56925 | AW36: 1.950381679 | AX36: 42375.55922 | AY36: 1.754198473 | AZ36: 42375.55575 | BA36: 1.750381679 | BB36: 42375.55044 | BC36: 1.850381679 | BD36: 42375.5053 | BE36: 1.465648855 | BF36: 42375.60069 | BH36: 42375.61806 | BI36: 42375.60764
A37: 0 | B37: =IF(Instructions!$C$2="BST",A37,0) -> 0 | C37: 2020-01-07T20:00:00 | D37: 2020-01-07 | F37: 1 | I37: 2 | K37: 42375.83333 | L37: 4.93 | M37: HW | N37: 0.3826086957 | O37: 20:00:00 | P37: 1 | Q37: 18:00:00 | R37: 0.3333333333 | S37: 42375.84375 | T37: 6.612173913 | U37: 42375.90972 | V37: 42375.84491 | W37: 6.373913043 | X37: 42375.79167 | Y37: 42375.81829 | Z37: 4.859130435 | AA37: 42375.80787 | AB37: 42375.8125 | AC37: 4.459130435 | AD37: Opn | AE37: 42375.69792 | AF37: 42375.81713 | AG37: 3.920869565 | AH37: 42375.79051 | AI37: 4.282608696 | AJ37: 42375.84606 | AK37: 6.512173913 | AL37: 42375.84838 | AM37: 6.450434783 | AN37: 42375.84259 | AO37: 6.273913043 | AP37: 42375.84954 | AQ37: 5.673913043 | AR37: 42375.82292 | AS37: 42375.84375 | AT37: 42375.81134 | AU37: 4.459130435 | AV37: 42375.81134 | AW37: 4.259130435 | AX37: 42375.78819 | AY37: 3.997391304 | AZ37: 42375.78472 | BA37: 3.859130435 | BB37: 42375.78125 | BC37: 3.820869565 | BD37: 42375.72685 | BE37: 3.659130435 | BF37: 42375.82292 | BH37: 42375.875 | BI37: 42375.86458
A38: 0 | B38: =IF(Instructions!$C$2="BST",A38,0) -> 0 | C38: 2020-01-08T02:10:00 | D38: 2020-01-08 | E38: 2020-01-08 | F38: 1 | G38: Jan | H38: 8 | I38: 3 | J38: Wed | K38: 42376.09028 | L38: 1.66 | M38: LW | N38: 0.2748091603 | O38: 02:10:00 | P38: 05:00:00 | Q38: -0.04166666667 | R38: 0.5277777778 | S38: 42376.12191 | T38: 2.032824427 | U38: 42376.18789 | V38: 42376.10542 | W38: 1.860305344 | X38: 42376.04861 | Y38: 42376.10127 | Z38: 1.670229008 | AA38: 42376.06887 | AB38: 42376.09414 | AC38: 1.542748092 | AD38: Cls | AE38: 42375.92708 | AF38: 42376.07948 | AG38: 1.470229008 | AH38: 42376.07272 | AI38: 1.570229008 | AJ38: 42376.12008 | AK38: 2.060305344 | AL38: 42376.12008 | AM38: 2.060305344 | AN38: 42376.1113 | AO38: 2.060305344 | AP38: 42376.11642 | AQ38: 1.88778626 | AR38: 42376.07986 | AS38: 42376.10417 | AT38: 42376.07986 | AU38: 1.670229008 | AV38: 42376.08353 | AW38: 1.642748092 | AX38: 42376.07272 | AY38: 1.470229008 | AZ38: 42376.06925 | BA38: 1.442748092 | BB38: 42376.06414 | BC38: 1.542748092 | BD38: 42376.019 | BE38: 1.252671756 | BF38: 42376.11458 | BH38: 42376.13194 | BI38: 42376.12153
A39: 0 | B39: =IF(Instructions!$C$2="BST",A39,0) -> 0 | C39: 2020-01-08T08:32:00 | D39: 2020-01-08 | E39: Wed | F39: 1 | I39: 3 | K39: 42376.35556 | L39: 5.03 | M39: HW | N39: 0.4695652174 | O39: 08:32:00 | P39: 12:00:00 | Q39: 06:00:00 | R39: 0.4222222222 | S39: 42376.3669 | T39: 6.751304348 | U39: 42376.43287 | V39: 42376.36836 | W39: 6.504347826 | X39: 42376.31389 | Y39: 42376.34113 | Z39: 4.963478261 | AA39: 42376.33071 | AB39: 42376.33472 | AC39: 4.563478261 | AD39: Opn | AE39: 42376.22014 | AF39: 42376.33781 | AG39: 4.016521739 | AH39: 42376.3115 | AI39: 4.369565217 | AJ39: 42376.3689 | AK39: 6.651304348 | AL39: 42376.37091 | AM39: 6.59826087 | AN39: 42376.36543 | AO39: 6.404347826 | AP39: 42376.37145 | AQ39: 5.804347826 | AR39: 42376.34514 | AS39: 42376.36597 | AT39: 42376.33233 | AU39: 4.563478261 | AV39: 42376.33233 | AW39: 4.363478261 | AX39: 42376.30949 | AY39: 4.110434783 | AZ39: 42376.30602 | BA39: 3.963478261 | BB39: 42376.30255 | BC39: 3.916521739 | BD39: 42376.25031 | BE39: 3.763478261 | BF39: 42376.34514 | BH39: 42376.39722 | BI39: 42376.38681
A40: 0 | B40: =IF(Instructions!$C$2="BST",A40,0) -> 0 | C40: 2020-01-08T14:36:00 | D40: 2020-01-08 | F40: 1 | I40: 3 | K40: 42376.60833 | L40: 1.7 | M40: LW | N40: 0.2442748092 | O40: 14:36:00 | P40: 17:00:00 | Q40: 11:00:00 | R40: 0.6 | S40: 42376.64097 | T40: 2.084732824 | U40: 42376.70694 | V40: 42376.62222 | W40: 1.909160305 | X40: 42376.56667 | Y40: 42376.62083 | Z40: 1.706870229 | AA40: 42376.58542 | AB40: 42376.61319 | AC40: 1.582442748 | AD40: Cls | AE40: 42376.44931 | AF40: 42376.59653 | AG40: 1.506870229 | AH40: 42376.59028 | AI40: 1.606870229 | AJ40: 42376.63889 | AK40: 2.109160305 | AL40: 42376.63889 | AM40: 2.109160305 | AN40: 42376.62986 | AO40: 2.109160305 | AP40: 42376.63472 | AQ40: 1.933587786 | AR40: 42376.59792 | AS40: 42376.62222 | AT40: 42376.59792 | AU40: 1.706870229 | AV40: 42376.60208 | AW40: 1.682442748 | AX40: 42376.59028 | AY40: 1.506870229 | AZ40: 42376.58681 | BA40: 1.482442748 | BB40: 42376.58194 | BC40: 1.582442748 | BD40: 42376.53681 | BE40: 1.280152672 | BF40: 42376.63264 | BH40: 42376.65 | BI40: 42376.63958
A41: 0 | B41: =IF(Instructions!$C$2="BST",A41,0) -> 0 | C41: 2020-01-08T20:47:00 | D41: 2020-01-08 | F41: 1 | I41: 3 | K41: 42376.86597 | L41: 5.14 | M41: HW | N41: 0.5652173913 | O41: 20:47:00 | P41: 1 | Q41: 18:00:00 | R41: 0.4638888889 | S41: 42376.87775 | T41: 6.904347826 | U41: 42376.94372 | V41: 42376.87936 | W41: 6.647826087 | X41: 42376.82431 | Y41: 42376.85183 | Z41: 5.07826087 | AA41: 42376.84142 | AB41: 42376.84514 | AC41: 4.67826087 | AD41: Opn | AE41: 42376.73056 | AF41: 42376.8475 | AG41: 4.12173913 | AH41: 42376.82133 | AI41: 4.465217391 | AJ41: 42376.87961 | AK41: 6.804347826 | AL41: 42376.88147 | AM41: 6.760869565 | AN41: 42376.87614 | AO41: 6.547826087 | AP41: 42376.88172 | AQ41: 5.947826087 | AR41: 42376.85556 | AS41: 42376.87639 | AT41: 42376.84217 | AU41: 4.67826087 | AV41: 42376.84217 | AW41: 4.47826087 | AX41: 42376.81947 | AY41: 4.234782609 | AZ41: 42376.816 | BA41: 4.07826087 | BB41: 42376.81253 | BC41: 4.02173913 | BD41: 42376.7613 | BE41: 3.87826087 | BF41: 42376.85556 | BH41: 42376.90764 | BI41: 42376.89722
A42: 0 | B42: =IF(Instructions!$C$2="BST",A42,0) -> 0 | C42: 2020-01-09T02:53:00 | D42: 2020-01-09 | E42: 2020-01-09 | F42: 1 | G42: Jan | H42: 9 | I42: 4 | J42: Thu | K42: 42377.12014 | L42: 1.45 | M42: LW | N42: 0.4351145038 | O42: 02:53:00 | P42: 05:00:00 | Q42: -0.04166666667 | R42: 0.6472222222 | S42: 42377.15343 | T42: 1.760305344 | U42: 42377.21941 | V42: 42377.13321 | W42: 1.603816794 | X42: 42377.07847 | Y42: 42377.13362 | Z42: =IF($M42="HW",Y$2+(Y$1-Y$2)*$N42,Y$3+(Y$4-Y$3)*$N42) -> 1.477862595 | AA42: 42377.09624 | AB42: 42377.12566 | AC42: =IF($M42="HW",AB$2+(AB$1-AB$2)*$N42,AB$3+(AB$4-AB$3)*$N42) -> 1.334351145 | AD42: Cls | AE42: 42376.95972 | AF42: 42377.10768 | AG42: =IF($M42="HW",AF$2+(AF$1-AF$2)*$N42,AF$3+(AF$4-AF$3)*$N42) -> 1.277862595 | AH42: 42377.10176 | AI42: =IF($M42="HW",AH$2+(AH$1-AH$2)*$N42,AH$3+(AH$4-AH$3)*$N42) -> 1.377862595 | AJ42: 42377.15119 | AK42: =IF($M42="HW",AJ$2+(AJ$1-AJ$2)*$N42,AJ$3+(AJ$4-AJ$3)*$N42) -> 1.803816794 | AL42: 42377.15119 | AM42: =IF($M42="HW",AL$2+(AL$1-AL$2)*$N42,AL$3+(AL$4-AL$3)*$N42) -> 1.803816794 | AN42: 42377.14199 | AO42: =IF($M42="HW",AN$2+(AN$1-AN$2)*$N42,AN$3+(AN$4-AN$3)*$N42) -> 1.803816794 | AP42: 42377.14669 | AQ42: =IF($M42="HW",AP$2+(AP$1-AP$2)*$N42,AP$3+(AP$4-AP$3)*$N42) -> 1.647328244 | AR42: 42377.10972 | AS42: 42377.13403 | AT42: 42377.10972 | AU42: =IF($M42="HW",AT$2+(AT$1-AT$2)*$N42,AT$3+(AT$4-AT$3)*$N42) -> 1.477862595 | AV42: 42377.11422 | AW42: =IF($M42="HW",AV$2+(AV$1-AV$2)*$N42,AV$3+(AV$4-AV$3)*$N42) -> 1.434351145 | AX42: 42377.10176 | AY42: =IF($M42="HW",AX$2+(AX$1-AX$2)*$N42,AX$3+(AX$4-AX$3)*$N42) -> 1.277862595 | AZ42: 42377.09828 | BA42: =IF($M42="HW",AZ$2+(AZ$1-AZ$2)*$N42,AZ$3+(AZ$4-AZ$3)*$N42) -> 1.234351145 | BB42: 42377.09359 | BC42: =IF($M42="HW",BB$2+(BB$1-BB$2)*$N42,BB$3+(BB$4-BB$3)*$N42) -> 1.334351145 | BD42: 42377.04845 | BE42: =IF($M42="HW",BD$2+(BD$1-BD$2)*$N42,BD$3+(BD$4-BD$3)*$N42) -> 1.108396947 | BF42: 42377.14444 | BH42: 42377.16181 | BI42: 42377.15139
A43: 0 | B43: =IF(Instructions!$C$2="BST",A43,0) -> 0 | C43: 2020-01-09T09:14:00 | D43: 2020-01-09 | E43: Thu | F43: 1 | I43: 4 | K43: 42377.38472 | L43: 5.28 | M43: HW | N43: 0.6869565217 | O43: 09:14:00 | P43: 12:00:00 | Q43: 06:00:00 | R43: 0.5388888889 | S43: 42377.39728 | T43: 7.099130435 | U43: 42377.46325 | V43: 42377.39915 | W43: 6.830434783 | X43: 42377.34306 | Y43: 42377.3711 | Z43: 5.224347826 | AA43: 42377.36069 | AB43: 42377.36389 | AC43: 4.824347826 | AD43: Opn | AE43: 42377.24931 | AF43: 42377.36495 | AG43: 4.255652174 | AH43: 42377.33904 | AI43: 4.586956522 | AJ43: 42377.39888 | AK43: 6.999130435 | AL43: 42377.40048 | AM43: 6.967826087 | AN43: 42377.39541 | AO43: 6.730434783 | AP43: 42377.40021 | AQ43: 6.130434783 | AR43: 42377.37431 | AS43: 42377.39514 | AT43: 42377.35988 | AU43: 4.824347826 | AV43: 42377.35988 | AW43: 4.624347826 | AX43: 42377.33744 | AY43: 4.393043478 | AZ43: 42377.33397 | BA43: 4.224347826 | BB43: 42377.3305 | BC43: 4.155652174 | BD43: 42377.2811 | BE43: 4.024347826 | BF43: 42377.37431 | BH43: 42377.42639 | BI43: 42377.41597
A44: 0 | B44: =IF(Instructions!$C$2="BST",A44,0) -> 0 | C44: 2020-01-09T15:19:00 | D44: 2020-01-09 | F44: 1 | I44: 4 | K44: 42377.63819 | L44: 1.41 | M44: LW | N44: 0.465648855 | O44: 15:19:00 | P44: 17:00:00 | Q44: 11:00:00 | R44: 0.7194444444 | S44: =IF($M44="HW",$K44+S$6+(S$5-S$6)*$R44,$K44+S$8+(S$7-S$8)*$R44) -> 42377.67249 | T44: 1.708396947 | U44: 42377.73846 | V44: 42377.65001 | W44: 1.554961832 | X44: =IF($M44="HW",$K44+X$6+(X$5-X$6)*$R44,$K44+X$8+(X$7-X$8)*$R44) -> 42377.59653 | Y44: 42377.65318 | Z44: 1.441221374 | AA44: 42377.61279 | AB44: 42377.64471 | AC44: 1.294656489 | AD44: Cls | AE44: 42377.47847 | AF44: 42377.62473 | AG44: 1.241221374 | AH44: 42377.61931 | AI44: 1.341221374 | AJ44: 42377.66999 | AK44: 1.754961832 | AL44: 42377.66999 | AM44: 1.754961832 | AN44: 42377.66055 | AO44: 1.754961832 | AP44: 42377.665 | AQ44: 1.601526718 | AR44: =IF($M44="HW",$K44+AR$6+(AR$5-AR$6)*$R44,$K44+AR$8+(AR$7-AR$8)*$R44) -> 42377.62778 | AS44: 42377.65208 | AT44: 42377.62778 | AU44: 1.441221374 | AV44: 42377.63277 | AW44: 1.394656489 | AX44: 42377.61931 | AY44: 1.241221374 | AZ44: 42377.61584 | BA44: 1.194656489 | BB44: 42377.61139 | BC44: 1.294656489 | BD44: 42377.56625 | BE44: 1.080916031 | BF44: =IF($M44="HW",$K44+BF$6+(BF$5-BF$6)*$R44,$K44+BF$8+(BF$7-BF$8)*$R44) -> 42377.6625 | BH44: 42377.67986 | BI44: 42377.66944
A45: 0 | B45: =IF(Instructions!$C$2="BST",A45,0) -> 0 | C45: 2020-01-09T21:31:00 | D45: 2020-01-09 | F45: 1 | I45: 4 | K45: 42377.89653 | L45: 5.34 | M45: HW | N45: 0.7391304348 | O45: 21:31:00 | P45: 1 | Q45: 18:00:00 | R45: 0.5861111111 | S45: 42377.90958 | T45: 7.182608696 | U45: 42377.97555 | V45: 42377.91161 | W45: 6.908695652 | X45: 42377.85486 | Y45: 42377.88324 | Z45: 5.286956522 | AA45: 42377.87282 | AB45: 42377.87569 | AC45: 4.886956522 | AD45: Opn | AE45: 42377.76111 | AF45: 42377.87594 | AG45: 4.313043478 | AH45: 42377.85019 | AI45: 4.639130435 | AJ45: 42377.91101 | AK45: 7.082608696 | AL45: 42377.91245 | AM45: 7.056521739 | AN45: 42377.90754 | AO45: 6.808695652 | AP45: 42377.91185 | AQ45: 6.208695652 | AR45: 42377.88611 | AS45: 42377.90694 | AT45: 42377.87103 | AU45: 4.886956522 | AV45: 42377.87103 | AW45: 4.686956522 | AX45: 42377.84876 | AY45: 4.460869565 | AZ45: 42377.84528 | BA45: 4.286956522 | BB45: 42377.84181 | BC45: 4.213043478 | BD45: 42377.79356 | BE45: 4.086956522 | BF45: 42377.88611 | BH45: 42377.93819 | BI45: 42377.92778
A46: 0 | B46: =IF(Instructions!$C$2="BST",A46,0) -> 0 | C46: 2020-01-10T03:35:00 | D46: 2020-01-10 | E46: 2020-01-10 | F46: 1 | G46: Jan | H46: 10 | I46: 5 | J46: Fri | K46: 42378.14931 | L46: 1.25 | M46: LW | N46: 0.5877862595 | O46: 03:35:00 | P46: 05:00:00 | Q46: -0.04166666667 | R46: 0.7638888889 | S46: 42378.18422 | T46: 1.500763359 | U46: 42378.25019 | V46: 42378.16035 | W46: 1.359541985 | X46: 42378.10764 | Y46: 42378.16522 | Z46: 1.294656489 | AA46: 42378.12297 | AB46: 42378.15644 | AC46: 1.135877863 | AD46: Cls | AE46: 42377.99028 | AF46: 42378.13522 | AG46: 1.094656489 | AH46: 42378.13011 | AI46: 1.194656489 | AJ46: 42378.18157 | AK46: 1.559541985 | AL46: 42378.18157 | AM46: 1.559541985 | AN46: 42378.17197 | AO46: 1.559541985 | AP46: 42378.17626 | AQ46: 1.418320611 | AR46: 42378.13889 | AS46: 42378.16319 | AT46: 42378.13889 | AU46: 1.294656489 | AV46: 42378.14419 | AW46: 1.235877863 | AX46: 42378.13011 | AY46: 1.094656489 | AZ46: 42378.12664 | BA46: 1.035877863 | BB46: 42378.12235 | BC46: 1.135877863 | BD46: 42378.07721 | BE46: 0.9709923664 | BF46: 42378.17361 | BH46: 42378.19097 | BI46: 42378.18056
A47: 0 | B47: =IF(Instructions!$C$2="BST",A47,0) -> 0 | C47: 2020-01-10T09:54:00 | D47: 2020-01-10 | E47: Fri | F47: 1 | I47: 5 | K47: 42378.4125 | L47: 5.52 | M47: HW | N47: 0.8956521739 | O47: 09:54:00 | P47: 12:00:00 | Q47: 06:00:00 | R47: 0.65 | S47: 42378.42622 | T47: 7.433043478 | U47: 42378.49219 | V47: 42378.42847 | W47: 7.143478261 | X47: 42378.37083 | Y47: 42378.39965 | Z47: 5.474782609 | AA47: 42378.38924 | AB47: 42378.39167 | AC47: 5.074782609 | AD47: Opn | AE47: 42378.27708 | AF47: 42378.3908 | AG47: 4.485217391 | AH47: 42378.36528 | AI47: 4.795652174 | AJ47: 42378.42743 | AK47: 7.333043478 | AL47: 42378.42865 | AM47: 7.322608696 | AN47: 42378.42396 | AO47: 7.043478261 | AP47: 42378.4276 | AQ47: 6.443478261 | AR47: 42378.40208 | AS47: 42378.42292 | AT47: 42378.38611 | AU47: 5.074782609 | AV47: 42378.38611 | AW47: 4.874782609 | AX47: 42378.36406 | AY47: 4.664347826 | AZ47: 42378.36059 | BA47: 4.474782609 | BB47: 42378.35712 | BC47: 4.385217391 | BD47: 42378.31042 | BE47: 4.274782609 | BF47: 42378.40208 | BH47: 42378.45417 | BI47: 42378.44375
A48: 0 | B48: =IF(Instructions!$C$2="BST",A48,0) -> 0 | C48: 2020-01-10T16:02:00 | D48: 2020-01-10 | F48: 1 | I48: 5 | K48: 42378.66806 | L48: 1.13 | M48: LW | N48: 0.679389313 | O48: 16:02:00 | P48: 17:00:00 | Q48: 11:00:00 | R48: 0.8388888889 | S48: 42378.70401 | T48: 1.345038168 | U48: 42378.76998 | V48: 42378.6778 | W48: 1.212977099 | X48: 42378.62639 | Y48: 42378.68553 | Z48: 1.184732824 | AA48: 42378.64016 | AB48: 42378.67623 | AC48: 1.016793893 | AD48: Cls | AE48: 42378.50625 | AF48: 42378.65293 | AG48: 0.9847328244 | AH48: 42378.64834 | AI48: 1.084732824 | AJ48: 42378.7011 | AK48: 1.412977099 | AL48: 42378.7011 | AM48: 1.412977099 | AN48: 42378.69124 | AO48: 1.412977099 | AP48: 42378.69527 | AQ48: 1.280916031 | AR48: 42378.65764 | AS48: 42378.68194 | AT48: 42378.65764 | AU48: 1.184732824 | AV48: 42378.66346 | AW48: 1.116793893 | AX48: 42378.64834 | AY48: 0.9847328244 | AZ48: 42378.64487 | BA48: 0.9167938931 | BB48: 42378.64084 | BC48: 1.016793893 | BD48: 42378.5957 | BE48: 0.8885496183 | BF48: 42378.69236 | BH48: 42378.70972 | BI48: 42378.69931
A49: 0 | B49: =IF(Instructions!$C$2="BST",A49,0) -> 0 | C49: 2020-01-10T22:14:00 | D49: 2020-01-10 | F49: 1 | I49: 5 | K49: 42378.92639 | L49: 5.5 | M49: HW | N49: 0.8782608696 | O49: 22:14:00 | P49: 1 | Q49: 18:00:00 | R49: 0.7055555556 | S49: 42378.94068 | T49: 7.405217391 | U49: 42379.00666 | V49: 42378.94313 | W49: 7.117391304 | X49: 42378.88472 | Y49: 42378.91393 | Z49: 5.453913043 | AA49: 42378.90351 | AB49: 42378.90556 | AC49: 5.053913043 | AD49: Opn | AE49: 42378.79097 | AF49: 42378.90372 | AG49: 4.466086957 | AH49: 42378.8784 | AI49: 4.77826087 | AJ49: 42378.94171 | AK49: 7.305217391 | AL49: 42378.94273 | AM49: 7.293043478 | AN49: 42378.93823 | AO49: 7.017391304 | AP49: 42378.9413 | AQ49: 6.417391304 | AR49: 42378.91597 | AS49: 42378.93681 | AT49: 42378.89923 | AU49: 5.053913043 | AV49: 42378.89923 | AW49: 4.853913043 | AX49: 42378.87737 | AY49: 4.64173913 | AZ49: 42378.8739 | BA49: 4.453913043 | BB49: 42378.87043 | BC49: 4.366086957 | BD49: 42378.82508 | BE49: 4.253913043 | BF49: 42378.91597 | BH49: 42378.96806 | BI49: 42378.95764
A50: 0 | B50: =IF(Instructions!$C$2="BST",A50,0) -> 0 | C50: 2020-01-11T04:16:00 | D50: 2020-01-11 | E50: 2020-01-11 | F50: 1 | G50: Jan | H50: 11 | I50: 6 | J50: Sat | K50: 42379.17778 | L50: 1.08 | M50: LW | N50: 0.7175572519 | O50: 04:16:00 | P50: 05:00:00 | Q50: -0.04166666667 | R50: 0.8777777778 | S50: 42379.21427 | T50: 1.280152672 | U50: 42379.28025 | V50: 42379.18684 | W50: 1.151908397 | X50: 42379.13611 | Y50: 42379.19606 | Z50: 1.138931298 | AA50: 42379.14907 | AB50: 42379.1865 | AC50: 0.9671755725 | AD50: Cls | AE50: 42379.02014 | AF50: 42379.16211 | AG50: 0.9389312977 | AH50: 42379.15779 | AI50: 1.038931298 | AJ50: 42379.21123 | AK50: 1.351908397 | AL50: 42379.21123 | AM50: 1.351908397 | AN50: 42379.20123 | AO50: 1.351908397 | AP50: 42379.20513 | AQ50: 1.223664122 | AR50: 42379.16736 | AS50: 42379.19167 | AT50: 42379.16736 | AU50: 1.138931298 | AV50: 42379.17346 | AW50: 1.067175573 | AX50: 42379.15779 | AY50: 0.9389312977 | AZ50: 42379.15432 | BA50: 0.8671755725 | BB50: 42379.15042 | BC50: 0.9671755725 | BD50: 42379.10529 | BE50: 0.8541984733 | BF50: 42379.20208 | BH50: 42379.21944 | BI50: 42379.20903
A51: 0 | B51: =IF(Instructions!$C$2="BST",A51,0) -> 0 | C51: 2020-01-11T10:34:00 | D51: 2020-01-11 | E51: Sat | F51: 1 | I51: 6 | K51: 42379.44028 | L51: 5.71 | M51: HW | N51: 1.060869565 | O51: 10:34:00 | P51: 12:00:00 | Q51: 06:00:00 | R51: 0.7611111111 | S51: 42379.45515 | T51: 7.697391304 | U51: 42379.52112 | V51: 42379.45779 | W51: 7.391304348 | X51: 42379.39861 | Y51: 42379.4282 | Z51: 5.673043478 | AA51: 42379.41779 | AB51: 42379.41944 | AC51: 5.273043478 | AD51: Opn | AE51: 42379.30486 | AF51: 42379.41665 | AG51: 4.666956522 | AH51: 42379.39151 | AI51: 4.960869565 | AJ51: 42379.45598 | AK51: 7.597391304 | AL51: 42379.45681 | AM51: 7.603478261 | AN51: 42379.45251 | AO51: 7.291304348 | AP51: 42379.455 | AQ51: 6.691304348 | AR51: 42379.42986 | AS51: 42379.45069 | AT51: 42379.41235 | AU51: 5.273043478 | AV51: 42379.41235 | AW51: 5.073043478 | AX51: 42379.39068 | AY51: 4.879130435 | AZ51: 42379.38721 | BA51: 4.673043478 | BB51: 42379.38374 | BC51: 4.566956522 | BD51: 42379.33974 | BE51: 4.473043478 | BF51: 42379.42986 | BH51: 42379.48194 | BI51: 42379.47153
A52: 0 | B52: =IF(Instructions!$C$2="BST",A52,0) -> 0 | C52: 2020-01-11T16:44:00 | D52: 2020-01-11 | F52: 1 | I52: 6 | K52: 42379.69722 | L52: 0.91 | M52: LW | N52: 0.8473282443 | O52: 16:44:00 | P52: 17:00:00 | Q52: 11:00:00 | R52: 0.9555555556 | S52: 42379.7348 | T52: 1.059541985 | U52: 42379.80077 | V52: 42379.70494 | W52: 0.9442748092 | X52: 42379.65556 | Y52: 42379.71713 | Z52: 0.9832061069 | AA52: 42379.6669 | AB52: 42379.70702 | AC52: 0.7984732824 | AD52: Cls | AE52: 42379.53403 | AF52: 42379.68048 | AG52: 0.7832061069 | AH52: 42379.6767 | AI52: 0.8832061069 | AJ52: 42379.73148 | AK52: 1.144274809 | AL52: 42379.73148 | AM52: 1.144274809 | AN52: 42379.72122 | AO52: 1.144274809 | AP52: 42379.72485 | AQ52: 1.029007634 | AR52: 42379.68681 | AS52: 42379.71111 | AT52: 42379.68681 | AU52: 0.9832061069 | AV52: 42379.69344 | AW52: 0.8984732824 | AX52: 42379.6767 | AY52: 0.7832061069 | AZ52: 42379.67323 | BA52: 0.6984732824 | BB52: 42379.6696 | BC52: 0.7984732824 | BD52: 42379.62446 | BE52: 0.7374045802 | BF52: 42379.72153 | BH52: 42379.73889 | BI52: 42379.72847
A53: 0 | B53: =IF(Instructions!$C$2="BST",A53,0) -> 0 | C53: 2020-01-11T22:58:00 | D53: 2020-01-11 | F53: 1 | I53: 6 | K53: 42379.95694 | L53: 5.6 | M53: HW | N53: 0.9652173913 | O53: 22:58:00 | P53: 1 | Q53: 18:00:00 | R53: 0.8277777778 | S53: 42379.97251 | T53: 7.544347826 | U53: 42380.03848 | V53: 42379.97539 | W53: 7.247826087 | X53: 42379.91528 | Y53: 42379.94533 | Z53: 5.55826087 | AA53: 42379.93492 | AB53: 42379.93611 | AC53: 5.15826087 | AD53: Opn | AE53: 42379.82153 | AF53: 42379.93216 | AG53: 4.56173913 | AH53: 42379.90725 | AI53: 4.865217391 | AJ53: 42379.97311 | AK53: 7.444347826 | AL53: 42379.97371 | AM53: 7.440869565 | AN53: 42379.96964 | AO53: 7.147826087 | AP53: 42379.97143 | AQ53: 6.547826087 | AR53: 42379.94653 | AS53: 42379.96736 | AT53: 42379.92809 | AU53: 5.15826087 | AV53: 42379.92809 | AW53: 4.95826087 | AX53: 42379.90666 | AY53: 4.754782609 | AZ53: 42379.90318 | BA53: 4.55826087 | BB53: 42379.89971 | BC53: 4.46173913 | BD53: 42379.85733 | BE53: 4.35826087 | BF53: 42379.94653 | BH53: 42379.99861 | BI53: 42379.98819
A54: 0 | B54: =IF(Instructions!$C$2="BST",A54,0) -> 0 | C54: 2020-01-12T04:58:00 | D54: 2020-01-12 | E54: 2020-01-12 | F54: 1 | G54: Jan | H54: 12 | I54: 7 | J54: Sun | K54: 42380.20694 | L54: 0.97 | M54: LW | N54: 0.8015267176 | O54: 04:58:00 | P54: 05:00:00 | Q54: -0.04166666667 | R54: 0.9944444444 | S54: 42380.24506 | T54: 1.13740458 | U54: 42380.31103 | V54: 42380.21399 | W54: 1.017557252 | X54: 42380.16528 | Y54: 42380.22766 | Z54: 1.038167939 | AA54: 42380.17581 | AB54: 42380.21728 | AC54: 0.8580152672 | AD54: Cls | AE54: 42380.05069 | AF54: 42380.18966 | AG54: 0.8381679389 | AH54: 42380.18615 | AI54: 0.9381679389 | AJ54: 42380.24161 | AK54: 1.217557252 | AL54: 42380.24161 | AM54: 1.217557252 | AN54: 42380.23121 | AO54: 1.217557252 | AP54: 42380.2347 | AQ54: 1.097709924 | AR54: 42380.19653 | AS54: 42380.22083 | AT54: 42380.19653 | AU54: 1.038167939 | AV54: 42380.20343 | AW54: 0.9580152672 | AX54: 42380.18615 | AY54: 0.8381679389 | AZ54: 42380.18268 | BA54: 0.7580152672 | BB54: 42380.17919 | BC54: 0.8580152672 | BD54: 42380.13405 | BE54: 0.7786259542 | BF54: 42380.23125 | BH54: 42380.24861 | BI54: 42380.23819
A55: 0 | B55: =IF(Instructions!$C$2="BST",A55,0) -> 0 | C55: 2020-01-12T11:16:00 | D55: 2020-01-12 | E55: Sun | F55: 1 | I55: 7 | K55: 42380.46944 | L55: 5.83 | M55: HW | N55: 1.165217391 | O55: 11:16:00 | P55: 12:00:00 | Q55: 06:00:00 | R55: 0.8777777778 | S55: 42380.48553 | T55: 7.864347826 | U55: 42380.5515 | V55: 42380.48858 | W55: 7.547826087 | X55: 42380.42778 | Y55: 42380.45818 | Z55: 5.79826087 | AA55: 42380.44776 | AB55: 42380.44861 | AC55: 5.39826087 | AD55: Opn | AE55: 42380.33403 | AF55: 42380.44379 | AG55: 4.78173913 | AH55: 42380.41906 | AI55: 5.065217391 | AJ55: 42380.48596 | AK55: 7.764347826 | AL55: 42380.48638 | AM55: 7.780869565 | AN55: 42380.48248 | AO55: 7.447826087 | AP55: 42380.48376 | AQ55: 6.847826087 | AR55: 42380.45903 | AS55: 42380.47986 | AT55: 42380.43989 | AU55: 5.39826087 | AV55: 42380.43989 | AW55: 5.19826087 | AX55: 42380.41863 | AY55: 5.014782609 | AZ55: 42380.41516 | BA55: 4.79826087 | BB55: 42380.41169 | BC55: 4.68173913 | BD55: 42380.37052 | BE55: 4.59826087 | BF55: 42380.45903 | BH55: 42380.51111 | BI55: 42380.50069
A56: 0 | B56: =IF(Instructions!$C$2="BST",A56,0) -> 0 | C56: 2020-01-12T17:28:00 | D56: 2020-01-12 | F56: 1 | I56: 7 | K56: 42380.72778 | L56: 0.76 | M56: LW | N56: 0.9618320611 | O56: 17:28:00 | P56: 17:00:00 | Q56: 23:00:00 | R56: 0.9222222222 | S56: 42380.76489 | T56: 0.8648854962 | U56: 42380.83086 | V56: 42380.73607 | W56: 0.7610687023 | X56: 42380.68611 | Y56: 42380.74699 | Z56: 0.8458015267 | AA56: 42380.69815 | AB56: 42380.73711 | AC56: 0.6496183206 | AD56: Cls | AE56: 42380.56319 | AF56: 42380.7115 | AG56: 0.6458015267 | AH56: 42380.70748 | AI56: 0.7458015267 | AJ56: 42380.76169 | AK56: 0.9610687023 | AL56: 42380.76169 | AM56: 0.9610687023 | AN56: 42380.75154 | AO56: 0.9610687023 | AP56: 42380.75529 | AQ56: 0.8572519084 | AR56: 42380.71736 | AS56: 42380.74167 | AT56: 42380.71736 | AU56: 0.8458015267 | AV56: 42380.72377 | AW56: 0.7496183206 | AX56: 42380.70748 | AY56: 0.6458015267 | AZ56: 42380.70401 | BA56: 0.5496183206 | BB56: 42380.70027 | BC56: 0.6496183206 | BD56: 42380.65513 | BE56: 0.634351145 | BF56: 42380.75208 | BH56: 42380.76944 | BI56: 42380.75903
A57: 0 | B57: =IF(Instructions!$C$2="BST",A57,0) -> 0 | C57: 2020-01-12T23:42:00 | D57: 2020-01-12 | F57: 1 | I57: 7 | K57: 42380.9875 | L57: 5.63 | M57: HW | N57: 0.9913043478 | O57: 23:42:00 | P57: 1 | Q57: 18:00:00 | R57: 0.95 | S57: 42381.00434 | T57: 7.586086957 | U57: 42381.07031 | V57: 42381.00764 | W57: 7.286956522 | X57: 42380.94583 | Y57: 42380.97674 | Z57: 5.589565217 | AA57: 42380.96632 | AB57: 42380.96667 | AC57: 5.189565217 | AD57: Opn | AE57: 42380.85208 | AF57: 42380.96059 | AG57: 4.590434783 | AH57: 42380.93611 | AI57: 4.891304348 | AJ57: 42381.00451 | AK57: 7.486086957 | AL57: 42381.00469 | AM57: 7.485217391 | AN57: 42381.00104 | AO57: 7.186956522 | AP57: 42381.00156 | AQ57: 6.586956522 | AR57: 42380.97708 | AS57: 42380.99792 | AT57: 42380.95694 | AU57: 5.189565217 | AV57: 42380.95694 | AW57: 4.989565217 | AX57: 42380.93594 | AY57: 4.788695652 | AZ57: 42380.93247 | BA57: 4.589565217 | BB57: 42380.92899 | BC57: 4.490434783 | BD57: 42380.88958 | BE57: 4.389565217 | BF57: 42380.97708 | BH57: 42381.02917 | BI57: 42381.01875
A58: 0 | B58: =IF(Instructions!$C$2="BST",A58,0) -> 0 | C58: 2020-01-13T05:42:00 | D58: 2020-01-13 | E58: 2020-01-13 | F58: 1 | G58: Jan | H58: 13 | I58: 1 | J58: Mon | K58: 42381.2375 | L58: 0.94 | M58: LW | N58: 0.8244274809 | O58: 05:42:00 | P58: 05:00:00 | Q58: 11:00:00 | R58: 0.8833333333 | S58: 42381.27407 | T58: 1.098473282 | U58: 42381.34005 | V58: 42381.24647 | W58: 0.9809160305 | X58: 42381.19583 | Y58: 42381.2559 | Z58: 1.010687023 | AA58: 42381.20868 | AB58: 42381.2463 | AC58: 0.8282442748 | AD58: Cls | AE58: 42381.08125 | AF58: 42381.22176 | AG58: 0.8106870229 | AH58: 42381.21748 | AI58: 0.9106870229 | AJ58: 42381.27101 | AK58: 1.180916031 | AL58: 42381.27101 | AM58: 1.180916031 | AN58: 42381.261 | AO58: 1.180916031 | AP58: 42381.26487 | AQ58: 1.063358779 | AR58: 42381.22708 | AS58: 42381.25139 | AT58: 42381.22708 | AU58: 1.010687023 | AV58: 42381.23322 | AW58: 0.9282442748 | AX58: 42381.21748 | AY58: 0.8106870229 | AZ58: 42381.214 | BA58: 0.7282442748 | BB58: 42381.21013 | BC58: 0.8282442748 | BD58: 42381.16499 | BE58: 0.7580152672 | BF58: 42381.26181 | BH58: 42381.27917 | BI58: 42381.26875
A59: 0 | B59: =IF(Instructions!$C$2="BST",A59,0) -> 0 | C59: 2020-01-13T11:59:00 | D59: 2020-01-13 | E59: Mon | F59: 1 | I59: 1 | K59: 42381.49931 | L59: 5.88 | M59: HW | N59: 1.208695652 | O59: 11:59:00 | P59: 12:00:00 | Q59: 06:00:00 | R59: 0.9972222222 | S59: 42381.51664 | T59: 7.933913043 | U59: 42381.58261 | V59: 42381.5201 | W59: 7.613043478 | X59: 42381.45764 | Y59: 42381.48887 | Z59: 5.850434783 | AA59: 42381.47845 | AB59: 42381.47847 | AC59: 5.450434783 | AD59: Opn | AE59: 42381.36389 | AF59: 42381.47158 | AG59: 4.829565217 | AH59: 42381.44726 | AI59: 5.108695652 | AJ59: 42381.51665 | AK59: 7.833913043 | AL59: 42381.51666 | AM59: 7.854782609 | AN59: 42381.51318 | AO59: 7.513043478 | AP59: 42381.5132 | AQ59: 6.913043478 | AR59: 42381.48889 | AS59: 42381.50972 | AT59: 42381.46809 | AU59: 5.450434783 | AV59: 42381.46809 | AW59: 5.250434783 | AX59: 42381.44725 | AY59: 5.071304348 | AZ59: 42381.44378 | BA59: 4.850434783 | BB59: 42381.44031 | BC59: 4.729565217 | BD59: 42381.40204 | BE59: 4.650434783 | BF59: 42381.48889 | BH59: 42381.54097 | BI59: 42381.53056
A60: 0 | B60: =IF(Instructions!$C$2="BST",A60,0) -> 0 | C60: 2020-01-13T18:13:00 | D60: 2020-01-13 | F60: 1 | I60: 1 | K60: 42381.75903 | L60: 0.7 | M60: LW | N60: 1.007633588 | O60: 18:13:00 | P60: 17:00:00 | Q60: 23:00:00 | R60: 0.7972222222 | S60: 42381.79441 | T60: 0.7870229008 | U60: 42381.86038 | V60: 42381.76949 | W60: 0.6877862595 | X60: 42381.71736 | Y60: 42381.77564 | Z60: 0.7908396947 | AA60: 42381.732 | AB60: 42381.76663 | AC60: 0.5900763359 | AD60: Cls | AE60: 42381.59306 | AF60: 42381.74448 | AG60: 0.5908396947 | AH60: 42381.7396 | AI60: 0.6908396947 | AJ60: 42381.79164 | AK60: 0.8877862595 | AL60: 42381.79164 | AM60: 0.8877862595 | AN60: 42381.78193 | AO60: 0.8877862595 | AP60: 42381.7861 | AQ60: 0.7885496183 | AR60: 42381.74861 | AS60: 42381.77292 | AT60: 42381.74861 | AU60: 0.7908396947 | AV60: 42381.75415 | AW60: 0.6900763359 | AX60: 42381.7396 | AY60: 0.5908396947 | AZ60: 42381.73613 | BA60: 0.4900763359 | BB60: 42381.73195 | BC60: 0.5900763359 | BD60: 42381.68682 | BE60: 0.593129771 | BF60: 42381.78333 | BH60: 42381.80069 | BI60: 42381.79028
A61: 0 | B61: =IF(Instructions!$C$2="BST",A61,0) -> 0 | C61: 2020-01-14T00:28:00 | D61: 2020-01-14 | E61: 2020-01-14 | F61: 1 | G61: Jan | H61: 14 | I61: 2 | J61: Tue | K61: 42382.01944 | L61: 5.57 | M61: HW | N61: 0.9391304348 | O61: 00:28:00 | P61: 00:00:00 | Q61: 06:00:00 | R61: 0.9222222222 | S61: =IF($M61="HW",$K61+S$6+(S$5-S$6)*$R61,$K61+S$8+(S$7-S$8)*$R61) -> 42382.036 | T61: 7.502608696 | U61: 42382.10197 | V61: 42382.0392 | W61: 7.208695652 | X61: =IF($M61="HW",$K61+X$6+(X$5-X$6)*$R61,$K61+X$8+(X$7-X$8)*$R61) -> 42381.97778 | Y61: 42382.00849 | Z61: 5.526956522 | AA61: 42381.99807 | AB61: 42381.99861 | AC61: 5.126956522 | AD61: Opn | AE61: 42381.88403 | AF61: 42381.99302 | AG61: 4.533043478 | AH61: 42381.96844 | AI61: 4.839130435 | AJ61: 42382.03627 | AK61: 7.402608696 | AL61: 42382.03654 | AM61: 7.396521739 | AN61: 42382.03279 | AO61: 7.108695652 | AP61: 42382.0336 | AQ61: 6.508695652 | AR61: =IF($M61="HW",$K61+AR$6+(AR$5-AR$6)*$R61,$K61+AR$8+(AR$7-AR$8)*$R61) -> 42382.00903 | AS61: 42382.02986 | AT61: 42381.98927 | AU61: 5.126956522 | AV61: 42381.98927 | AW61: 4.926956522 | AX61: 42381.96817 | AY61: 4.720869565 | AZ61: 42381.9647 | BA61: 4.526956522 | BB61: 42381.96123 | BC61: 4.433043478 | BD61: 42381.92114 | BE61: 4.326956522 | BF61: =IF($M61="HW",$K61+BF$6+(BF$5-BF$6)*$R61,$K61+BF$8+(BF$7-BF$8)*$R61) -> 42382.00903 | BH61: 42382.06111 | BI61: 42382.05069
A62: 0 | B62: =IF(Instructions!$C$2="BST",A62,0) -> 0 | C62: 2020-01-14T06:27:00 | D62: 2020-01-14 | E62: Tue | F62: 1 | I62: 2 | K62: 42382.26875 | L62: 0.98 | M62: LW | N62: 0.7938931298 | O62: 06:27:00 | P62: 05:00:00 | Q62: 11:00:00 | R62: 0.7583333333 | S62: 42382.30359 | T62: 1.150381679 | U62: 42382.36956 | V62: 42382.27989 | W62: 1.029770992 | X62: 42382.22708 | Y62: 42382.28455 | Z62: 1.047328244 | AA62: 42382.24253 | AB62: 42382.27581 | AC62: 0.8679389313 | AD62: Cls | AE62: 42382.11319 | AF62: 42382.25475 | AG62: 0.8473282443 | AH62: 42382.24959 | AI62: 0.9473282443 | AJ62: 42382.30095 | AK62: 1.229770992 | AL62: 42382.30095 | AM62: 1.229770992 | AN62: 42382.29138 | AO62: 1.229770992 | AP62: 42382.29569 | AQ62: 1.109160305 | AR62: 42382.25833 | AS62: 42382.28264 | AT62: 42382.25833 | AU62: 1.047328244 | AV62: 42382.2636 | AW62: 0.9679389313 | AX62: 42382.24959 | AY62: 0.8473282443 | AZ62: 42382.24612 | BA62: 0.7679389313 | BB62: 42382.24181 | BC62: 0.8679389313 | BD62: 42382.19667 | BE62: 0.7854961832 | BF62: 42382.29306 | BH62: 42382.31042 | BI62: 42382.3
A63: 0 | B63: =IF(Instructions!$C$2="BST",A63,0) -> 0 | C63: 2020-01-14T12:44:00 | D63: 2020-01-14 | F63: 1 | I63: 2 | K63: 42382.53056 | L63: 5.84 | M63: HW | N63: 1.173913043 | O63: 12:44:00 | P63: 12:00:00 | Q63: 18:00:00 | R63: 0.8777777778 | S63: 42382.54664 | T63: 7.87826087 | U63: 42382.61262 | V63: 42382.54969 | W63: 7.560869565 | X63: 42382.48889 | Y63: 42382.51929 | Z63: 5.808695652 | AA63: 42382.50887 | AB63: 42382.50972 | AC63: 5.408695652 | AD63: Opn | AE63: 42382.39514 | AF63: 42382.5049 | AG63: 4.791304348 | AH63: 42382.48017 | AI63: 5.073913043 | AJ63: 42382.54707 | AK63: 7.77826087 | AL63: 42382.54749 | AM63: 7.795652174 | AN63: 42382.5436 | AO63: 7.460869565 | AP63: 42382.54487 | AQ63: 6.860869565 | AR63: 42382.52014 | AS63: 42382.54097 | AT63: 42382.501 | AU63: 5.408695652 | AV63: 42382.501 | AW63: 5.208695652 | AX63: 42382.47975 | AY63: 5.026086957 | AZ63: 42382.47627 | BA63: 4.808695652 | BB63: 42382.4728 | BC63: 4.691304348 | BD63: 42382.43164 | BE63: 4.608695652 | BF63: 42382.52014 | BH63: 42382.57222 | BI63: 42382.56181
A64: 0 | B64: =IF(Instructions!$C$2="BST",A64,0) -> 0 | C64: 2020-01-14T19:01:00 | D64: 2020-01-14 | F64: 1 | I64: 2 | K64: 42382.79236 | L64: 0.74 | M64: LW | N64: 0.9770992366 | O64: 19:01:00 | P64: 17:00:00 | Q64: 23:00:00 | R64: 0.6638888889 | S64: 42382.82589 | T64: 0.8389312977 | U64: 42382.89186 | V64: 42382.80514 | W64: 0.7366412214 | X64: 42382.75069 | Y64: 42382.80619 | Z64: 0.827480916 | AA64: 42382.76811 | AB64: 42382.79811 | AC64: 0.6297709924 | AD64: Cls | AE64: 42382.62431 | AF64: 42382.77967 | AG64: 0.627480916 | AH64: 42382.77386 | AI64: 0.727480916 | AJ64: 42382.82358 | AK64: 0.9366412214 | AL64: 42382.82358 | AM64: 0.9366412214 | AN64: 42382.81433 | AO64: 0.9366412214 | AP64: 42382.81897 | AQ64: 0.834351145 | AR64: 42382.78194 | AS64: 42382.80625 | AT64: 42382.78194 | AU64: 0.827480916 | AV64: 42382.78655 | AW64: 0.7297709924 | AX64: 42382.77386 | AY64: 0.627480916 | AZ64: 42382.77039 | BA64: 0.5297709924 | BB64: 42382.76575 | BC64: 0.6297709924 | BD64: 42382.72061 | BE64: 0.620610687 | BF64: 42382.81667 | BH64: 42382.83403 | BI64: 42382.82361
A65: 0 | B65: =IF(Instructions!$C$2="BST",A65,0) -> 0 | C65: 2020-01-15T01:15:00 | D65: 2020-01-15 | E65: 2020-01-15 | F65: 1 | G65: Jan | H65: 15 | I65: 3 | J65: Wed | K65: 42383.05208 | L65: 5.45 | M65: HW | N65: 0.8347826087 | O65: 01:15:00 | P65: 00:00:00 | Q65: 06:00:00 | R65: 0.7916666667 | S65: 42383.06727 | T65: 7.335652174 | U65: 42383.13325 | V65: 42383.07002 | W65: 7.052173913 | X65: 42383.01042 | Y65: 42383.04022 | Z65: 5.40173913 | AA65: 42383.0298 | AB65: 42383.03125 | AC65: 5.00173913 | AD65: Opn | AE65: 42382.91667 | AF65: 42383.02792 | AG65: 4.41826087 | AH65: 42383.00289 | AI65: 4.734782609 | AJ65: 42383.068 | AK65: 7.235652174 | AL65: 42383.06872 | AM65: 7.219130435 | AN65: 42383.06453 | AO65: 6.952173913 | AP65: 42383.0667 | AQ65: 6.352173913 | AR65: 42383.04167 | AS65: 42383.0625 | AT65: 42383.02373 | AU65: 5.00173913 | AV65: 42383.02373 | AW65: 4.80173913 | AX65: 42383.00217 | AY65: 4.585217391 | AZ65: 42382.9987 | BA65: 4.40173913 | BB65: 42382.99523 | BC65: 4.31826087 | BD65: 42382.95197 | BE65: 4.20173913 | BF65: 42383.04167 | BH65: 42383.09375 | BI65: 42383.08333
A66: 0 | B66: =IF(Instructions!$C$2="BST",A66,0) -> 0 | C66: 2020-01-15T07:15:00 | D66: 2020-01-15 | E66: Wed | F66: 1 | I66: 3 | K66: 42383.30208 | L66: 1.09 | M66: LW | N66: 0.7099236641 | O66: 07:15:00 | P66: 05:00:00 | Q66: 11:00:00 | R66: 0.625 | S66: 42383.33507 | T66: 1.293129771 | U66: 42383.40104 | V66: 42383.31554 | W66: 1.164122137 | X66: 42383.26042 | Y66: 42383.3151 | Z66: 1.148091603 | AA66: 42383.27865 | AB66: 42383.30729 | AC66: 0.9770992366 | AD66: Cls | AE66: 42383.14583 | AF66: 42383.28993 | AG66: 0.9480916031 | AH66: 42383.28385 | AI66: 1.048091603 | AJ66: 42383.3329 | AK66: 1.364122137 | AL66: 42383.3329 | AM66: 1.364122137 | AN66: 42383.32378 | AO66: 1.364122137 | AP66: 42383.32856 | AQ66: 1.235114504 | AR66: 42383.29167 | AS66: 42383.31597 | AT66: 42383.29167 | AU66: 1.148091603 | AV66: 42383.29601 | AW66: 1.077099237 | AX66: 42383.28385 | AY66: 0.9480916031 | AZ66: 42383.28038 | BA66: 0.8770992366 | BB66: 42383.27561 | BC66: 0.9770992366 | BD66: 42383.23047 | BE66: 0.8610687023 | BF66: 42383.32639 | BH66: 42383.34375 | BI66: 42383.33333
A67: 0 | B67: =IF(Instructions!$C$2="BST",A67,0) -> 0 | C67: 2020-01-15T13:31:00 | D67: 2020-01-15 | F67: 1 | I67: 3 | K67: 42383.56319 | L67: 5.73 | M67: HW | N67: 1.07826087 | O67: 13:31:00 | P67: 12:00:00 | Q67: 18:00:00 | R67: 0.7472222222 | S67: 42383.57792 | T67: 7.725217391 | U67: 42383.64389 | V67: 42383.58052 | W67: 7.417391304 | X67: 42383.52153 | Y67: 42383.55102 | Z67: 5.693913043 | AA67: 42383.54061 | AB67: 42383.54236 | AC67: 5.293913043 | AD67: Opn | AE67: 42383.42778 | AF67: 42383.53981 | AG67: 4.686086957 | AH67: 42383.51462 | AI67: 4.97826087 | AJ67: 42383.5788 | AK67: 7.625217391 | AL67: 42383.57968 | AM67: 7.633043478 | AN67: 42383.57533 | AO67: 7.317391304 | AP67: 42383.57796 | AQ67: 6.717391304 | AR67: 42383.55278 | AS67: 42383.57361 | AT67: 42383.53546 | AU67: 5.293913043 | AV67: 42383.53546 | AW67: 5.093913043 | AX67: 42383.51374 | AY67: 4.90173913 | AZ67: 42383.51027 | BA67: 4.693913043 | BB67: 42383.5068 | BC67: 4.586086957 | BD67: 42383.46246 | BE67: 4.493913043 | BF67: 42383.55278 | BH67: 42383.60486 | BI67: 42383.59444
A68: 0 | B68: =IF(Instructions!$C$2="BST",A68,0) -> 0 | C68: 2020-01-15T19:52:00 | D68: 2020-01-15 | F68: 1 | I68: 3 | K68: 42383.82778 | L68: 0.86 | M68: LW | N68: 0.8854961832 | O68: 19:52:00 | P68: 17:00:00 | Q68: 23:00:00 | R68: 0.5222222222 | S68: 42383.85934 | T68: 0.9946564885 | U68: 42383.92531 | V68: 42383.84302 | W68: 0.8832061069 | X68: 42383.78611 | Y68: 42383.83866 | Z68: 0.9374045802 | AA68: 42383.80648 | AB68: 42383.83156 | AC68: 0.7488549618 | AD68: Cls | AE68: 42383.65694 | AF68: 42383.81705 | AG68: 0.7374045802 | AH68: 42383.81026 | AI68: 0.8374045802 | AJ68: 42383.85752 | AK68: 1.083206107 | AL68: 42383.85752 | AM68: 1.083206107 | AN68: 42383.84877 | AO68: 1.083206107 | AP68: 42383.8539 | AQ68: 0.9717557252 | AR68: 42383.81736 | AS68: 42383.84167 | AT68: 42383.81736 | AU68: 0.9374045802 | AV68: 42383.82099 | AW68: 0.8488549618 | AX68: 42383.81026 | AY68: 0.7374045802 | AZ68: 42383.80679 | BA68: 0.6488549618 | BB68: 42383.80166 | BC68: 0.7488549618 | BD68: 42383.75652 | BE68: 0.7030534351 | BF68: 42383.85208 | BH68: 42383.86944 | BI68: 42383.85903
A69: 0 | B69: =IF(Instructions!$C$2="BST",A69,0) -> 0 | C69: 2020-01-16T02:06:00 | D69: 2020-01-16 | E69: 2020-01-16 | F69: 1 | G69: Jan | H69: 16 | I69: 4 | J69: Thu | K69: 42384.0875 | L69: 5.27 | M69: HW | N69: 0.6782608696 | O69: 02:06:00 | P69: 00:00:00 | Q69: 06:00:00 | R69: 0.65 | S69: 42384.10122 | T69: 7.085217391 | U69: 42384.16719 | V69: 42384.10347 | W69: 6.817391304 | X69: 42384.04583 | Y69: 42384.07465 | Z69: 5.213913043 | AA69: 42384.06424 | AB69: 42384.06667 | AC69: 4.813913043 | AD69: Opn | AE69: 42383.95208 | AF69: 42384.0658 | AG69: 4.246086957 | AH69: 42384.04028 | AI69: 4.57826087 | AJ69: 42384.10243 | AK69: 6.985217391 | AL69: 42384.10365 | AM69: 6.953043478 | AN69: 42384.09896 | AO69: 6.717391304 | AP69: 42384.1026 | AQ69: 6.117391304 | AR69: 42384.07708 | AS69: 42384.09792 | AT69: 42384.06111 | AU69: 4.813913043 | AV69: 42384.06111 | AW69: 4.613913043 | AX69: 42384.03906 | AY69: 4.38173913 | AZ69: 42384.03559 | BA69: 4.213913043 | BB69: 42384.03212 | BC69: 4.146086957 | BD69: 42383.98542 | BE69: 4.013913043 | BF69: 42384.07708 | BH69: 42384.12917 | BI69: 42384.11875
A70: 0 | B70: =IF(Instructions!$C$2="BST",A70,0) -> 0 | C70: 2020-01-16T08:06:00 | D70: 2020-01-16 | E70: Thu | F70: 1 | I70: 4 | K70: 42384.3375 | L70: 1.27 | M70: LW | N70: 0.572519084 | O70: 08:06:00 | P70: 05:00:00 | Q70: 11:00:00 | R70: 0.4833333333 | S70: 42384.36852 | T70: 1.526717557 | U70: 42384.43449 | V70: 42384.35341 | W70: 1.383969466 | X70: 42384.29583 | Y70: 42384.34757 | Z70: 1.312977099 | AA70: 42384.31701 | AB70: 42384.34074 | AC70: 1.155725191 | AD70: Cls | AE70: 42384.18125 | AF70: 42384.32731 | AG70: 1.112977099 | AH70: 42384.32025 | AI70: 1.212977099 | AJ70: 42384.36684 | AK70: 1.583969466 | AL70: 42384.36684 | AM70: 1.583969466 | AN70: 42384.35822 | AO70: 1.583969466 | AP70: 42384.36348 | AQ70: 1.441221374 | AR70: 42384.32708 | AS70: 42384.35139 | AT70: 42384.32708 | AU70: 1.312977099 | AV70: 42384.33044 | AW70: 1.255725191 | AX70: 42384.32025 | AY70: 1.112977099 | AZ70: 42384.31678 | BA70: 1.055725191 | BB70: 42384.31152 | BC70: 1.155725191 | BD70: 42384.26638 | BE70: 0.9847328244 | BF70: 42384.36181 | BH70: 42384.37917 | BI70: 42384.36875
A71: 0 | B71: =IF(Instructions!$C$2="BST",A71,0) -> 0 | C71: 2020-01-16T14:23:00 | D71: 2020-01-16 | F71: 1 | I71: 4 | K71: 42384.59931 | L71: 5.54 | M71: HW | N71: 0.9130434783 | O71: 14:23:00 | P71: 12:00:00 | Q71: 18:00:00 | R71: 0.6027777778 | S71: 42384.61253 | T71: 7.460869565 | U71: 42384.6785 | V71: 42384.61462 | W71: 7.169565217 | X71: 42384.55764 | Y71: 42384.58613 | Z71: 5.495652174 | AA71: 42384.57571 | AB71: 42384.57847 | AC71: 5.095652174 | AD71: Opn | AE71: 42384.46389 | AF71: 42384.57842 | AG71: 4.504347826 | AH71: 42384.55274 | AI71: 4.813043478 | AJ71: 42384.61391 | AK71: 7.360869565 | AL71: 42384.61529 | AM71: 7.352173913 | AN71: 42384.61044 | AO71: 7.069565217 | AP71: 42384.61457 | AQ71: 6.469565217 | AR71: 42384.58889 | AS71: 42384.60972 | AT71: 42384.57357 | AU71: 5.095652174 | AV71: 42384.57357 | AW71: 4.895652174 | AX71: 42384.55136 | AY71: 4.686956522 | AZ71: 42384.54789 | BA71: 4.495652174 | BB71: 42384.54442 | BC71: 4.404347826 | BD71: 42384.49657 | BE71: 4.295652174 | BF71: 42384.58889 | BH71: 42384.64097 | BI71: 42384.63056
A72: 0 | B72: =IF(Instructions!$C$2="BST",A72,0) -> 0 | C72: 2020-01-16T20:47:00 | D72: 2020-01-16 | F72: 1 | I72: 4 | K72: 42384.86597 | L72: 1.06 | M72: LW | N72: 0.7328244275 | O72: 20:47:00 | P72: 17:00:00 | Q72: 23:00:00 | R72: 0.3694444444 | S72: 42384.89541 | T72: 1.254198473 | U72: 42384.96138 | V72: 42384.88386 | W72: 1.127480916 | X72: 42384.82431 | Y72: 42384.87367 | Z72: 1.120610687 | AA72: 42384.84786 | AB72: 42384.86763 | AC72: 0.9473282443 | AD72: Cls | AE72: 42384.69306 | AF72: 42384.85737 | AG72: 0.920610687 | AH72: 42384.84952 | AI72: 1.020610687 | AJ72: 42384.89413 | AK72: 1.327480916 | AL72: 42384.89413 | AM72: 1.327480916 | AN72: 42384.8859 | AO72: 1.327480916 | AP72: 42384.89156 | AQ72: 1.200763359 | AR72: 42384.85556 | AS72: 42384.87986 | AT72: 42384.85556 | AU72: 1.120610687 | AV72: 42384.85812 | AW72: 1.047328244 | AX72: 42384.84952 | AY72: 0.920610687 | AZ72: 42384.84605 | BA72: 0.8473282443 | BB72: 42384.84038 | BC72: 0.9473282443 | BD72: 42384.79524 | BE72: 0.8404580153 | BF72: 42384.89028 | BH72: 42384.90764 | BI72: 42384.89722
A73: 0 | B73: =IF(Instructions!$C$2="BST",A73,0) -> 0 | C73: 2020-01-17T03:02:00 | D73: 2020-01-17 | E73: 2020-01-17 | F73: 1 | G73: Jan | H73: 17 | I73: 5 | J73: Fri | K73: 42385.12639 | L73: 5.07 | M73: HW | N73: 0.5043478261 | O73: 03:02:00 | P73: 00:00:00 | Q73: 06:00:00 | R73: 0.4944444445 | S73: 42385.13848 | T73: 6.806956522 | U73: 42385.20446 | V73: 42385.1402 | W73: 6.556521739 | X73: 42385.08472 | Y73: 42385.11246 | Z73: 5.005217391 | AA73: 42385.10204 | AB73: 42385.10556 | AC73: 4.605217391 | AD73: Opn | AE73: 42384.99097 | AF73: 42385.10739 | AG73: 4.054782609 | AH73: 42385.08133 | AI73: 4.404347826 | AJ73: 42385.14024 | AK73: 6.706956522 | AL73: 42385.14199 | AM73: 6.657391304 | AN73: 42385.13677 | AO73: 6.456521739 | AP73: 42385.14203 | AQ73: 5.856521739 | AR73: 42385.11597 | AS73: 42385.13681 | AT73: 42385.10216 | AU73: 4.605217391 | AV73: 42385.10216 | AW73: 4.405217391 | AX73: 42385.07957 | AY73: 4.155652174 | AZ73: 42385.0761 | BA73: 4.005217391 | BB73: 42385.07263 | BC73: 3.954782609 | BD73: 42385.02215 | BE73: 3.805217391 | BF73: 42385.11597 | BH73: 42385.16806 | BI73: 42385.15764
A74: 0 | B74: =IF(Instructions!$C$2="BST",A74,0) -> 0 | C74: 2020-01-17T09:02:00 | D74: 2020-01-17 | E74: Fri | F74: 1 | I74: 5 | K74: 42385.37639 | L74: 1.48 | M74: LW | N74: 0.4122137405 | O74: 09:02:00 | P74: 05:00:00 | Q74: 11:00:00 | R74: 0.3277777778 | S74: 42385.40525 | T74: 1.799236641 | U74: 42385.47122 | V74: 42385.395 | W74: 1.640458015 | X74: 42385.33472 | Y74: 42385.38322 | Z74: =IF($M74="HW",Y$2+(Y$1-Y$2)*$N74,Y$3+(Y$4-Y$3)*$N74) -> 1.505343511 | AA74: 42385.35914 | AB74: 42385.37747 | AC74: =IF($M74="HW",AB$2+(AB$1-AB$2)*$N74,AB$3+(AB$4-AB$3)*$N74) -> 1.364122137 | AD74: Cls | AE74: 42385.22014 | AF74: 42385.36836 | AG74: =IF($M74="HW",AF$2+(AF$1-AF$2)*$N74,AF$3+(AF$4-AF$3)*$N74) -> 1.305343511 | AH74: 42385.36022 | AI74: =IF($M74="HW",AH$2+(AH$1-AH$2)*$N74,AH$3+(AH$4-AH$3)*$N74) -> 1.405343511 | AJ74: 42385.40411 | AK74: =IF($M74="HW",AJ$2+(AJ$1-AJ$2)*$N74,AJ$3+(AJ$4-AJ$3)*$N74) -> 1.840458015 | AL74: 42385.40411 | AM74: =IF($M74="HW",AL$2+(AL$1-AL$2)*$N74,AL$3+(AL$4-AL$3)*$N74) -> 1.840458015 | AN74: 42385.39603 | AO74: =IF($M74="HW",AN$2+(AN$1-AN$2)*$N74,AN$3+(AN$4-AN$3)*$N74) -> 1.840458015 | AP74: 42385.40183 | AQ74: =IF($M74="HW",AP$2+(AP$1-AP$2)*$N74,AP$3+(AP$4-AP$3)*$N74) -> 1.681679389 | AR74: 42385.36597 | AS74: 42385.39028 | AT74: 42385.36597 | AU74: =IF($M74="HW",AT$2+(AT$1-AT$2)*$N74,AT$3+(AT$4-AT$3)*$N74) -> 1.505343511 | AV74: 42385.36825 | AW74: =IF($M74="HW",AV$2+(AV$1-AV$2)*$N74,AV$3+(AV$4-AV$3)*$N74) -> 1.464122137 | AX74: 42385.36022 | AY74: =IF($M74="HW",AX$2+(AX$1-AX$2)*$N74,AX$3+(AX$4-AX$3)*$N74) -> 1.305343511 | AZ74: 42385.35675 | BA74: =IF($M74="HW",AZ$2+(AZ$1-AZ$2)*$N74,AZ$3+(AZ$4-AZ$3)*$N74) -> 1.264122137 | BB74: 42385.35095 | BC74: =IF($M74="HW",BB$2+(BB$1-BB$2)*$N74,BB$3+(BB$4-BB$3)*$N74) -> 1.364122137 | BD74: 42385.30581 | BE74: =IF($M74="HW",BD$2+(BD$1-BD$2)*$N74,BD$3+(BD$4-BD$3)*$N74) -> 1.129007634 | BF74: 42385.40069 | BH74: 42385.41806 | BI74: 42385.40764
A75: 0 | B75: =IF(Instructions!$C$2="BST",A75,0) -> 0 | C75: 2020-01-17T15:21:00 | D75: 2020-01-17 | F75: 1 | I75: 5 | K75: 42385.63958 | L75: 5.31 | M75: HW | N75: =IF(M75="HW",(L75-K$2)/(K$1-K$2),(L75-K$3)/(K$4-K$3)) -> 0.7130434783 | O75: 15:21:00 | P75: =IF(M75="HW",IF(AND(O75>=L$5,O75<L$6),L$5,IF(AND(O75>=L$6,O75<M$5),M$5,IF(AND(O75>=M$5,O75<M$6),M$5,IF(O75>=M$6,L$5+1,L$5)))),IF(AND(O75>=L$7,O75<L$8),L$7,IF(AND(O75>=L$8,O75<M$7),M$7,IF(AND(O75>=M$7,O75<M$8),M$7,IF(O75>=M$8,L$7+1,L$7))))) -> 12:00:00 | Q75: =IF(M75="HW",IF(AND(O75>=L$5,O75<L$6),L$6,IF(AND(O75>=L$6,O75<M$5),L$6,IF(AND(O75>=M$5,O75<M$6),M$6,IF(O75>=M$6,M$6,M$6-1)))),IF(AND(O75>=L$7,O75<L$8),L$8,IF(AND(O75>=L$8,O75<M$7),L$8,IF(AND(O75>=M$7,O75<M$8),M$8,IF(O75>=M$8,M$8,M$8-1))))) -> 18:00:00 | R75: 0.4416666667 | S75: 42385.65113 | T75: =IF($M75="HW",S$2+(S$1-S$2)*$N75,S$3+(S$4-S$3)*$N75) -> 7.140869565 | U75: 42385.7171 | V75: 42385.65266 | W75: =IF($M75="HW",V$2+(V$1-V$2)*$N75,V$3+(V$4-V$3)*$N75) -> 6.869565217 | X75: 42385.59792 | Y75: 42385.62529 | Z75: 5.255652174 | AA75: 42385.61487 | AB75: =IF($M75="HW",$K75+AB$6+(AB$5-AB$6)*$R75,$K75+AB$8+(AB$7-AB$8)*$R75) -> 42385.61875 | AC75: 4.855652174 | AD75: =IF($M75="HW","Opn","Cls") -> Opn | AE75: 42385.50417 | AF75: =IF($M75="HW",$K75+AF$6+(AF$5-AF$6)*$R75,$K75+AF$8+(AF$7-AF$8)*$R75) -> 42385.6215 | AG75: 4.284347826 | AH75: =IF($M75="HW",$K75+AH$6+(AH$5-AH$6)*$R75,$K75+AH$8+(AH$7-AH$8)*$R75) -> 42385.59525 | AI75: 4.613043478 | AJ75: =IF($M75="HW",$K75+AJ$6+(AJ$5-AJ$6)*$R75,$K75+AJ$8+(AJ$7-AJ$8)*$R75) -> 42385.65307 | AK75: 7.040869565 | AL75: =IF($M75="HW",$K75+AL$6+(AL$5-AL$6)*$R75,$K75+AL$8+(AL$7-AL$8)*$R75) -> 42385.65501 | AM75: 7.012173913 | AN75: =IF($M75="HW",$K75+AN$6+(AN$5-AN$6)*$R75,$K75+AN$8+(AN$7-AN$8)*$R75) -> 42385.64959 | AO75: 6.769565217 | AP75: =IF($M75="HW",$K75+AP$6+(AP$5-AP$6)*$R75,$K75+AP$8+(AP$7-AP$8)*$R75) -> 42385.65541 | AQ75: 6.169565217 | AR75: 42385.62917 | AS75: 42385.65 | AT75: =IF($M75="HW",$K75+AT$6+(AT$5-AT$6)*$R75,$K75+AT$8+(AT$7-AT$8)*$R75) -> 42385.61609 | AU75: 4.855652174 | AV75: =IF($M75="HW",$K75+AV$6+(AV$5-AV$6)*$R75,$K75+AV$8+(AV$7-AV$8)*$R75) -> 42385.61609 | AW75: 4.655652174 | AX75: =IF($M75="HW",$K75+AX$6+(AX$5-AX$6)*$R75,$K75+AX$8+(AX$7-AX$8)*$R75) -> 42385.59332 | AY75: 4.426956522 | AZ75: =IF($M75="HW",$K75+AZ$6+(AZ$5-AZ$6)*$R75,$K75+AZ$8+(AZ$7-AZ$8)*$R75) -> 42385.58984 | BA75: 4.255652174 | BB75: =IF($M75="HW",$K75+BB$6+(BB$5-BB$6)*$R75,$K75+BB$8+(BB$7-BB$8)*$R75) -> 42385.58637 | BC75: 4.184347826 | BD75: =IF($M75="HW",$K75+BD$6+(BD$5-BD$6)*$R75,$K75+BD$8+(BD$7-BD$8)*$R75) -> 42385.53461 | BE75: 4.055652174 | BF75: 42385.62917 | BH75: 42385.68125 | BI75: 42385.67083
A76: 0 | B76: =IF(Instructions!$C$2="BST",A76,0) -> 0 | C76: 2020-01-17T21:47:00 | D76: =DATE(YEAR(K76),MONTH(K76),DAY(K76)) -> 2020-01-17 | F76: =MONTH(K76) -> 1 | G76: =IF(H76="","",TEXT(F76*29,"mmm")) ->  | H76: =IF(I76=I75,"",DAY(K76)) ->  | I76: =WEEKDAY(K76,2) -> 5 | J76: =IF(I76=I75,"",TEXT(I76+2,"ddd")) ->  | K76: =C76+B76/24 -> 42385.90764 | L76: 1.28 | M76: LW | N76: 0.5648854962 | O76: =C76-INT(C76) -> 21:47:00 | P76: 17:00:00 | Q76: 23:00:00 | R76: =ABS((O76-Q76)/(P76-Q76)) -> 0.2027777778 | S76: 42385.93476 | T76: 1.539694656 | U76: 42386.00073 | V76: 42385.92842 | W76: 1.396183206 | X76: 42385.86597 | Y76: 42385.91186 | Z76: 1.322137405 | AA76: =IF($M76="HW",$K76+AA$6+(AA$5-AA$6)*$R76,$K76+AA$8+(AA$7-AA$8)*$R76) -> 42385.893 | AB76: 42385.90698 | AC76: 1.165648855 | AD76: Cls | AE76: =IF($M76="HW",$AB76-AD$8,$AB75+AD$8) -> 42385.73333 | AF76: 42385.90135 | AG76: 1.122137405 | AH76: 42385.89234 | AI76: 1.222137405 | AJ76: 42385.93406 | AK76: 1.596183206 | AL76: 42385.93406 | AM76: 1.596183206 | AN76: 42385.92641 | AO76: 1.596183206 | AP76: 42385.93265 | AQ76: 1.452671756 | AR76: 42385.89722 | AS76: 42385.92153 | AT76: 42385.89722 | AU76: 1.322137405 | AV76: 42385.89863 | AW76: 1.265648855 | AX76: 42385.89234 | AY76: 1.122137405 | AZ76: 42385.88887 | BA76: 1.065648855 | BB76: 42385.88263 | BC76: 1.165648855 | BD76: 42385.83749 | BE76: 0.9916030534 | BF76: 42385.93194 | BH76: 42385.94931 | BI76: 42385.93889
A77: 0 | B77: =IF(Instructions!$C$2="BST",A77,0) -> 0 | C77: 2020-01-18T04:04:00 | D77: 2020-01-18 | E77: =IF(D77=D76,IF(J76="","",J76),D77) -> 2020-01-18 | F77: 1 | G77: Jan | H77: 18 | I77: 6 | J77: Sat | K77: 42386.16944 | L77: 4.88 | M77: HW | N77: 0.3391304348 | O77: 04:04:00 | P77: 00:00:00 | Q77: 06:00:00 | R77: 0.3222222222 | S77: =IF($M77="HW",$K77+S$6+(S$5-S$6)*$R77,$K77+S$8+(S$7-S$8)*$R77) -> 42386.17975 | T77: 6.542608696 | U77: 42386.24572 | V77: 42386.18086 | W77: 6.308695652 | X77: =IF($M77="HW",$K77+X$6+(X$5-X$6)*$R77,$K77+X$8+(X$7-X$8)*$R77) -> 42386.12778 | Y77: 42386.15432 | Z77: 4.806956522 | AA77: 42386.1439 | AB77: 42386.14861 | AC77: 4.406956522 | AD77: Opn | AE77: 42386.03403 | AF77: 42386.15343 | AG77: 3.873043478 | AH77: 42386.12677 | AI77: 4.239130435 | AJ77: 42386.1821 | AK77: 6.442608696 | AL77: 42386.18445 | AM77: 6.376521739 | AN77: 42386.17863 | AO77: 6.208695652 | AP77: 42386.18569 | AQ77: 5.608695652 | AR77: =IF($M77="HW",$K77+AR$6+(AR$5-AR$6)*$R77,$K77+AR$8+(AR$7-AR$8)*$R77) -> 42386.15903 | AS77: 42386.17986 | AT77: 42386.14761 | AU77: 4.406956522 | AV77: 42386.14761 | AW77: 4.206956522 | AX77: 42386.12442 | AY77: 3.940869565 | AZ77: 42386.12095 | BA77: 3.806956522 | BB77: 42386.11748 | BC77: 3.773043478 | BD77: 42386.06281 | BE77: 3.606956522 | BF77: =IF($M77="HW",$K77+BF$6+(BF$5-BF$6)*$R77,$K77+BF$8+(BF$7-BF$8)*$R77) -> 42386.15903 | BH77: 42386.21111 | BI77: 42386.20069
A78: 0 | B78: =IF(Instructions!$C$2="BST",A78,0) -> 0 | C78: 2020-01-18T10:07:00 | D78: 2020-01-18 | E78: Sat | F78: 1 | I78: 6 | K78: 42386.42153 | L78: 1.68 | M78: LW | N78: 0.2595419847 | O78: 10:07:00 | P78: 05:00:00 | Q78: 11:00:00 | R78: 0.1472222222 | S78: 42386.44788 | T78: 2.058778626 | U78: 42386.51385 | V78: 42386.44328 | W78: 1.884732824 | X78: 42386.37986 | Y78: 42386.42459 | Z78: 1.688549618 | AA78: 42386.40804 | AB78: 42386.4201 | AC78: 1.56259542 | AD78: Cls | AE78: 42386.26319 | AF78: 42386.41601 | AG78: 1.488549618 | AH78: 42386.40662 | AI78: 1.588549618 | AJ78: 42386.44737 | AK78: 2.084732824 | AL78: 42386.44737 | AM78: 2.084732824 | AN78: 42386.43991 | AO78: 2.084732824 | AP78: 42386.44634 | AQ78: 1.910687023 | AR78: 42386.41111 | AS78: 42386.43542 | AT78: 42386.41111 | AU78: 1.688549618 | AV78: 42386.41213 | AW78: 1.66259542 | AX78: 42386.40662 | AY78: 1.488549618 | AZ78: 42386.40314 | BA78: 1.46259542 | BB78: 42386.39671 | BC78: 1.56259542 | BD78: 42386.35157 | BE78: 1.266412214 | BF78: 42386.44583 | BH78: 42386.46319 | BI78: 42386.45278
A79: 0 | B79: =IF(Instructions!$C$2="BST",A79,0) -> 0 | C79: 2020-01-18T16:28:00 | D79: 2020-01-18 | F79: 1 | I79: 6 | K79: 42386.68611 | L79: 5.09 | M79: HW | N79: 0.5217391304 | O79: 16:28:00 | P79: 12:00:00 | Q79: 18:00:00 | R79: 0.2555555555 | S79: 42386.69572 | T79: 6.834782609 | U79: 42386.76169 | V79: 42386.6966 | W79: 6.582608696 | X79: 42386.64444 | Y79: 42386.67052 | Z79: 5.026086957 | AA79: 42386.66011 | AB79: 42386.66528 | AC79: 4.626086957 | AD79: Opn | AE79: 42386.55069 | AF79: 42386.67126 | AG79: 4.073913043 | AH79: 42386.64437 | AI79: 4.42173913 | AJ79: 42386.6983 | AK79: 6.734782609 | AL79: 42386.70089 | AM79: 6.686956522 | AN79: 42386.69483 | AO79: 6.482608696 | AP79: 42386.70258 | AQ79: 5.882608696 | AR79: 42386.67569 | AS79: 42386.69653 | AT79: 42386.6652 | AU79: 4.626086957 | AV79: 42386.6652 | AW79: 4.426086957 | AX79: 42386.64178 | AY79: 4.17826087 | AZ79: 42386.63831 | BA79: 4.026086957 | BB79: 42386.63484 | BC79: 3.973913043 | BD79: 42386.57855 | BE79: 3.826086957 | BF79: 42386.67569 | BH79: 42386.72778 | BI79: 42386.71736
A80: 0 | B80: =IF(Instructions!$C$2="BST",A80,0) -> 0 | C80: 2020-01-18T22:55:00 | D80: 2020-01-18 | F80: 1 | I80: 6 | K80: 42386.95486 | L80: 1.47 | M80: LW | N80: 0.4198473282 | O80: 22:55:00 | P80: 17:00:00 | Q80: 23:00:00 | R80: 0.0138888889 | S80: 42386.97936 | T80: 1.786259542 | U80: 42387.04533 | V80: 42386.97893 | W80: 1.628244275 | X80: 42386.91319 | Y80: 42386.95515 | Z80: 1.496183206 | AA80: 42386.94416 | AB80: 42386.95158 | AC80: 1.354198473 | AD80: Cls | AE80: 42386.77986 | AF80: 42386.9512 | AG80: 1.296183206 | AH80: 42386.94088 | AI80: 1.396183206 | AJ80: 42386.97931 | AK80: 1.828244275 | AL80: 42386.97931 | AM80: 1.828244275 | AN80: 42386.97232 | AO80: 1.828244275 | AP80: 42386.97921 | AQ80: 1.670229008 | AR80: 42386.94444 | AS80: 42386.96875 | AT80: 42386.94444 | AU80: 1.496183206 | AV80: 42386.94454 | AW80: 1.454198473 | AX80: 42386.94088 | AY80: 1.296183206 | AZ80: 42386.9374 | BA80: 1.254198473 | BB80: 42386.93051 | BC80: 1.354198473 | BD80: 42386.88537 | BE80: 1.122137405 | BF80: 42386.97917 | BH80: 42386.99653 | BI80: 42386.98611
A81: 0 | B81: =IF(Instructions!$C$2="BST",A81,0) -> 0 | C81: 2020-01-19T05:15:00 | D81: 2020-01-19 | E81: 2020-01-19 | F81: 1 | G81: Jan | H81: 19 | I81: 7 | J81: Sun | K81: 42387.21875 | L81: 4.77 | M81: HW | N81: 0.2434782609 | O81: 05:15:00 | P81: 00:00:00 | Q81: 06:00:00 | R81: 0.125 | S81: 42387.227 | T81: 6.389565217 | U81: 42387.29297 | V81: 42387.22743 | W81: 6.165217391 | X81: 42387.17708 | Y81: 42387.20226 | Z81: 4.692173913 | AA81: 42387.19184 | AB81: 42387.19792 | AC81: 4.292173913 | AD81: Opn | AE81: 42387.08333 | AF81: 42387.20616 | AG81: 3.767826087 | AH81: 42387.17882 | AI81: 4.143478261 | AJ81: 42387.23003 | AK81: 6.289565217 | AL81: 42387.23307 | AM81: 6.213913043 | AN81: 42387.22656 | AO81: 6.065217391 | AP81: 42387.23568 | AQ81: 5.465217391 | AR81: 42387.20833 | AS81: 42387.22917 | AT81: 42387.19965 | AU81: 4.292173913 | AV81: 42387.19965 | AW81: 4.092173913 | AX81: 42387.17578 | AY81: 3.816521739 | AZ81: 42387.17231 | BA81: 3.692173913 | BB81: 42387.16884 | BC81: 3.667826087 | BD81: 42387.10938 | BE81: 3.492173913 | BF81: 42387.20833 | BH81: 42387.26042 | BI81: 42387.25
A82: 0 | B82: =IF(Instructions!$C$2="BST",A82,0) -> 0 | C82: 2020-01-19T11:20:00 | D82: 2020-01-19 | E82: Sun | F82: 1 | I82: 7 | K82: 42387.47222 | L82: 1.8 | M82: LW | N82: 0.1679389313 | O82: 11:20:00 | P82: 17:00:00 | Q82: 11:00:00 | R82: 0.05555555554 | S82: 42387.4973 | T82: 2.214503817 | U82: 42387.56327 | V82: 42387.49556 | W82: 2.03129771 | X82: 42387.43056 | Y82: 42387.47338 | Z82: 1.798473282 | AA82: 42387.46065 | AB82: 42387.46952 | AC82: 1.681679389 | AD82: Cls | AE82: 42387.3125 | AF82: 42387.46798 | AG82: 1.598473282 | AH82: 42387.45795 | AI82: 1.698473282 | AJ82: 42387.49711 | AK82: 2.23129771 | AL82: 42387.49711 | AM82: 2.23129771 | AN82: 42387.48997 | AO82: 2.23129771 | AP82: 42387.49672 | AQ82: 2.048091603 | AR82: 42387.46181 | AS82: 42387.48611 | AT82: 42387.46181 | AU82: 1.798473282 | AV82: 42387.46219 | AW82: 1.781679389 | AX82: 42387.45795 | AY82: 1.598473282 | AZ82: 42387.45448 | BA82: 1.581679389 | BB82: 42387.44772 | BC82: 1.681679389 | BD82: 42387.40258 | BE82: 1.348854962 | BF82: 42387.49653 | BH82: 42387.51389 | BI82: 42387.50347
A83: 0 | B83: =IF(Instructions!$C$2="BST",A83,0) -> 0 | C83: 2020-01-19T17:45:00 | D83: 2020-01-19 | F83: 1 | I83: 7 | K83: 42387.73958 | L83: 4.95 | M83: HW | N83: 0.4 | O83: 17:45:00 | P83: 12:00:00 | Q83: 18:00:00 | R83: 0.04166666666 | S83: 42387.74696 | T83: 6.64 | U83: 42387.81293 | V83: 42387.74711 | W83: 6.4 | X83: 42387.69792 | Y83: 42387.72251 | Z83: 4.88 | AA83: 42387.71209 | AB83: 42387.71875 | AC83: 4.48 | AD83: Opn | AE83: 42387.60417 | AF83: 42387.72844 | AG83: 3.94 | AH83: 42387.70081 | AI83: 4.3 | AJ83: 42387.75029 | AK83: 6.54 | AL83: 42387.75362 | AM83: 6.48 | AN83: 42387.74682 | AO83: 6.3 | AP83: 42387.7568 | AQ83: 5.7 | AR83: 42387.72917 | AS83: 42387.75 | AT83: 42387.72164 | AU83: 4.48 | AV83: 42387.72164 | AW83: 4.28 | AX83: 42387.69748 | AY83: 4.02 | AZ83: 42387.69401 | BA83: 3.88 | BB83: 42387.69054 | BC83: 3.84 | BD83: 42387.62905 | BE83: 3.68 | BF83: 42387.72917 | BH83: 42387.78125 | BI83: 42387.77083
A84: 0 | B84: =IF(Instructions!$C$2="BST",A84,0) -> 0 | C84: 2020-01-20T00:07:00 | D84: 2020-01-20 | E84: 2020-01-20 | F84: 1 | G84: Jan | H84: 20 | I84: 1 | J84: Mon | K84: 42388.00486 | L84: 1.56 | M84: LW | N84: 0.3511450382 | O84: 00:07:00 | P84: 05:00:00 | Q84: -0.04166666667 | R84: 0.1861111111 | S84: 42388.03175 | T84: 1.903053435 | U84: 42388.09772 | V84: 42388.02594 | W84: 1.738167939 | X84: 42387.96319 | Y84: 42388.00874 | Z84: 1.578625954 | AA84: 42387.99057 | AB84: 42388.00397 | AC84: 1.44351145 | AD84: Cls | AE84: 42387.83333 | AF84: 42387.9988 | AG84: 1.378625954 | AH84: 42387.98968 | AI84: 1.478625954 | AJ84: 42388.03111 | AK84: 1.938167939 | AL84: 42388.03111 | AM84: 1.938167939 | AN84: 42388.02351 | AO84: 1.938167939 | AP84: 42388.02981 | AQ84: 1.773282443 | AR84: 42387.99444 | AS84: 42388.01875 | AT84: 42387.99444 | AU84: 1.578625954 | AV84: 42387.99574 | AW84: 1.54351145 | AX84: 42387.98968 | AY84: 1.378625954 | AZ84: 42387.98621 | BA84: 1.34351145 | BB84: 42387.97991 | BC84: 1.44351145 | BD84: 42387.93477 | BE84: 1.183969466 | BF84: 42388.02917 | BH84: 42388.04653 | BI84: 42388.03611
A85: 0 | B85: =IF(Instructions!$C$2="BST",A85,0) -> 0 | C85: 2020-01-20T06:30:00 | D85: 2020-01-20 | E85: Mon | F85: 1 | I85: 1 | K85: 42388.27083 | L85: 4.79 | M85: HW | N85: 0.2608695652 | O85: 06:30:00 | P85: 12:00:00 | Q85: 06:00:00 | R85: 0.08333333334 | S85: 42388.27865 | T85: 6.417391304 | U85: 42388.34462 | V85: 42388.27894 | W85: 6.191304348 | X85: 42388.22917 | Y85: 42388.25405 | Z85: 4.713043478 | AA85: 42388.24363 | AB85: 42388.25 | AC85: 4.313043478 | AD85: Opn | AE85: 42388.13542 | AF85: 42388.25897 | AG85: 3.786956522 | AH85: 42388.23148 | AI85: 4.160869565 | AJ85: 42388.28183 | AK85: 6.317391304 | AL85: 42388.28501 | AM85: 6.243478261 | AN85: 42388.27836 | AO85: 6.091304348 | AP85: 42388.28791 | AQ85: 5.491304348 | AR85: 42388.26042 | AS85: 42388.28125 | AT85: 42388.25231 | AU85: 4.313043478 | AV85: 42388.25231 | AW85: 4.113043478 | AX85: 42388.2283 | AY85: 3.839130435 | AZ85: 42388.22483 | BA85: 3.713043478 | BB85: 42388.22135 | BC85: 3.686956522 | BD85: 42388.16088 | BE85: 3.513043478 | BF85: 42388.26042 | BH85: 42388.3125 | BI85: 42388.30208
A86: 0 | B86: =IF(Instructions!$C$2="BST",A86,0) -> 0 | C86: 2020-01-20T12:35:00 | D86: 2020-01-20 | F86: 1 | I86: 1 | K86: 42388.52431 | L86: 1.78 | M86: LW | N86: 0.1832061069 | O86: 12:35:00 | P86: 17:00:00 | Q86: 11:00:00 | R86: 0.2638888889 | S86: 42388.55228 | T86: 2.188549618 | U86: 42388.61825 | V86: 42388.54403 | W86: 2.006870229 | X86: 42388.48264 | Y86: 42388.5298 | Z86: 1.780152672 | AA86: 42388.50839 | AB86: 42388.5245 | AC86: 1.661832061 | AD86: Cls | AE86: 42388.36458 | AF86: 42388.51717 | AG86: 1.580152672 | AH86: 42388.50858 | AI86: 1.680152672 | AJ86: 42388.55136 | AK86: 2.206870229 | AL86: 42388.55136 | AM86: 2.206870229 | AN86: 42388.5435 | AO86: 2.206870229 | AP86: 42388.54953 | AQ86: 2.02519084 | AR86: 42388.51389 | AS86: 42388.53819 | AT86: 42388.51389 | AU86: 1.780152672 | AV86: 42388.51572 | AW86: 1.761832061 | AX86: 42388.50858 | AY86: 1.580152672 | AZ86: 42388.50511 | BA86: 1.561832061 | BB86: 42388.49908 | BC86: 1.661832061 | BD86: 42388.45394 | BE86: 1.335114504 | BF86: 42388.54861 | BH86: 42388.56597 | BI86: 42388.55556
A87: 0 | B87: =IF(Instructions!$C$2="BST",A87,0) -> 0 | C87: 2020-01-20T19:01:00 | D87: 2020-01-20 | F87: 1 | I87: 1 | K87: 42388.79236 | L87: 4.95 | M87: HW | N87: 0.4 | O87: 19:01:00 | P87: 1 | Q87: 18:00:00 | R87: 0.1694444444 | S87: 42388.80107 | T87: 6.64 | U87: 42388.86704 | V87: 42388.80166 | W87: 6.4 | X87: 42388.75069 | Y87: 42388.77618 | Z87: 4.88 | AA87: 42388.76576 | AB87: 42388.77153 | AC87: 4.48 | AD87: Opn | AE87: 42388.65694 | AF87: 42388.779 | AG87: 3.94 | AH87: 42388.75181 | AI87: 4.3 | AJ87: 42388.80395 | AK87: 6.54 | AL87: 42388.80684 | AM87: 6.48 | AN87: 42388.80048 | AO87: 6.3 | AP87: 42388.80913 | AQ87: 5.7 | AR87: 42388.78194 | AS87: 42388.80278 | AT87: 42388.77265 | AU87: 4.48 | AV87: 42388.77265 | AW87: 4.28 | AX87: 42388.74893 | AY87: 4.02 | AZ87: 42388.74546 | BA87: 3.88 | BB87: 42388.74198 | BC87: 3.84 | BD87: 42388.6836 | BE87: 3.68 | BF87: 42388.78194 | BH87: 42388.83403 | BI87: 42388.82361
A88: 0 | B88: =IF(Instructions!$C$2="BST",A88,0) -> 0 | C88: 2020-01-21T01:15:00 | D88: 2020-01-21 | E88: 2020-01-21 | F88: 1 | G88: Jan | H88: 21 | I88: 2 | J88: Tue | K88: 42389.05208 | L88: 1.54 | M88: LW | N88: 0.3664122137 | O88: 01:15:00 | P88: 05:00:00 | Q88: -0.04166666667 | R88: 0.375 | S88: 42389.0816 | T88: 1.877099237 | U88: 42389.14757 | V88: 42389.06988 | W88: 1.713740458 | X88: 42389.01042 | Y88: 42389.0599 | Z88: 1.560305344 | AA88: 42389.03385 | AB88: 42389.05382 | AC88: 1.423664122 | AD88: Cls | AE88: 42388.88611 | AF88: 42389.0434 | AG88: 1.360305344 | AH88: 42389.03559 | AI88: 1.460305344 | AJ88: 42389.0803 | AK88: 1.913740458 | AL88: 42389.0803 | AM88: 1.913740458 | AN88: 42389.07205 | AO88: 1.913740458 | AP88: 42389.07769 | AQ88: 1.750381679 | AR88: 42389.04167 | AS88: 42389.06597 | AT88: 42389.04167 | AU88: 1.560305344 | AV88: 42389.04427 | AW88: 1.523664122 | AX88: 42389.03559 | AY88: 1.360305344 | AZ88: 42389.03212 | BA88: 1.323664122 | BB88: 42389.02648 | BC88: 1.423664122 | BD88: 42388.98134 | BE88: 1.170229008 | BF88: 42389.07639 | BH88: 42389.09375 | BI88: 42389.08333
A89: 0 | B89: =IF(Instructions!$C$2="BST",A89,0) -> 0 | C89: 2020-01-21T07:37:00 | D89: 2020-01-21 | E89: Tue | F89: 1 | I89: 2 | K89: 42389.31736 | L89: 4.94 | M89: HW | N89: 0.3913043478 | O89: 07:37:00 | P89: 12:00:00 | Q89: 06:00:00 | R89: 0.2694444444 | S89: 42389.32711 | T89: 6.626086957 | U89: 42389.39308 | V89: 42389.32805 | W89: 6.386956522 | X89: 42389.27569 | Y89: 42389.30187 | Z89: 4.869565217 | AA89: 42389.29145 | AB89: 42389.29653 | AC89: 4.469565217 | AD89: Opn | AE89: 42389.18194 | AF89: 42389.30227 | AG89: 3.930434783 | AH89: 42389.27542 | AI89: 4.291304348 | AJ89: 42389.32965 | AK89: 6.526086957 | AL89: 42389.33219 | AM89: 6.465217391 | AN89: 42389.32618 | AO89: 6.286956522 | AP89: 42389.33379 | AQ89: 5.686956522 | AR89: 42389.30694 | AS89: 42389.32778 | AT89: 42389.29626 | AU89: 4.469565217 | AV89: 42389.29626 | AW89: 4.269565217 | AX89: 42389.27289 | AY89: 4.008695652 | AZ89: 42389.26942 | BA89: 3.869565217 | BB89: 42389.26594 | BC89: 3.830434783 | BD89: 42389.20999 | BE89: 3.669565217 | BF89: 42389.30694 | BH89: 42389.35903 | BI89: 42389.34861
A90: 0 | B90: =IF(Instructions!$C$2="BST",A90,0) -> 0 | C90: 2020-01-21T13:42:00 | D90: 2020-01-21 | F90: 1 | I90: 2 | K90: 42389.57083 | L90: 1.64 | M90: LW | N90: 0.2900763359 | O90: 13:42:00 | P90: 17:00:00 | Q90: 11:00:00 | R90: 0.45 | S90: 42389.60139 | T90: 2.006870229 | U90: 42389.66736 | V90: 42389.58733 | W90: 1.835877863 | X90: 42389.52917 | Y90: 42389.58021 | Z90: 1.651908397 | AA90: 42389.55104 | AB90: 42389.57361 | AC90: 1.522900763 | AD90: Cls | AE90: 42389.41111 | AF90: 42389.56111 | AG90: 1.451908397 | AH90: 42389.55382 | AI90: 1.551908397 | AJ90: 42389.59983 | AK90: 2.035877863 | AL90: 42389.59983 | AM90: 2.035877863 | AN90: 42389.59132 | AO90: 2.035877863 | AP90: 42389.5967 | AQ90: 1.864885496 | AR90: 42389.56042 | AS90: 42389.58472 | AT90: 42389.56042 | AU90: 1.651908397 | AV90: 42389.56354 | AW90: 1.622900763 | AX90: 42389.55382 | AY90: 1.451908397 | AZ90: 42389.55035 | BA90: 1.422900763 | BB90: 42389.54497 | BC90: 1.522900763 | BD90: 42389.49983 | BE90: 1.238931298 | BF90: 42389.59514 | BH90: 42389.6125 | BI90: 42389.60208
A91: 0 | B91: =IF(Instructions!$C$2="BST",A91,0) -> 0 | C91: 2020-01-21T20:06:00 | D91: 2020-01-21 | F91: 1 | I91: 2 | K91: 42389.8375 | L91: 5.04 | M91: HW | N91: 0.4782608696 | O91: 20:06:00 | P91: 1 | Q91: 18:00:00 | R91: 0.35 | S91: 42389.84809 | T91: 6.765217391 | U91: 42389.91406 | V91: 42389.84931 | W91: 6.517391304 | X91: 42389.79583 | Y91: 42389.82257 | Z91: 4.973913043 | AA91: 42389.81215 | AB91: 42389.81667 | AC91: 4.573913043 | AD91: Opn | AE91: 42389.70208 | AF91: 42389.82101 | AG91: 4.026086957 | AH91: 42389.79444 | AI91: 4.37826087 | AJ91: 42389.85035 | AK91: 6.665217391 | AL91: 42389.8526 | AM91: 6.613043478 | AN91: 42389.84688 | AO91: 6.417391304 | AP91: 42389.85365 | AQ91: 5.817391304 | AR91: 42389.82708 | AS91: 42389.84792 | AT91: 42389.81528 | AU91: 4.573913043 | AV91: 42389.81528 | AW91: 4.373913043 | AX91: 42389.79219 | AY91: 4.12173913 | AZ91: 42389.78872 | BA91: 3.973913043 | BB91: 42389.78524 | BC91: 3.926086957 | BD91: 42389.73125 | BE91: 3.773913043 | BF91: 42389.82708 | BH91: 42389.87917 | BI91: 42389.86875
A92: 0 | B92: =IF(Instructions!$C$2="BST",A92,0) -> 0 | C92: 2020-01-22T02:13:00 | D92: 2020-01-22 | E92: 2020-01-22 | F92: 1 | G92: Jan | H92: 22 | I92: 3 | J92: Wed | K92: 42390.09236 | L92: 1.45 | M92: LW | N92: 0.4351145038 | O92: 02:13:00 | P92: 05:00:00 | Q92: -0.04166666667 | R92: 0.5361111111 | S92: 42390.12411 | T92: 1.760305344 | U92: 42390.19008 | V92: 42390.10736 | W92: 1.603816794 | X92: 42390.05069 | Y92: 42390.10353 | Z92: 1.477862595 | AA92: 42390.07078 | AB92: 42390.09633 | AC92: 1.334351145 | AD92: Cls | AE92: 42389.93125 | AF92: 42390.08144 | AG92: 1.277862595 | AH92: 42390.07475 | AI92: 1.377862595 | AJ92: 42390.12225 | AK92: 1.803816794 | AL92: 42390.12225 | AM92: 1.803816794 | AN92: 42390.11345 | AO92: 1.803816794 | AP92: 42390.11853 | AQ92: 1.647328244 | AR92: 42390.08194 | AS92: 42390.10625 | AT92: 42390.08194 | AU92: 1.477862595 | AV92: 42390.08567 | AW92: 1.434351145 | AX92: 42390.07475 | AY92: 1.277862595 | AZ92: 42390.07128 | BA92: 1.234351145 | BB92: 42390.06619 | BC92: 1.334351145 | BD92: 42390.02106 | BE92: 1.108396947 | BF92: 42390.11667 | BH92: 42390.13403 | BI92: 42390.12361
A93: 0 | B93: =IF(Instructions!$C$2="BST",A93,0) -> 0 | C93: 2020-01-22T08:33:00 | D93: 2020-01-22 | E93: Wed | F93: 1 | I93: 3 | K93: 42390.35625 | L93: 5.14 | M93: HW | N93: 0.5652173913 | O93: 08:33:00 | P93: 12:00:00 | Q93: 06:00:00 | R93: 0.425 | S93: 42390.36762 | T93: 6.904347826 | U93: 42390.43359 | V93: 42390.3691 | W93: 6.647826087 | X93: 42390.31458 | Y93: 42390.34184 | Z93: 5.07826087 | AA93: 42390.33142 | AB93: 42390.33542 | AC93: 4.67826087 | AD93: Opn | AE93: 42390.22083 | AF93: 42390.33845 | AG93: 4.12173913 | AH93: 42390.31215 | AI93: 4.465217391 | AJ93: 42390.36962 | AK93: 6.804347826 | AL93: 42390.37161 | AM93: 6.760869565 | AN93: 42390.36615 | AO93: 6.547826087 | AP93: 42390.37214 | AQ93: 5.947826087 | AR93: 42390.34583 | AS93: 42390.36667 | AT93: 42390.33299 | AU93: 4.67826087 | AV93: 42390.33299 | AW93: 4.47826087 | AX93: 42390.31016 | AY93: 4.234782609 | AZ93: 42390.30668 | BA93: 4.07826087 | BB93: 42390.30321 | BC93: 4.02173913 | BD93: 42390.25104 | BE93: 3.87826087 | BF93: 42390.34583 | BH93: 42390.39792 | BI93: 42390.3875
A94: 0 | B94: =IF(Instructions!$C$2="BST",A94,0) -> 0 | C94: 2020-01-22T14:38:00 | D94: 2020-01-22 | F94: 1 | I94: 3 | K94: 42390.60972 | L94: 1.44 | M94: LW | N94: 0.4427480916 | O94: 14:38:00 | P94: 17:00:00 | Q94: 11:00:00 | R94: 0.6055555556 | S94: =IF($M94="HW",$K94+S$6+(S$5-S$6)*$R94,$K94+S$8+(S$7-S$8)*$R94) -> 42390.64244 | T94: 1.747328244 | U94: 42390.70841 | V94: 42390.62351 | W94: 1.591603053 | X94: =IF($M94="HW",$K94+X$6+(X$5-X$6)*$R94,$K94+X$8+(X$7-X$8)*$R94) -> 42390.56806 | Y94: 42390.62234 | Z94: 1.46870229 | AA94: 42390.58669 | AB94: 42390.61466 | AC94: 1.324427481 | AD94: Cls | AE94: 42390.45 | AF94: 42390.59784 | AG94: 1.26870229 | AH94: 42390.59163 | AI94: 1.36870229 | AJ94: 42390.64034 | AK94: 1.791603053 | AL94: 42390.64034 | AM94: 1.791603053 | AN94: 42390.63129 | AO94: 1.791603053 | AP94: 42390.63613 | AQ94: 1.635877863 | AR94: =IF($M94="HW",$K94+AR$6+(AR$5-AR$6)*$R94,$K94+AR$8+(AR$7-AR$8)*$R94) -> 42390.59931 | AS94: 42390.62361 | AT94: 42390.59931 | AU94: 1.46870229 | AV94: 42390.60351 | AW94: 1.424427481 | AX94: 42390.59163 | AY94: 1.26870229 | AZ94: 42390.58816 | BA94: 1.224427481 | BB94: 42390.58331 | BC94: 1.324427481 | BD94: 42390.53818 | BE94: 1.101526718 | BF94: =IF($M94="HW",$K94+BF$6+(BF$5-BF$6)*$R94,$K94+BF$8+(BF$7-BF$8)*$R94) -> 42390.63403 | BH94: 42390.65139 | BI94: 42390.64097
A95: 0 | B95: =IF(Instructions!$C$2="BST",A95,0) -> 0 | C95: 2020-01-22T21:00:00 | D95: 2020-01-22 | F95: 1 | I95: 3 | K95: 42390.875 | L95: 5.16 | M95: HW | N95: 0.5826086957 | O95: 21:00:00 | P95: 1 | Q95: 18:00:00 | R95: 0.5 | S95: 42390.88715 | T95: 6.932173913 | U95: 42390.95312 | V95: 42390.88889 | W95: 6.673913043 | X95: 42390.83333 | Y95: 42390.86111 | Z95: 5.099130435 | AA95: 42390.85069 | AB95: 42390.85417 | AC95: 4.699130435 | AD95: Opn | AE95: 42390.73958 | AF95: 42390.8559 | AG95: 4.140869565 | AH95: 42390.82986 | AI95: 4.482608696 | AJ95: 42390.88889 | AK95: 6.832173913 | AL95: 42390.89062 | AM95: 6.790434783 | AN95: 42390.88542 | AO95: 6.573913043 | AP95: 42390.89062 | AQ95: 5.973913043 | AR95: 42390.86458 | AS95: 42390.88542 | AT95: 42390.85069 | AU95: 4.699130435 | AV95: 42390.85069 | AW95: 4.499130435 | AX95: 42390.82812 | AY95: 4.257391304 | AZ95: 42390.82465 | BA95: 4.099130435 | BB95: 42390.82118 | BC95: 4.040869565 | BD95: 42390.77083 | BE95: 3.899130435 | BF95: 42390.86458 | BH95: 42390.91667 | BI95: 42390.90625
A96: 0 | B96: =IF(Instructions!$C$2="BST",A96,0) -> 0 | C96: 2020-01-23T03:02:00 | D96: 2020-01-23 | E96: 2020-01-23 | F96: 1 | G96: Jan | H96: 23 | I96: 4 | J96: Thu | K96: 42391.12639 | L96: 1.34 | M96: LW | N96: 0.5190839695 | O96: 03:02:00 | P96: 05:00:00 | Q96: -0.04166666667 | R96: 0.6722222222 | S96: 42391.16003 | T96: 1.617557252 | U96: 42391.226 | V96: 42391.13902 | W96: 1.469465649 | X96: 42391.08472 | Y96: 42391.14039 | Z96: 1.377099237 | AA96: 42391.10197 | AB96: 42391.13225 | AC96: 1.22519084 | AD96: Cls | AE96: 42390.96875 | AF96: 42391.11358 | AG96: 1.177099237 | AH96: 42391.10783 | AI96: 1.277099237 | AJ96: 42391.1577 | AK96: 1.669465649 | AL96: 42391.1577 | AM96: 1.669465649 | AN96: 42391.14842 | AO96: 1.669465649 | AP96: 42391.15303 | AQ96: 1.521374046 | AR96: 42391.11597 | AS96: 42391.14028 | AT96: 42391.11597 | AU96: 1.377099237 | AV96: 42391.12064 | AW96: 1.32519084 | AX96: 42391.10783 | AY96: 1.177099237 | AZ96: 42391.10436 | BA96: 1.12519084 | BB96: 42391.09975 | BC96: 1.22519084 | BD96: 42391.05461 | BE96: 1.032824427 | BF96: 42391.15069 | BH96: 42391.16806 | BI96: 42391.15764
A97: 0 | B97: =IF(Instructions!$C$2="BST",A97,0) -> 0 | C97: 2020-01-23T09:20:00 | D97: 2020-01-23 | E97: Thu | F97: 1 | I97: 4 | K97: 42391.38889 | L97: 5.33 | M97: HW | N97: 0.7304347826 | O97: 09:20:00 | P97: 12:00:00 | Q97: 06:00:00 | R97: 0.5555555556 | S97: 42391.40162 | T97: 7.168695652 | U97: 42391.46759 | V97: 42391.40355 | W97: 6.895652174 | X97: 42391.34722 | Y97: 42391.37539 | Z97: 5.276521739 | AA97: 42391.36497 | AB97: 42391.36806 | AC97: 4.876521739 | AD97: Opn | AE97: 42391.25347 | AF97: 42391.36883 | AG97: 4.303478261 | AH97: 42391.34298 | AI97: 4.630434783 | AJ97: 42391.40316 | AK97: 7.068695652 | AL97: 42391.40471 | AM97: 7.04173913 | AN97: 42391.39969 | AO97: 6.795652174 | AP97: 42391.40432 | AQ97: 6.195652174 | AR97: 42391.37847 | AS97: 42391.39931 | AT97: 42391.36381 | AU97: 4.876521739 | AV97: 42391.36381 | AW97: 4.676521739 | AX97: 42391.34144 | AY97: 4.449565217 | AZ97: 42391.33796 | BA97: 4.276521739 | BB97: 42391.33449 | BC97: 4.203478261 | BD97: 42391.28549 | BE97: 4.076521739 | BF97: 42391.37847 | BH97: 42391.43056 | BI97: 42391.42014
A98: 0 | B98: =IF(Instructions!$C$2="BST",A98,0) -> 0 | C98: 2020-01-23T15:26:00 | D98: 2020-01-23 | F98: 1 | I98: 4 | K98: 42391.64306 | L98: 1.25 | M98: LW | N98: 0.5877862595 | O98: 15:26:00 | P98: 17:00:00 | Q98: 11:00:00 | R98: 0.7388888889 | S98: 42391.67762 | T98: 1.500763359 | U98: 42391.7436 | V98: 42391.65453 | W98: 1.359541985 | X98: 42391.60139 | Y98: 42391.65845 | Z98: 1.294656489 | AA98: 42391.61725 | AB98: 42391.64985 | AC98: 1.135877863 | AD98: Cls | AE98: 42391.48264 | AF98: 42391.62932 | AG98: 1.094656489 | AH98: 42391.62404 | AI98: 1.194656489 | AJ98: 42391.67506 | AK98: 1.559541985 | AL98: 42391.67506 | AM98: 1.559541985 | AN98: 42391.66555 | AO98: 1.559541985 | AP98: 42391.66993 | AQ98: 1.418320611 | AR98: 42391.63264 | AS98: 42391.65694 | AT98: 42391.63264 | AU98: 1.294656489 | AV98: 42391.63777 | AW98: 1.235877863 | AX98: 42391.62404 | AY98: 1.094656489 | AZ98: 42391.62056 | BA98: 1.035877863 | BB98: 42391.61618 | BC98: 1.135877863 | BD98: 42391.57105 | BE98: 0.9709923664 | BF98: 42391.66736 | BH98: 42391.68472 | BI98: 42391.67431
A99: 0 | B99: =IF(Instructions!$C$2="BST",A99,0) -> 0 | C99: 2020-01-23T21:46:00 | D99: 2020-01-23 | F99: 1 | I99: 4 | K99: 42391.90694 | L99: 5.25 | M99: HW | N99: 0.6608695652 | O99: 21:46:00 | P99: 1 | Q99: 18:00:00 | R99: 0.6277777778 | S99: 42391.92043 | T99: 7.057391304 | U99: 42391.9864 | V99: 42391.92261 | W99: 6.791304348 | X99: 42391.86528 | Y99: 42391.89394 | Z99: 5.193043478 | AA99: 42391.88353 | AB99: 42391.88611 | AC99: 4.793043478 | AD99: Opn | AE99: 42391.77153 | AF99: 42391.88563 | AG99: 4.226956522 | AH99: 42391.86003 | AI99: 4.560869565 | AJ99: 42391.92172 | AK99: 6.957391304 | AL99: 42391.92301 | AM99: 6.923478261 | AN99: 42391.91825 | AO99: 6.691304348 | AP99: 42391.92213 | AQ99: 6.091304348 | AR99: 42391.89653 | AS99: 42391.91736 | AT99: 42391.88086 | AU99: 4.793043478 | AV99: 42391.88086 | AW99: 4.593043478 | AX99: 42391.85874 | AY99: 4.359130435 | AZ99: 42391.85527 | BA99: 4.193043478 | BB99: 42391.85179 | BC99: 4.126956522 | BD99: 42391.80455 | BE99: 3.993043478 | BF99: 42391.89653 | BH99: 42391.94861 | BI99: 42391.93819
A100: 0 | B100: =IF(Instructions!$C$2="BST",A100,0) -> 0 | C100: 2020-01-24T03:46:00 | D100: 2020-01-24 | E100: 2020-01-24 | F100: 1 | G100: Jan | H100: 24 | I100: 5 | J100: Fri | K100: 42392.15694 | L100: 1.24 | M100: LW | N100: 0.5954198473 | O100: 03:46:00 | P100: 05:00:00 | Q100: -0.04166666667 | R100: 0.7944444445 | S100: 42392.19228 | T100: 1.48778626 | U100: 42392.25826 | V100: 42392.16746 | W100: 1.347328244 | X100: 42392.11528 | Y100: 42392.1735 | Z100: 1.285496183 | AA100: 42392.12998 | AB100: 42392.16451 | AC100: 1.125954198 | AD100: Cls | AE100: 42392.00069 | AF100: 42392.14244 | AG100: 1.085496183 | AH100: 42392.13754 | AI100: 1.185496183 | AJ100: 42392.18953 | AK100: 1.547328244 | AL100: 42392.18953 | AM100: 1.547328244 | AN100: 42392.17982 | AO100: 1.547328244 | AP100: 42392.18401 | AQ100: 1.406870229 | AR100: 42392.14653 | AS100: 42392.17083 | AT100: 42392.14653 | AU100: 1.285496183 | AV100: 42392.15204 | AW100: 1.225954198 | AX100: 42392.13754 | AY100: 1.085496183 | AZ100: 42392.13407 | BA100: 1.025954198 | BB100: 42392.12988 | BC100: 1.125954198 | BD100: 42392.08474 | BE100: 0.9641221374 | BF100: 42392.18125 | BH100: 42392.19861 | BI100: 42392.18819
A101: 0 | B101: =IF(Instructions!$C$2="BST",A101,0) -> 0 | C101: 2020-01-24T10:02:00 | D101: 2020-01-24 | E101: Fri | F101: 1 | I101: 5 | K101: 42392.41806 | L101: 5.49 | M101: HW | N101: 0.8695652174 | O101: 10:02:00 | P101: 12:00:00 | Q101: 06:00:00 | R101: 0.6722222222 | S101: 42392.432 | T101: 7.391304348 | U101: 42392.49797 | V101: 42392.43434 | W101: 7.104347826 | X101: 42392.37639 | Y101: 42392.40536 | Z101: 5.443478261 | AA101: 42392.39495 | AB101: 42392.39722 | AC101: 5.043478261 | AD101: Opn | AE101: 42392.28264 | AF101: 42392.39597 | AG101: 4.456521739 | AH101: 42392.37052 | AI101: 4.769565217 | AJ101: 42392.43314 | AK101: 7.291304348 | AL101: 42392.43428 | AM101: 7.27826087 | AN101: 42392.42967 | AO101: 7.004347826 | AP101: 42392.43308 | AQ101: 6.404347826 | AR101: 42392.40764 | AS101: 42392.42847 | AT101: 42392.39136 | AU101: 5.043478261 | AV101: 42392.39136 | AW101: 4.843478261 | AX101: 42392.36939 | AY101: 4.630434783 | AZ101: 42392.36591 | BA101: 4.443478261 | BB101: 42392.36244 | BC101: 4.356521739 | BD101: 42392.31628 | BE101: 4.243478261 | BF101: 42392.40764 | BH101: 42392.45972 | BI101: 42392.44931
A102: 0 | B102: =IF(Instructions!$C$2="BST",A102,0) -> 0 | C102: 2020-01-24T16:09:00 | D102: 2020-01-24 | F102: 1 | I102: 5 | K102: 42392.67292 | L102: 1.1 | M102: LW | N102: 0.7022900763 | O102: 16:09:00 | P102: 17:00:00 | Q102: 11:00:00 | R102: 0.8583333333 | S102: 42392.70914 | T102: 1.30610687 | U102: 42392.77512 | V102: 42392.68232 | W102: 1.176335878 | X102: 42392.63125 | Y102: 42392.6908 | Z102: 1.157251908 | AA102: 42392.64462 | AB102: 42392.68137 | AC102: 0.9870229008 | AD102: Cls | AE102: 42392.51181 | AF102: 42392.65752 | AG102: 0.9572519084 | AH102: 42392.65307 | AI102: 1.057251908 | AJ102: 42392.70616 | AK102: 1.376335878 | AL102: 42392.70616 | AM102: 1.376335878 | AN102: 42392.69624 | AO102: 1.376335878 | AP102: 42392.7002 | AQ102: 1.246564885 | AR102: 42392.6625 | AS102: 42392.68681 | AT102: 42392.6625 | AU102: 1.157251908 | AV102: 42392.66846 | AW102: 1.087022901 | AX102: 42392.65307 | AY102: 0.9572519084 | AZ102: 42392.64959 | BA102: 0.8870229008 | BB102: 42392.64563 | BC102: 0.9870229008 | BD102: 42392.60049 | BE102: 0.8679389313 | BF102: 42392.69722 | BH102: 42392.71458 | BI102: 42392.70417
A103: 0 | B103: =IF(Instructions!$C$2="BST",A103,0) -> 0 | C103: 2020-01-24T22:26:00 | D103: 2020-01-24 | F103: 1 | I103: 5 | K103: 42392.93472 | L103: 5.3 | M103: HW | N103: 0.7043478261 | O103: 22:26:00 | P103: 1 | Q103: 18:00:00 | R103: 0.7388888889 | S103: 42392.94936 | T103: 7.126956522 | U103: 42393.01534 | V103: 42392.95193 | W103: 6.856521739 | X103: 42392.89306 | Y103: 42392.92249 | Z103: 5.245217391 | AA103: 42392.91208 | AB103: 42392.91389 | AC103: 4.845217391 | AD103: Opn | AE103: 42392.79931 | AF103: 42392.91148 | AG103: 4.274782609 | AH103: 42392.88627 | AI103: 4.604347826 | AJ103: 42392.95027 | AK103: 7.026956522 | AL103: 42392.95118 | AM103: 6.997391304 | AN103: 42392.9468 | AO103: 6.756521739 | AP103: 42392.94952 | AQ103: 6.156521739 | AR103: 42392.92431 | AS103: 42392.94514 | AT103: 42392.9071 | AU103: 4.845217391 | AV103: 42392.9071 | AW103: 4.645217391 | AX103: 42392.88536 | AY103: 4.415652174 | AZ103: 42392.88189 | BA103: 4.245217391 | BB103: 42392.87841 | BC103: 4.174782609 | BD103: 42392.83387 | BE103: 4.045217391 | BF103: 42392.92431 | BH103: 42392.97639 | BI103: 42392.96597
A104: 0 | B104: =IF(Instructions!$C$2="BST",A104,0) -> 0 | C104: 2020-01-25T04:25:00 | D104: 2020-01-25 | E104: 2020-01-25 | F104: 1 | G104: Jan | H104: 25 | I104: 6 | J104: Sat | K104: 42393.18403 | L104: 1.17 | M104: LW | N104: 0.6488549618 | O104: 04:25:00 | P104: 05:00:00 | Q104: -0.04166666667 | R104: 0.9027777778 | S104: 42393.22087 | T104: 1.396946565 | U104: 42393.28684 | V104: 42393.19266 | W104: 1.261832061 | X104: 42393.14236 | Y104: 42393.20284 | Z104: 1.221374046 | AA104: 42393.1548 | AB104: 42393.19309 | AC104: 1.05648855 | AD104: Cls | AE104: 42393.02847 | AF104: 42393.16802 | AG104: 1.021374046 | AH104: 42393.16387 | AI104: 1.121374046 | AJ104: 42393.21774 | AK104: 1.461832061 | AL104: 42393.21774 | AM104: 1.461832061 | AN104: 42393.20766 | AO104: 1.461832061 | AP104: 42393.21147 | AQ104: 1.326717557 | AR104: 42393.17361 | AS104: 42393.19792 | AT104: 42393.17361 | AU104: 1.221374046 | AV104: 42393.17988 | AW104: 1.15648855 | AX104: 42393.16387 | AY104: 1.021374046 | AZ104: 42393.1604 | BA104: 0.9564885496 | BB104: 42393.15659 | BC104: 1.05648855 | BD104: 42393.11145 | BE104: 0.9160305344 | BF104: 42393.20833 | BH104: 42393.22569 | BI104: 42393.21528
A105: 0 | B105: =IF(Instructions!$C$2="BST",A105,0) -> 0 | C105: 2020-01-25T10:40:00 | D105: 2020-01-25 | E105: Sat | F105: 1 | I105: 6 | K105: 42393.44444 | L105: 5.6 | M105: HW | N105: 0.9652173913 | O105: 10:40:00 | P105: 12:00:00 | Q105: 06:00:00 | R105: 0.7777777778 | S105: 42393.45949 | T105: 7.544347826 | U105: 42393.52546 | V105: 42393.46219 | W105: 7.247826087 | X105: 42393.40278 | Y105: 42393.43248 | Z105: 5.55826087 | AA105: 42393.42207 | AB105: 42393.42361 | AC105: 5.15826087 | AD105: Opn | AE105: 42393.30903 | AF105: 42393.42052 | AG105: 4.56173913 | AH105: 42393.39545 | AI105: 4.865217391 | AJ105: 42393.46026 | AK105: 7.444347826 | AL105: 42393.46103 | AM105: 7.440869565 | AN105: 42393.45679 | AO105: 7.147826087 | AP105: 42393.4591 | AQ105: 6.547826087 | AR105: 42393.43403 | AS105: 42393.45486 | AT105: 42393.41628 | AU105: 5.15826087 | AV105: 42393.41628 | AW105: 4.95826087 | AX105: 42393.39468 | AY105: 4.754782609 | AZ105: 42393.3912 | BA105: 4.55826087 | BB105: 42393.38773 | BC105: 4.46173913 | BD105: 42393.34414 | BE105: 4.35826087 | BF105: 42393.43403 | BH105: 42393.48611 | BI105: 42393.47569
A106: 0 | B106: =IF(Instructions!$C$2="BST",A106,0) -> 0 | C106: 2020-01-25T16:49:00 | D106: 2020-01-25 | F106: 1 | I106: 6 | K106: 42393.70069 | L106: 1.01 | M106: LW | N106: 0.7709923664 | O106: 16:49:00 | P106: 17:00:00 | Q106: 11:00:00 | R106: 0.9694444444 | S106: 42393.73846 | T106: 1.189312977 | U106: 42393.80444 | V106: 42393.70817 | W106: 1.066412214 | X106: 42393.65903 | Y106: 42393.72089 | Z106: 1.07480916 | AA106: 42393.67008 | AB106: 42393.71069 | AC106: 0.8977099237 | AD106: Cls | AE106: 42393.53819 | AF106: 42393.68376 | AG106: 0.8748091603 | AH106: 42393.68007 | AI106: 0.9748091603 | AJ106: 42393.7351 | AK106: 1.266412214 | AL106: 42393.7351 | AM106: 1.266412214 | AN106: 42393.72479 | AO106: 1.266412214 | AP106: 42393.72837 | AQ106: 1.14351145 | AR106: 42393.69028 | AS106: 42393.71458 | AT106: 42393.69028 | AU106: 1.07480916 | AV106: 42393.69701 | AW106: 0.9977099237 | AX106: 42393.68007 | AY106: 0.8748091603 | AZ106: 42393.6766 | BA106: 0.7977099237 | BB106: 42393.67302 | BC106: 0.8977099237 | BD106: 42393.62788 | BE106: 0.8061068702 | BF106: 42393.725 | BH106: 42393.74236 | BI106: 42393.73194
A107: 0 | B107: =IF(Instructions!$C$2="BST",A107,0) -> 0 | C107: 2020-01-25T23:04:00 | D107: 2020-01-25 | F107: 1 | I107: 6 | K107: 42393.96111 | L107: 5.31 | M107: HW | N107: 0.7130434783 | O107: 23:04:00 | P107: 1 | Q107: 18:00:00 | R107: 0.8444444444 | S107: 42393.97685 | T107: 7.140869565 | U107: 42394.04282 | V107: 42393.97978 | W107: 6.869565217 | X107: 42393.91944 | Y107: 42393.94961 | Z107: 5.255652174 | AA107: 42393.9392 | AB107: 42393.94028 | AC107: 4.855652174 | AD107: Opn | AE107: 42393.82569 | AF107: 42393.93603 | AG107: 4.284347826 | AH107: 42393.91119 | AI107: 4.613043478 | AJ107: 42393.97739 | AK107: 7.040869565 | AL107: 42393.97793 | AM107: 7.012173913 | AN107: 42393.97392 | AO107: 6.769565217 | AP107: 42393.97554 | AQ107: 6.169565217 | AR107: 42393.95069 | AS107: 42393.97153 | AT107: 42393.93202 | AU107: 4.855652174 | AV107: 42393.93202 | AW107: 4.655652174 | AX107: 42393.91065 | AY107: 4.426956522 | AZ107: 42393.90718 | BA107: 4.255652174 | BB107: 42393.9037 | BC107: 4.184347826 | BD107: 42393.86173 | BE107: 4.055652174 | BF107: 42393.95069 | BH107: 42394.00278 | BI107: 42393.99236
A108: 0 | B108: =IF(Instructions!$C$2="BST",A108,0) -> 0 | C108: 2020-01-26T05:03:00 | D108: 2020-01-26 | E108: 2020-01-26 | F108: 1 | G108: Jan | H108: 26 | I108: 7 | J108: Sun | K108: 42394.21042 | L108: 1.14 | M108: LW | N108: 0.6717557252 | O108: 05:03:00 | P108: 05:00:00 | Q108: 11:00:00 | R108: 0.9916666667 | S108: 42394.2485 | T108: 1.358015267 | U108: 42394.31447 | V108: 42394.21751 | W108: 1.22519084 | X108: 42394.16875 | Y108: 42394.23108 | Z108: 1.19389313 | AA108: 42394.17934 | AB108: 42394.22072 | AC108: 1.026717557 | AD108: Cls | AE108: 42394.05486 | AF108: 42394.19317 | AG108: 0.9938931298 | AH108: 42394.18964 | AI108: 1.09389313 | AJ108: 42394.24505 | AK108: 1.42519084 | AL108: 42394.24505 | AM108: 1.42519084 | AN108: 42394.23466 | AO108: 1.42519084 | AP108: 42394.23817 | AQ108: 1.292366412 | AR108: 42394.2 | AS108: 42394.22431 | AT108: 42394.2 | AU108: 1.19389313 | AV108: 42394.20689 | AW108: 1.126717557 | AX108: 42394.18964 | AY108: 0.9938931298 | AZ108: 42394.18617 | BA108: 0.9267175573 | BB108: 42394.18267 | BC108: 1.026717557 | BD108: 42394.13753 | BE108: 0.8954198473 | BF108: 42394.23472 | BH108: 42394.25208 | BI108: 42394.24167
A109: 0 | B109: =IF(Instructions!$C$2="BST",A109,0) -> 0 | C109: 2020-01-26T11:15:00 | D109: 2020-01-26 | E109: Sun | F109: 1 | I109: 7 | K109: 42394.46875 | L109: 5.64 | M109: HW | N109: 1 | O109: 11:15:00 | P109: 12:00:00 | Q109: 06:00:00 | R109: 0.875 | S109: 42394.48481 | T109: 7.6 | U109: 42394.55078 | V109: 42394.48785 | W109: 7.3 | X109: 42394.42708 | Y109: 42394.45747 | Z109: 5.6 | AA109: 42394.44705 | AB109: 42394.44792 | AC109: 5.2 | AD109: Opn | AE109: 42394.33333 | AF109: 42394.44314 | AG109: 4.6 | AH109: 42394.4184 | AI109: 4.9 | AJ109: 42394.48524 | AK109: 7.5 | AL109: 42394.48568 | AM109: 7.5 | AN109: 42394.48177 | AO109: 7.2 | AP109: 42394.48307 | AQ109: 6.6 | AR109: 42394.45833 | AS109: 42394.47917 | AT109: 42394.43924 | AU109: 5.2 | AV109: 42394.43924 | AW109: 5 | AX109: 42394.41797 | AY109: 4.8 | AZ109: 42394.4145 | BA109: 4.6 | BB109: 42394.41102 | BC109: 4.5 | BD109: 42394.36979 | BE109: 4.4 | BF109: 42394.45833 | BH109: 42394.51042 | BI109: 42394.5
A110: 0 | B110: =IF(Instructions!$C$2="BST",A110,0) -> 0 | C110: 2020-01-26T17:26:00 | D110: 2020-01-26 | F110: 1 | I110: 7 | K110: 42394.72639 | L110: 0.99 | M110: LW | N110: 0.786259542 | O110: 17:26:00 | P110: 17:00:00 | Q110: 23:00:00 | R110: 0.9277777778 | S110: =IF($M110="HW",$K110+S$6+(S$5-S$6)*$R110,$K110+S$8+(S$7-S$8)*$R110) -> 42394.76358 | T110: 1.163358779 | U110: 42394.82955 | V110: 42394.73459 | W110: 1.041984733 | X110: =IF($M110="HW",$K110+X$6+(X$5-X$6)*$R110,$K110+X$8+(X$7-X$8)*$R110) -> 42394.68472 | Y110: 42394.74572 | Z110: 1.05648855 | AA110: 42394.69664 | AB110: 42394.7358 | AC110: 0.8778625954 | AD110: Cls | AE110: 42394.5625 | AF110: 42394.71003 | AG110: 0.8564885496 | AH110: 42394.70606 | AI110: 0.9564885496 | AJ110: 42394.76036 | AK110: 1.241984733 | AL110: 42394.76036 | AM110: 1.241984733 | AN110: 42394.75019 | AO110: 1.241984733 | AP110: 42394.75392 | AQ110: 1.120610687 | AR110: =IF($M110="HW",$K110+AR$6+(AR$5-AR$6)*$R110,$K110+AR$8+(AR$7-AR$8)*$R110) -> 42394.71597 | AS110: 42394.74028 | AT110: 42394.71597 | AU110: 1.05648855 | AV110: 42394.72242 | AW110: 0.9778625954 | AX110: 42394.70606 | AY110: 0.8564885496 | AZ110: 42394.70258 | BA110: 0.7778625954 | BB110: 42394.69886 | BC110: 0.8778625954 | BD110: 42394.65372 | BE110: 0.7923664122 | BF110: =IF($M110="HW",$K110+BF$6+(BF$5-BF$6)*$R110,$K110+BF$8+(BF$7-BF$8)*$R110) -> 42394.75069 | BH110: 42394.76806 | BI110: 42394.75764
A111: 0 | B111: =IF(Instructions!$C$2="BST",A111,0) -> 0 | C111: 2020-01-26T23:39:00 | D111: 2020-01-26 | F111: 1 | I111: 7 | K111: 42394.98542 | L111: 5.27 | M111: HW | N111: 0.6782608696 | O111: 23:39:00 | P111: 1 | Q111: 18:00:00 | R111: 0.9416666667 | S111: 42395.00217 | T111: 7.085217391 | U111: 42395.06814 | V111: 42395.00544 | W111: 6.817391304 | X111: 42394.94375 | Y111: 42394.97459 | Z111: 5.213913043 | AA111: 42394.96418 | AB111: 42394.96458 | AC111: 4.813913043 | AD111: Opn | AE111: 42394.85 | AF111: 42394.95865 | AG111: 4.246086957 | AH111: 42394.93414 | AI111: 4.57826087 | AJ111: 42395.00237 | AK111: 6.985217391 | AL111: 42395.00258 | AM111: 6.953043478 | AN111: 42394.9989 | AO111: 6.717391304 | AP111: 42394.99951 | AQ111: 6.117391304 | AR111: 42394.975 | AS111: 42394.99583 | AT111: 42394.95498 | AU111: 4.813913043 | AV111: 42394.95498 | AW111: 4.613913043 | AX111: 42394.93394 | AY111: 4.38173913 | AZ111: 42394.93047 | BA111: 4.213913043 | BB111: 42394.927 | BC111: 4.146086957 | BD111: 42394.88738 | BE111: 4.013913043 | BF111: 42394.975 | BH111: 42395.02708 | BI111: 42395.01667
A112: 0 | B112: =IF(Instructions!$C$2="BST",A112,0) -> 0 | C112: 2020-01-27T05:38:00 | D112: 2020-01-27 | E112: 2020-01-27 | F112: 1 | G112: Jan | H112: 27 | I112: 1 | J112: Mon | K112: 42395.23472 | L112: 1.17 | M112: LW | N112: 0.6488549618 | O112: 05:38:00 | P112: 05:00:00 | Q112: 11:00:00 | R112: 0.8944444444 | S112: 42395.27145 | T112: 1.396946565 | U112: 42395.33742 | V112: 42395.2435 | W112: 1.261832061 | X112: 42395.19306 | Y112: 42395.25336 | Z112: 1.221374046 | AA112: 42395.20567 | AB112: 42395.24367 | AC112: 1.05648855 | AD112: Cls | AE112: 42395.07917 | AF112: 42395.21883 | AG112: 1.021374046 | AH112: 42395.21462 | AI112: 1.121374046 | AJ112: 42395.26834 | AK112: 1.461832061 | AL112: 42395.26834 | AM112: 1.461832061 | AN112: 42395.25829 | AO112: 1.461832061 | AP112: 42395.26213 | AQ112: 1.326717557 | AR112: 42395.22431 | AS112: 42395.24861 | AT112: 42395.22431 | AU112: 1.221374046 | AV112: 42395.23052 | AW112: 1.15648855 | AX112: 42395.21462 | AY112: 1.021374046 | AZ112: 42395.21115 | BA112: 0.9564885496 | BB112: 42395.20731 | BC112: 1.05648855 | BD112: 42395.16217 | BE112: 0.9160305344 | BF112: 42395.25903 | BH112: 42395.27639 | BI112: 42395.26597
A113: 0 | B113: =IF(Instructions!$C$2="BST",A113,0) -> 0 | C113: 2020-01-27T11:50:00 | D113: 2020-01-27 | E113: Mon | F113: 1 | I113: 1 | K113: 42395.49306 | L113: 5.62 | M113: HW | N113: 0.9826086957 | O113: 11:50:00 | P113: 12:00:00 | Q113: 06:00:00 | R113: 0.9722222222 | S113: 42395.51013 | T113: 7.572173913 | U113: 42395.5761 | V113: 42395.5135 | W113: 7.273913043 | X113: 42395.45139 | Y113: 42395.48245 | Z113: 5.579130435 | AA113: 42395.47203 | AB113: 42395.47222 | AC113: 5.179130435 | AD113: Opn | AE113: 42395.35764 | AF113: 42395.46576 | AG113: 4.580869565 | AH113: 42395.44136 | AI113: 4.882608696 | AJ113: 42395.51022 | AK113: 7.472173913 | AL113: 42395.51032 | AM113: 7.470434783 | AN113: 42395.50675 | AO113: 7.173913043 | AP113: 42395.50704 | AQ113: 6.573913043 | AR113: 42395.48264 | AS113: 42395.50347 | AT113: 42395.46219 | AU113: 5.179130435 | AV113: 42395.46219 | AW113: 4.979130435 | AX113: 42395.44126 | AY113: 4.777391304 | AZ113: 42395.43779 | BA113: 4.579130435 | BB113: 42395.43432 | BC113: 4.480869565 | BD113: 42395.39545 | BE113: 4.379130435 | BF113: 42395.48264 | BH113: 42395.53472 | BI113: 42395.52431
A114: 0 | B114: =IF(Instructions!$C$2="BST",A114,0) -> 0 | C114: 2020-01-27T18:02:00 | D114: 2020-01-27 | F114: 1 | I114: 1 | K114: 42395.75139 | L114: 1.04 | M114: LW | N114: 0.7480916031 | O114: 18:02:00 | P114: 17:00:00 | Q114: 23:00:00 | R114: 0.8277777778 | S114: 42395.78719 | T114: 1.228244275 | U114: 42395.85316 | V114: 42395.76132 | W114: 1.103053435 | X114: 42395.70972 | Y114: 42395.76863 | Z114: 1.102290076 | AA114: 42395.72373 | AB114: 42395.75941 | AC114: 0.927480916 | AD114: Cls | AE114: 42395.58681 | AF114: 42395.73642 | AG114: 0.9022900763 | AH114: 42395.73175 | AI114: 1.002290076 | AJ114: 42395.78432 | AK114: 1.303053435 | AL114: 42395.78432 | AM114: 1.303053435 | AN114: 42395.7745 | AO114: 1.303053435 | AP114: 42395.77857 | AQ114: 1.177862595 | AR114: 42395.74097 | AS114: 42395.76528 | AT114: 42395.74097 | AU114: 1.102290076 | AV114: 42395.74672 | AW114: 1.027480916 | AX114: 42395.73175 | AY114: 0.9022900763 | AZ114: 42395.72828 | BA114: 0.827480916 | BB114: 42395.72421 | BC114: 0.927480916 | BD114: 42395.67907 | BE114: 0.8267175573 | BF114: 42395.77569 | BH114: 42395.79306 | BI114: 42395.78264
A115: 0 | B115: =IF(Instructions!$C$2="BST",A115,0) -> 0 | C115: 2020-01-28T00:12:00 | D115: 2020-01-28 | E115: 2020-01-28 | F115: 1 | G115: Jan | H115: 28 | I115: 2 | J115: Tue | K115: 42396.00833 | L115: 5.19 | M115: HW | N115: 0.6086956522 | O115: 00:12:00 | P115: 00:00:00 | Q115: 06:00:00 | R115: 0.9666666667 | S115: 42396.02535 | T115: 6.973913043 | U115: 42396.09132 | V115: 42396.0287 | W115: 6.713043478 | X115: 42395.96667 | Y115: 42395.99769 | Z115: 5.130434783 | AA115: 42395.98727 | AB115: 42395.9875 | AC115: 4.730434783 | AD115: Opn | AE115: 42395.87292 | AF115: 42395.98113 | AG115: 4.169565217 | AH115: 42395.95671 | AI115: 4.508695652 | AJ115: 42396.02546 | AK115: 6.873913043 | AL115: 42396.02558 | AM115: 6.834782609 | AN115: 42396.02199 | AO115: 6.613043478 | AP115: 42396.02234 | AQ115: 6.013043478 | AR115: 42395.99792 | AS115: 42396.01875 | AT115: 42395.97755 | AU115: 4.730434783 | AV115: 42395.97755 | AW115: 4.530434783 | AX115: 42395.9566 | AY115: 4.291304348 | AZ115: 42395.95312 | BA115: 4.130434783 | BB115: 42395.94965 | BC115: 4.069565217 | BD115: 42395.91065 | BE115: 3.930434783 | BF115: 42395.99792 | BH115: 42396.05 | BI115: 42396.03958
A116: 0 | B116: =IF(Instructions!$C$2="BST",A116,0) -> 0 | C116: 2020-01-28T06:12:00 | D116: 2020-01-28 | E116: Tue | F116: 1 | I116: 2 | K116: 42396.25833 | L116: 1.25 | M116: LW | N116: 0.5877862595 | O116: 06:12:00 | P116: 05:00:00 | Q116: 11:00:00 | R116: 0.8 | S116: 42396.29375 | T116: 1.500763359 | U116: 42396.35972 | V116: 42396.26875 | W116: 1.359541985 | X116: 42396.21667 | Y116: 42396.275 | Z116: 1.294656489 | AA116: 42396.23125 | AB116: 42396.26597 | AC116: 1.135877863 | AD116: Cls | AE116: 42396.10208 | AF116: 42396.24375 | AG116: 1.094656489 | AH116: 42396.23889 | AI116: 1.194656489 | AJ116: 42396.29097 | AK116: 1.559541985 | AL116: 42396.29097 | AM116: 1.559541985 | AN116: 42396.28125 | AO116: 1.559541985 | AP116: 42396.28542 | AQ116: 1.418320611 | AR116: 42396.24792 | AS116: 42396.27222 | AT116: 42396.24792 | AU116: 1.294656489 | AV116: 42396.25347 | AW116: 1.235877863 | AX116: 42396.23889 | AY116: 1.094656489 | AZ116: 42396.23542 | BA116: 1.035877863 | BB116: 42396.23125 | BC116: 1.135877863 | BD116: 42396.18611 | BE116: 0.9709923664 | BF116: 42396.28264 | BH116: 42396.3 | BI116: 42396.28958
A117: 0 | B117: =IF(Instructions!$C$2="BST",A117,0) -> 0 | C117: 2020-01-28T12:23:00 | D117: 2020-01-28 | F117: 1 | I117: 2 | K117: 42396.51597 | L117: 5.54 | M117: HW | N117: 0.9130434783 | O117: 12:23:00 | P117: 12:00:00 | Q117: 18:00:00 | R117: 0.9361111111 | S117: 42396.53267 | T117: 7.460869565 | U117: 42396.59864 | V117: 42396.53592 | W117: 7.169565217 | X117: 42396.47431 | Y117: 42396.50511 | Z117: 5.495652174 | AA117: 42396.4947 | AB117: 42396.49514 | AC117: 5.095652174 | AD117: Opn | AE117: 42396.38056 | AF117: 42396.4893 | AG117: 4.504347826 | AH117: 42396.46478 | AI117: 4.813043478 | AJ117: 42396.53289 | AK117: 7.360869565 | AL117: 42396.53311 | AM117: 7.352173913 | AN117: 42396.52942 | AO117: 7.069565217 | AP117: 42396.53008 | AQ117: 6.469565217 | AR117: 42396.50556 | AS117: 42396.52639 | AT117: 42396.48561 | AU117: 5.095652174 | AV117: 42396.48561 | AW117: 4.895652174 | AX117: 42396.46455 | AY117: 4.686956522 | AZ117: 42396.46108 | BA117: 4.495652174 | BB117: 42396.45761 | BC117: 4.404347826 | BD117: 42396.41786 | BE117: 4.295652174 | BF117: 42396.50556 | BH117: 42396.55764 | BI117: 42396.54722
A118: 0 | B118: =IF(Instructions!$C$2="BST",A118,0) -> 0 | C118: 2020-01-28T18:36:00 | D118: 2020-01-28 | F118: 1 | I118: 2 | K118: 42396.775 | L118: 1.14 | M118: LW | N118: 0.6717557252 | O118: 18:36:00 | P118: 17:00:00 | Q118: 23:00:00 | R118: 0.7333333333 | S118: 42396.80949 | T118: 1.358015267 | U118: 42396.87546 | V118: 42396.78657 | W118: 1.22519084 | X118: 42396.73333 | Y118: 42396.79028 | Z118: 1.19389313 | AA118: 42396.74931 | AB118: 42396.78171 | AC118: 1.026717557 | AD118: Cls | AE118: 42396.60972 | AF118: 42396.76134 | AG118: 0.9938931298 | AH118: 42396.75602 | AI118: 1.09389313 | AJ118: 42396.80694 | AK118: 1.42519084 | AL118: 42396.80694 | AM118: 1.42519084 | AN118: 42396.79745 | AO118: 1.42519084 | AP118: 42396.80185 | AQ118: 1.292366412 | AR118: 42396.76458 | AS118: 42396.78889 | AT118: 42396.76458 | AU118: 1.19389313 | AV118: 42396.76968 | AW118: 1.126717557 | AX118: 42396.75602 | AY118: 0.9938931298 | AZ118: 42396.75255 | BA118: 0.9267175573 | BB118: 42396.74815 | BC118: 1.026717557 | BD118: 42396.70301 | BE118: 0.8954198473 | BF118: 42396.79931 | BH118: 42396.81667 | BI118: 42396.80625
A119: 0 | B119: =IF(Instructions!$C$2="BST",A119,0) -> 0 | C119: 2020-01-29T00:45:00 | D119: 2020-01-29 | E119: 2020-01-29 | F119: 1 | G119: Jan | H119: 29 | I119: 3 | J119: Wed | K119: 42397.03125 | L119: 5.08 | M119: HW | N119: 0.5130434783 | O119: 00:45:00 | P119: 00:00:00 | Q119: 06:00:00 | R119: 0.875 | S119: 42397.04731 | T119: 6.820869565 | U119: 42397.11328 | V119: 42397.05035 | W119: 6.569565217 | X119: 42396.98958 | Y119: 42397.01997 | Z119: 5.015652174 | AA119: 42397.00955 | AB119: 42397.01042 | AC119: 4.615652174 | AD119: Opn | AE119: 42396.89583 | AF119: 42397.00564 | AG119: 4.064347826 | AH119: 42396.9809 | AI119: 4.413043478 | AJ119: 42397.04774 | AK119: 6.720869565 | AL119: 42397.04818 | AM119: 6.672173913 | AN119: 42397.04427 | AO119: 6.469565217 | AP119: 42397.04557 | AQ119: 5.869565217 | AR119: 42397.02083 | AS119: 42397.04167 | AT119: 42397.00174 | AU119: 4.615652174 | AV119: 42397.00174 | AW119: 4.415652174 | AX119: 42396.98047 | AY119: 4.166956522 | AZ119: 42396.977 | BA119: 4.015652174 | BB119: 42396.97352 | BC119: 3.964347826 | BD119: 42396.93229 | BE119: 3.815652174 | BF119: 42397.02083 | BH119: 42397.07292 | BI119: 42397.0625
A120: 0 | B120: =IF(Instructions!$C$2="BST",A120,0) -> 0 | C120: 2020-01-29T06:46:00 | D120: 2020-01-29 | E120: Wed | F120: 1 | I120: 3 | K120: 42397.28194 | L120: 1.37 | M120: LW | N120: 0.4961832061 | O120: 06:46:00 | P120: 05:00:00 | Q120: 11:00:00 | R120: 0.7055555555 | S120: 42397.31605 | T120: 1.65648855 | U120: 42397.38202 | V120: 42397.294 | W120: 1.50610687 | X120: 42397.24028 | Y120: 42397.29664 | Z120: 1.404580153 | AA120: 42397.25683 | AB120: 42397.28827 | AC120: 1.254961832 | AD120: Cls | AE120: 42397.125 | AF120: 42397.26867 | AG120: 1.204580153 | AH120: 42397.26316 | AI120: 1.304580153 | AJ120: 42397.3136 | AK120: 1.70610687 | AL120: 42397.3136 | AM120: 1.70610687 | AN120: 42397.30421 | AO120: 1.70610687 | AP120: 42397.3087 | AQ120: 1.555725191 | AR120: 42397.27153 | AS120: 42397.29583 | AT120: 42397.27153 | AU120: 1.404580153 | AV120: 42397.27643 | AW120: 1.354961832 | AX120: 42397.26316 | AY120: 1.204580153 | AZ120: 42397.25968 | BA120: 1.154961832 | BB120: 42397.25519 | BC120: 1.254961832 | BD120: 42397.21005 | BE120: 1.053435115 | BF120: 42397.30625 | BH120: 42397.32361 | BI120: 42397.31319
A121: 0 | B121: =IF(Instructions!$C$2="BST",A121,0) -> 0 | C121: 2020-01-29T12:57:00 | D121: 2020-01-29 | F121: 1 | I121: 3 | K121: 42397.53958 | L121: 5.41 | M121: HW | N121: 0.8 | O121: 12:57:00 | P121: 12:00:00 | Q121: 18:00:00 | R121: 0.8416666667 | S121: 42397.5553 | T121: 7.28 | U121: 42397.62127 | V121: 42397.55822 | W121: 7 | X121: 42397.49792 | Y121: 42397.52807 | Z121: 5.36 | AA121: 42397.51765 | AB121: 42397.51875 | AC121: 4.96 | AD121: Opn | AE121: 42397.40417 | AF121: 42397.51455 | AG121: 4.38 | AH121: 42397.4897 | AI121: 4.7 | AJ121: 42397.55584 | AK121: 7.18 | AL121: 42397.55639 | AM121: 7.16 | AN121: 42397.55237 | AO121: 6.9 | AP121: 42397.55402 | AQ121: 6.3 | AR121: 42397.52917 | AS121: 42397.55 | AT121: 42397.51053 | AU121: 4.96 | AV121: 42397.51053 | AW121: 4.76 | AX121: 42397.48915 | AY121: 4.54 | AZ121: 42397.48568 | BA121: 4.36 | BB121: 42397.4822 | BC121: 4.28 | BD121: 42397.44016 | BE121: 4.16 | BF121: 42397.52917 | BH121: 42397.58125 | BI121: 42397.57083
A122: 0 | B122: =IF(Instructions!$C$2="BST",A122,0) -> 0 | C122: 2020-01-29T19:10:00 | D122: 2020-01-29 | F122: 1 | I122: 3 | K122: 42397.79861 | L122: 1.28 | M122: LW | N122: 0.5648854962 | O122: 19:10:00 | P122: 17:00:00 | Q122: 23:00:00 | R122: 0.6388888889 | S122: 42397.83179 | T122: 1.539694656 | U122: 42397.89776 | V122: 42397.81182 | W122: 1.396183206 | X122: 42397.75694 | Y122: 42397.81192 | Z122: 1.322137405 | AA122: 42397.77488 | AB122: 42397.80401 | AC122: 1.165648855 | AD122: Cls | AE122: 42397.63333 | AF122: 42397.78627 | AG122: 1.122137405 | AH122: 42397.78029 | AI122: 1.222137405 | AJ122: 42397.82957 | AK122: 1.596183206 | AL122: 42397.82957 | AM122: 1.596183206 | AN122: 42397.82041 | AO122: 1.596183206 | AP122: 42397.82514 | AQ122: 1.452671756 | AR122: 42397.78819 | AS122: 42397.8125 | AT122: 42397.78819 | AU122: 1.322137405 | AV122: 42397.79263 | AW122: 1.265648855 | AX122: 42397.78029 | AY122: 1.122137405 | AZ122: 42397.77681 | BA122: 1.065648855 | BB122: 42397.77209 | BC122: 1.165648855 | BD122: 42397.72695 | BE122: 0.9916030534 | BF122: 42397.82292 | BH122: 42397.84028 | BI122: 42397.82986
A123: 0 | B123: =IF(Instructions!$C$2="BST",A123,0) -> 0 | C123: 2020-01-30T01:19:00 | D123: 2020-01-30 | E123: 2020-01-30 | F123: 1 | G123: Jan | H123: 30 | I123: 4 | J123: Thu | K123: 42398.05486 | L123: 4.95 | M123: HW | N123: 0.4 | O123: 01:19:00 | P123: 00:00:00 | Q123: 06:00:00 | R123: 0.7805555556 | S123: 42398.06994 | T123: 6.64 | U123: 42398.13591 | V123: 42398.07265 | W123: 6.4 | X123: 42398.01319 | Y123: 42398.04292 | Z123: 4.88 | AA123: 42398.0325 | AB123: 42398.03403 | AC123: 4.48 | AD123: Opn | AE123: 42397.91944 | AF123: 42398.03089 | AG123: 3.94 | AH123: 42398.00583 | AI123: 4.3 | AJ123: 42398.0707 | AK123: 6.54 | AL123: 42398.07146 | AM123: 6.48 | AN123: 42398.06723 | AO123: 6.3 | AP123: 42398.06951 | AQ123: 5.7 | AR123: 42398.04444 | AS123: 42398.06528 | AT123: 42398.02666 | AU123: 4.48 | AV123: 42398.02666 | AW123: 4.28 | AX123: 42398.00506 | AY123: 4.02 | AZ123: 42398.00159 | BA123: 3.88 | BB123: 42397.99812 | BC123: 3.84 | BD123: 42397.95459 | BE123: 3.68 | BF123: 42398.04444 | BH123: 42398.09653 | BI123: 42398.08611
A124: 0 | B124: =IF(Instructions!$C$2="BST",A124,0) -> 0 | C124: 2020-01-30T07:21:00 | D124: 2020-01-30 | E124: Thu | F124: 1 | I124: 4 | K124: 42398.30625 | L124: 1.54 | M124: LW | N124: 0.3664122137 | O124: 07:21:00 | P124: 05:00:00 | Q124: 11:00:00 | R124: 0.6083333333 | S124: 42398.339 | T124: 1.877099237 | U124: 42398.40498 | V124: 42398.31999 | W124: 1.713740458 | X124: 42398.26458 | Y124: 42398.31892 | Z124: 1.560305344 | AA124: 42398.28316 | AB124: 42398.31123 | AC124: 1.423664122 | AD124: Cls | AE124: 42398.14861 | AF124: 42398.29433 | AG124: 1.360305344 | AH124: 42398.28814 | AI124: 1.460305344 | AJ124: 42398.33689 | AK124: 1.913740458 | AL124: 42398.33689 | AM124: 1.913740458 | AN124: 42398.32784 | AO124: 1.913740458 | AP124: 42398.33267 | AQ124: 1.750381679 | AR124: 42398.29583 | AS124: 42398.32014 | AT124: 42398.29583 | AU124: 1.560305344 | AV124: 42398.30006 | AW124: 1.523664122 | AX124: 42398.28814 | AY124: 1.360305344 | AZ124: 42398.28466 | BA124: 1.323664122 | BB124: 42398.27983 | BC124: 1.423664122 | BD124: 42398.23469 | BE124: 1.170229008 | BF124: 42398.33056 | BH124: 42398.34792 | BI124: 42398.3375
A125: 0 | B125: =IF(Instructions!$C$2="BST",A125,0) -> 0 | C125: 2020-01-30T13:32:00 | D125: 2020-01-30 | F125: 1 | I125: 4 | K125: 42398.56389 | L125: 5.25 | M125: HW | N125: 0.6608695652 | O125: 13:32:00 | P125: 12:00:00 | Q125: 18:00:00 | R125: 0.7444444445 | S125: 42398.57859 | T125: 7.057391304 | U125: 42398.64456 | V125: 42398.58117 | W125: 6.791304348 | X125: 42398.52222 | Y125: 42398.5517 | Z125: 5.193043478 | AA125: 42398.54128 | AB125: 42398.54306 | AC125: 4.793043478 | AD125: Opn | AE125: 42398.42847 | AF125: 42398.54055 | AG125: 4.226956522 | AH125: 42398.51535 | AI125: 4.560869565 | AJ125: 42398.57948 | AK125: 6.957391304 | AL125: 42398.58036 | AM125: 6.923478261 | AN125: 42398.576 | AO125: 6.691304348 | AP125: 42398.57867 | AQ125: 6.091304348 | AR125: 42398.55347 | AS125: 42398.57431 | AT125: 42398.53619 | AU125: 4.793043478 | AV125: 42398.53619 | AW125: 4.593043478 | AX125: 42398.51447 | AY125: 4.359130435 | AZ125: 42398.511 | BA125: 4.193043478 | BB125: 42398.50752 | BC125: 4.126956522 | BD125: 42398.46312 | BE125: 3.993043478 | BF125: 42398.55347 | BH125: 42398.60556 | BI125: 42398.59514
A126: 0 | B126: =IF(Instructions!$C$2="BST",A126,0) -> 0 | C126: 2020-01-30T19:46:00 | D126: 2020-01-30 | F126: 1 | I126: 4 | K126: 42398.82361 | L126: 1.45 | M126: LW | N126: 0.4351145038 | O126: 19:46:00 | P126: 17:00:00 | Q126: 23:00:00 | R126: 0.5388888889 | S126: 42398.8554 | T126: 1.760305344 | U126: 42398.92137 | V126: 42398.83856 | W126: 1.603816794 | X126: 42398.78194 | Y126: 42398.83484 | Z126: 1.477862595 | AA126: 42398.80197 | AB126: 42398.82762 | AC126: 1.334351145 | AD126: Cls | AE126: 42398.65764 | AF126: 42398.81265 | AG126: 1.277862595 | AH126: 42398.80598 | AI126: 1.377862595 | AJ126: 42398.85353 | AK126: 1.803816794 | AL126: 42398.85353 | AM126: 1.803816794 | AN126: 42398.84471 | AO126: 1.803816794 | AP126: 42398.84979 | AQ126: 1.647328244 | AR126: 42398.81319 | AS126: 42398.8375 | AT126: 42398.81319 | AU126: 1.477862595 | AV126: 42398.81694 | AW126: 1.434351145 | AX126: 42398.80598 | AY126: 1.277862595 | AZ126: 42398.80251 | BA126: 1.234351145 | BB126: 42398.79743 | BC126: 1.334351145 | BD126: 42398.7523 | BE126: 1.108396947 | BF126: 42398.84792 | BH126: 42398.86528 | BI126: 42398.85486
A127: 0 | B127: =IF(Instructions!$C$2="BST",A127,0) -> 0 | C127: 2020-01-31T01:55:00 | D127: 2020-01-31 | E127: 2020-01-31 | F127: 1 | G127: Jan | H127: 31 | I127: 5 | J127: Fri | K127: 42399.07986 | L127: 4.8 | M127: HW | N127: 0.2695652174 | O127: 01:55:00 | P127: 00:00:00 | Q127: 06:00:00 | R127: 0.6805555556 | S127: =IF($M127="HW",$K127+S$6+(S$5-S$6)*$R127,$K127+S$8+(S$7-S$8)*$R127) -> 42399.09389 | T127: 6.431304348 | U127: 42399.15987 | V127: 42399.09626 | W127: 6.204347826 | X127: =IF($M127="HW",$K127+X$6+(X$5-X$6)*$R127,$K127+X$8+(X$7-X$8)*$R127) -> 42399.03819 | Y127: 42399.06723 | Z127: 4.723478261 | AA127: 42399.05681 | AB127: 42399.05903 | AC127: 4.323478261 | AD127: Opn | AE127: 42398.94444 | AF127: 42399.05763 | AG127: 3.796521739 | AH127: 42399.03221 | AI127: 4.169565217 | AJ127: 42399.095 | AK127: 6.331304348 | AL127: 42399.09611 | AM127: 6.25826087 | AN127: 42399.09153 | AO127: 6.104347826 | AP127: 42399.09486 | AQ127: 5.504347826 | AR127: =IF($M127="HW",$K127+AR$6+(AR$5-AR$6)*$R127,$K127+AR$8+(AR$7-AR$8)*$R127) -> 42399.06944 | AS127: 42399.09028 | AT127: 42399.05305 | AU127: 4.323478261 | AV127: 42399.05305 | AW127: 4.123478261 | AX127: 42399.03111 | AY127: 3.850434783 | AZ127: 42399.02763 | BA127: 3.723478261 | BB127: 42399.02416 | BC127: 3.696521739 | BD127: 42398.9782 | BE127: 3.523478261 | BF127: =IF($M127="HW",$K127+BF$6+(BF$5-BF$6)*$R127,$K127+BF$8+(BF$7-BF$8)*$R127) -> 42399.06944 | BH127: 42399.12153 | BI127: 42399.11111
A128: 0 | B128: =IF(Instructions!$C$2="BST",A128,0) -> 0 | C128: 2020-01-31T07:58:00 | D128: 2020-01-31 | E128: Fri | F128: 1 | I128: 5 | K128: 42399.33194 | L128: 1.73 | M128: LW | N128: 0.2213740458 | O128: 07:58:00 | P128: 05:00:00 | Q128: 11:00:00 | R128: 0.5055555556 | S128: 42399.36327 | T128: 2.123664122 | U128: 42399.42924 | V128: 42399.34747 | W128: 1.945801527 | X128: 42399.29028 | Y128: 42399.34248 | Z128: 1.734351145 | AA128: 42399.311 | AB128: 42399.33549 | AC128: 1.61221374 | AD128: Cls | AE128: 42399.17361 | AF128: 42399.32145 | AG128: 1.534351145 | AH128: 42399.31454 | AI128: 1.634351145 | AJ128: 42399.36152 | AK128: 2.145801527 | AL128: 42399.36152 | AM128: 2.145801527 | AN128: 42399.35282 | AO128: 2.145801527 | AP128: 42399.35801 | AQ128: 1.967938931 | AR128: 42399.32153 | AS128: 42399.34583 | AT128: 42399.32153 | AU128: 1.734351145 | AV128: 42399.32504 | AW128: 1.71221374 | AX128: 42399.31454 | AY128: 1.534351145 | AZ128: 42399.31107 | BA128: 1.51221374 | BB128: 42399.30588 | BC128: 1.61221374 | BD128: 42399.26074 | BE128: 1.300763359 | BF128: 42399.35625 | BH128: 42399.37361 | BI128: 42399.36319
A129: 0 | B129: =IF(Instructions!$C$2="BST",A129,0) -> 0 | C129: 2020-01-31T14:10:00 | D129: 2020-01-31 | F129: 1 | I129: 5 | K129: 42399.59028 | L129: 5.06 | M129: HW | N129: 0.4956521739 | O129: 14:10:00 | P129: 12:00:00 | Q129: 18:00:00 | R129: 0.6388888889 | S129: 42399.60388 | T129: 6.793043478 | U129: 42399.66985 | V129: 42399.6061 | W129: 6.543478261 | X129: 42399.54861 | Y129: 42399.57735 | Z129: 4.994782609 | AA129: 42399.56694 | AB129: 42399.56944 | AC129: 4.594782609 | AD129: Opn | AE129: 42399.45486 | AF129: 42399.56877 | AG129: 4.045217391 | AH129: 42399.54321 | AI129: 4.395652174 | AJ129: 42399.60513 | AK129: 6.693043478 | AL129: 42399.60639 | AM129: 6.642608696 | AN129: 42399.60166 | AO129: 6.443478261 | AP129: 42399.60542 | AQ129: 5.843478261 | AR129: 42399.57986 | AS129: 42399.60069 | AT129: 42399.56404 | AU129: 4.594782609 | AV129: 42399.56404 | AW129: 4.394782609 | AX129: 42399.54196 | AY129: 4.144347826 | AZ129: 42399.53848 | BA129: 3.994782609 | BB129: 42399.53501 | BC129: 3.945217391 | BD129: 42399.48804 | BE129: 3.794782609 | BF129: 42399.57986 | BH129: 42399.63194 | BI129: 42399.62153
A130: 0 | B130: =IF(Instructions!$C$2="BST",A130,0) -> 0 | C130: 2020-01-31T20:25:00 | D130: 2020-01-31 | F130: 1 | I130: 5 | K130: 42399.85069 | L130: 1.65 | M130: LW | N130: 0.2824427481 | O130: 20:25:00 | P130: 17:00:00 | Q130: 23:00:00 | R130: 0.4305555556 | S130: 42399.88098 | T130: 2.019847328 | U130: 42399.94695 | V130: 42399.86753 | W130: 1.848091603 | X130: 42399.80903 | Y130: 42399.85966 | Z130: 1.661068702 | AA130: 42399.83131 | AB130: 42399.8532 | AC130: 1.532824427 | AD130: Cls | AE130: 42399.68403 | AF130: 42399.84124 | AG130: 1.461068702 | AH130: 42399.83382 | AI130: 1.561068702 | AJ130: 42399.87948 | AK130: 2.048091603 | AL130: 42399.87948 | AM130: 2.048091603 | AN130: 42399.87105 | AO130: 2.048091603 | AP130: 42399.87649 | AQ130: 1.876335878 | AR130: 42399.84028 | AS130: 42399.86458 | AT130: 42399.84028 | AU130: 1.661068702 | AV130: 42399.84327 | AW130: 1.632824427 | AX130: 42399.83382 | AY130: 1.461068702 | AZ130: 42399.83034 | BA130: 1.432824427 | BB130: 42399.82489 | BC130: 1.532824427 | BD130: 42399.77976 | BE130: 1.245801527 | BF130: 42399.875 | BH130: 42399.89236 | BI130: 42399.88194
A131: 0 | B131: =IF(Instructions!$C$2="BST",A131,0) -> 0 | C131: 2020-02-01T02:37:00 | D131: 2020-02-01 | E131: 2020-02-01 | F131: 2 | G131: Feb | H131: 1 | I131: 6 | J131: Sat | K131: 42400.10903 | L131: 4.65 | M131: HW | N131: 0.1391304348 | O131: 02:37:00 | P131: 00:00:00 | Q131: 06:00:00 | R131: 0.5638888889 | S131: 42400.12185 | T131: 6.222608696 | U131: 42400.18782 | V131: 42400.1238 | W131: 6.008695652 | X131: 42400.06736 | Y131: 42400.09558 | Z131: 4.566956522 | AA131: 42400.08517 | AB131: 42400.08819 | AC131: 4.166956522 | AD131: Opn | AE131: 42399.97361 | AF131: 42400.08882 | AG131: 3.653043478 | AH131: 42400.063 | AI131: 4.039130435 | AJ131: 42400.12336 | AK131: 6.122608696 | AL131: 42400.12487 | AM131: 6.036521739 | AN131: 42400.11989 | AO131: 5.908695652 | AP131: 42400.12443 | AQ131: 5.308695652 | AR131: 42400.09861 | AS131: 42400.11944 | AT131: 42400.08383 | AU131: 4.166956522 | AV131: 42400.08383 | AW131: 3.966956522 | AX131: 42400.06149 | AY131: 3.680869565 | AZ131: 42400.05802 | BA131: 3.566956522 | BB131: 42400.05454 | BC131: 3.553043478 | BD131: 42400.00575 | BE131: 3.366956522 | BF131: 42400.09861 | BH131: 42400.15069 | BI131: 42400.14028
A132: 0 | B132: =IF(Instructions!$C$2="BST",A132,0) -> 0 | C132: 2020-02-01T08:41:00 | D132: 2020-02-01 | E132: Sat | F132: 2 | I132: 6 | K132: 42400.36181 | L132: 1.95 | M132: LW | N132: 0.0534351145 | O132: 08:41:00 | P132: 05:00:00 | Q132: 11:00:00 | R132: 0.3861111111 | S132: 42400.39147 | T132: 2.409160305 | U132: 42400.45745 | V132: 42400.37941 | W132: 2.214503817 | X132: 42400.32014 | Y132: 42400.36985 | Z132: 1.935877863 | AA132: 42400.34334 | AB132: 42400.3637 | AC132: 1.830534351 | AD132: Cls | AE132: 42400.20278 | AF132: 42400.35297 | AG132: 1.735877863 | AH132: 42400.34524 | AI132: 1.835877863 | AJ132: 42400.39013 | AK132: 2.414503817 | AL132: 42400.39013 | AM132: 2.414503817 | AN132: 42400.38185 | AO132: 2.414503817 | AP132: 42400.38745 | AQ132: 2.219847328 | AR132: 42400.35139 | AS132: 42400.37569 | AT132: 42400.35139 | AU132: 1.935877863 | AV132: 42400.35407 | AW132: 1.930534351 | AX132: 42400.34524 | AY132: 1.735877863 | AZ132: 42400.34176 | BA132: 1.730534351 | BB132: 42400.33616 | BC132: 1.830534351 | BD132: 42400.29102 | BE132: 1.451908397 | BF132: 42400.38611 | BH132: 42400.40347 | BI132: 42400.39306
A133: 0 | B133: =IF(Instructions!$C$2="BST",A133,0) -> 0 | C133: 2020-02-01T14:54:00 | D133: 2020-02-01 | F133: 2 | I133: 6 | K133: 42400.62083 | L133: 4.85 | M133: HW | N133: 0.3130434783 | O133: 14:54:00 | P133: 12:00:00 | Q133: 18:00:00 | R133: 0.5166666667 | S133: 42400.63316 | T133: 6.500869565 | U133: 42400.69913 | V133: 42400.63495 | W133: 6.269565217 | X133: 42400.57917 | Y133: 42400.60706 | Z133: 4.775652174 | AA133: 42400.59664 | AB133: 42400.6 | AC133: 4.375652174 | AD133: Opn | AE133: 42400.48542 | AF133: 42400.60145 | AG133: 3.844347826 | AH133: 42400.57546 | AI133: 4.213043478 | AJ133: 42400.63484 | AK133: 6.400869565 | AL133: 42400.63652 | AM133: 6.332173913 | AN133: 42400.63137 | AO133: 6.169565217 | AP133: 42400.6364 | AQ133: 5.569565217 | AR133: 42400.61042 | AS133: 42400.63125 | AT133: 42400.5963 | AU133: 4.375652174 | AV133: 42400.5963 | AW133: 4.175652174 | AX133: 42400.57378 | AY133: 3.906956522 | AZ133: 42400.57031 | BA133: 3.775652174 | BB133: 42400.56684 | BC133: 3.744347826 | BD133: 42400.5169 | BE133: 3.575652174 | BF133: 42400.61042 | BH133: 42400.6625 | BI133: 42400.65208
A134: 0 | B134: =IF(Instructions!$C$2="BST",A134,0) -> 0 | C134: 2020-02-01T21:12:00 | D134: 2020-02-01 | F134: 2 | I134: 6 | K134: 42400.88333 | L134: 1.86 | M134: LW | N134: 0.1221374046 | O134: 21:12:00 | P134: 17:00:00 | Q134: 23:00:00 | R134: 0.3 | S134: 42400.91181 | T134: 2.292366412 | U134: 42400.97778 | V134: 42400.90243 | W134: 2.104580153 | X134: 42400.84167 | Y134: 42400.88958 | Z134: 1.853435115 | AA134: 42400.86667 | AB134: 42400.88403 | AC134: 1.741221374 | AD134: Cls | AE134: 42400.71458 | AF134: 42400.87569 | AG134: 1.653435115 | AH134: 42400.86736 | AI134: 1.753435115 | AJ134: 42400.91076 | AK134: 2.304580153 | AL134: 42400.91076 | AM134: 2.304580153 | AN134: 42400.90278 | AO134: 2.304580153 | AP134: 42400.90868 | AQ134: 2.116793893 | AR134: 42400.87292 | AS134: 42400.89722 | AT134: 42400.87292 | AU134: 1.853435115 | AV134: 42400.875 | AW134: 1.841221374 | AX134: 42400.86736 | AY134: 1.653435115 | AZ134: 42400.86389 | BA134: 1.641221374 | BB134: 42400.85799 | BC134: 1.741221374 | BD134: 42400.81285 | BE134: 1.390076336 | BF134: 42400.90764 | BH134: 42400.925 | BI134: 42400.91458
A135: 0 | B135: =IF(Instructions!$C$2="BST",A135,0) -> 0 | C135: 2020-02-02T03:26:00 | D135: 2020-02-02 | E135: 2020-02-02 | F135: 2 | G135: Feb | H135: 2 | I135: 7 | J135: Sun | K135: 42401.14306 | L135: 4.48 | M135: HW | N135: -0.008695652174 | O135: 03:26:00 | P135: 00:00:00 | Q135: 06:00:00 | R135: 0.4277777778 | S135: 42401.15446 | T135: 5.986086957 | U135: 42401.22043 | V135: 42401.15594 | W135: 5.786956522 | X135: 42401.10139 | Y135: 42401.12867 | Z135: 4.389565217 | AA135: 42401.11825 | AB135: 42401.12222 | AC135: 3.989565217 | AD135: Opn | AE135: 42401.00764 | AF135: 42401.12521 | AG135: 3.490434783 | AH135: 42401.09892 | AI135: 3.891304348 | AJ135: 42401.15644 | AK135: 5.886086957 | AL135: 42401.15843 | AM135: 5.785217391 | AN135: 42401.15297 | AO135: 5.686956522 | AP135: 42401.15893 | AQ135: 5.086956522 | AR135: 42401.13264 | AS135: 42401.15347 | AT135: 42401.11975 | AU135: 3.989565217 | AV135: 42401.11975 | AW135: 3.789565217 | AX135: 42401.09693 | AY135: 3.488695652 | AZ135: 42401.09346 | BA135: 3.389565217 | BB135: 42401.08999 | BC135: 3.390434783 | BD135: 42401.03789 | BE135: 3.189565217 | BF135: 42401.13264 | BH135: 42401.18472 | BI135: 42401.17431
A136: 0 | B136: =IF(Instructions!$C$2="BST",A136,0) -> 0 | C136: 2020-02-02T09:34:00 | D136: 2020-02-02 | E136: Sun | F136: 2 | I136: 7 | K136: 42401.39861 | L136: 2.17 | M136: LW | N136: -0.1145038168 | O136: 09:34:00 | P136: 05:00:00 | Q136: 11:00:00 | R136: 0.2388888889 | S136: 42401.42623 | T136: 2.694656489 | U136: 42401.49221 | V136: 42401.41877 | W136: 2.483206107 | X136: 42401.35694 | Y136: 42401.40359 | Z136: 2.13740458 | AA136: 42401.38322 | AB136: 42401.39846 | AC136: 2.048854962 | AD136: Cls | AE136: 42401.23681 | AF136: 42401.39182 | AG136: 1.93740458 | AH136: 42401.38306 | AI136: 2.03740458 | AJ136: 42401.42541 | AK136: 2.683206107 | AL136: 42401.42541 | AM136: 2.683206107 | AN136: 42401.41763 | AO136: 2.683206107 | AP136: 42401.42375 | AQ136: 2.471755725 | AR136: 42401.38819 | AS136: 42401.4125 | AT136: 42401.38819 | AU136: 2.13740458 | AV136: 42401.38985 | AW136: 2.148854962 | AX136: 42401.38306 | AY136: 1.93740458 | AZ136: 42401.37959 | BA136: 1.948854962 | BB136: 42401.37348 | BC136: 2.048854962 | BD136: 42401.32834 | BE136: 1.603053435 | BF136: 42401.42292 | BH136: 42401.44028 | BI136: 42401.42986
A137: 0 | B137: =IF(Instructions!$C$2="BST",A137,0) -> 0 | C137: 2020-02-02T15:48:00 | D137: 2020-02-02 | F137: 2 | I137: 7 | K137: 42401.65833 | L137: 4.64 | M137: HW | N137: 0.1304347826 | O137: 15:48:00 | P137: 12:00:00 | Q137: 18:00:00 | R137: 0.3666666667 | S137: 42401.6691 | T137: 6.208695652 | U137: 42401.73507 | V137: 42401.67037 | W137: 5.995652174 | X137: 42401.61667 | Y137: 42401.64352 | Z137: 4.556521739 | AA137: 42401.6331 | AB137: 42401.6375 | AC137: 4.156521739 | AD137: Opn | AE137: 42401.52292 | AF137: 42401.64155 | AG137: 3.643478261 | AH137: 42401.61505 | AI137: 4.030434783 | AJ137: 42401.6713 | AK137: 6.108695652 | AL137: 42401.6735 | AM137: 6.02173913 | AN137: 42401.66782 | AO137: 5.895652174 | AP137: 42401.67442 | AQ137: 5.295652174 | AR137: 42401.64792 | AS137: 42401.66875 | AT137: 42401.63588 | AU137: 4.156521739 | AV137: 42401.63588 | AW137: 3.956521739 | AX137: 42401.61285 | AY137: 3.669565217 | AZ137: 42401.60938 | BA137: 3.556521739 | BB137: 42401.6059 | BC137: 3.543478261 | BD137: 42401.55231 | BE137: 3.356521739 | BF137: 42401.64792 | BH137: 42401.7 | BI137: 42401.68958
A138: 0 | B138: =IF(Instructions!$C$2="BST",A138,0) -> 0 | C138: 2020-02-02T22:10:00 | D138: 2020-02-02 | F138: 2 | I138: 7 | K138: 42401.92361 | L138: 2.05 | M138: LW | N138: -0.02290076336 | O138: 22:10:00 | P138: 17:00:00 | Q138: 23:00:00 | R138: 0.1388888889 | S138: 42401.94985 | T138: 2.538931298 | U138: 42402.01582 | V138: 42401.94551 | W138: 2.336641221 | X138: 42401.88194 | Y138: 42401.9265 | Z138: =IF($M138="HW",Y$2+(Y$1-Y$2)*$N138,Y$3+(Y$4-Y$3)*$N138) -> 2.027480916 | AA138: 42401.9103 | AB138: 42401.92207 | AC138: =IF($M138="HW",AB$2+(AB$1-AB$2)*$N138,AB$3+(AB$4-AB$3)*$N138) -> 1.929770992 | AD138: Cls | AE138: 42401.75208 | AF138: 42401.91821 | AG138: =IF($M138="HW",AF$2+(AF$1-AF$2)*$N138,AF$3+(AF$4-AF$3)*$N138) -> 1.827480916 | AH138: 42401.90876 | AI138: =IF($M138="HW",AH$2+(AH$1-AH$2)*$N138,AH$3+(AH$4-AH$3)*$N138) -> 1.927480916 | AJ138: 42401.94936 | AK138: =IF($M138="HW",AJ$2+(AJ$1-AJ$2)*$N138,AJ$3+(AJ$4-AJ$3)*$N138) -> 2.536641221 | AL138: 42401.94936 | AM138: =IF($M138="HW",AL$2+(AL$1-AL$2)*$N138,AL$3+(AL$4-AL$3)*$N138) -> 2.536641221 | AN138: 42401.94194 | AO138: =IF($M138="HW",AN$2+(AN$1-AN$2)*$N138,AN$3+(AN$4-AN$3)*$N138) -> 2.536641221 | AP138: 42401.9484 | AQ138: =IF($M138="HW",AP$2+(AP$1-AP$2)*$N138,AP$3+(AP$4-AP$3)*$N138) -> 2.334351145 | AR138: 42401.91319 | AS138: 42401.9375 | AT138: 42401.91319 | AU138: =IF($M138="HW",AT$2+(AT$1-AT$2)*$N138,AT$3+(AT$4-AT$3)*$N138) -> 2.027480916 | AV138: 42401.91416 | AW138: =IF($M138="HW",AV$2+(AV$1-AV$2)*$N138,AV$3+(AV$4-AV$3)*$N138) -> 2.029770992 | AX138: 42401.90876 | AY138: =IF($M138="HW",AX$2+(AX$1-AX$2)*$N138,AX$3+(AX$4-AX$3)*$N138) -> 1.827480916 | AZ138: 42401.90529 | BA138: =IF($M138="HW",AZ$2+(AZ$1-AZ$2)*$N138,AZ$3+(AZ$4-AZ$3)*$N138) -> 1.829770992 | BB138: 42401.89882 | BC138: =IF($M138="HW",BB$2+(BB$1-BB$2)*$N138,BB$3+(BB$4-BB$3)*$N138) -> 1.929770992 | BD138: 42401.85368 | BE138: =IF($M138="HW",BD$2+(BD$1-BD$2)*$N138,BD$3+(BD$4-BD$3)*$N138) -> 1.520610687 | BF138: 42401.94792 | BH138: 42401.96528 | BI138: 42401.95486
A139: 0 | B139: =IF(Instructions!$C$2="BST",A139,0) -> 0 | C139: 2020-02-03T04:29:00 | D139: 2020-02-03 | E139: 2020-02-03 | F139: 2 | G139: Feb | H139: 3 | I139: 1 | J139: Mon | K139: 42402.18681 | L139: 4.36 | M139: HW | N139: =IF(M139="HW",(L139-K$2)/(K$1-K$2),(L139-K$3)/(K$4-K$3)) -> -0.1130434783 | O139: 04:29:00 | P139: =IF(M139="HW",IF(AND(O139>=L$5,O139<L$6),L$5,IF(AND(O139>=L$6,O139<M$5),M$5,IF(AND(O139>=M$5,O139<M$6),M$5,IF(O139>=M$6,L$5+1,L$5)))),IF(AND(O139>=L$7,O139<L$8),L$7,IF(AND(O139>=L$8,O139<M$7),M$7,IF(AND(O139>=M$7,O139<M$8),M$7,IF(O139>=M$8,L$7+1,L$7))))) -> 00:00:00 | Q139: =IF(M139="HW",IF(AND(O139>=L$5,O139<L$6),L$6,IF(AND(O139>=L$6,O139<M$5),L$6,IF(AND(O139>=M$5,O139<M$6),M$6,IF(O139>=M$6,M$6,M$6-1)))),IF(AND(O139>=L$7,O139<L$8),L$8,IF(AND(O139>=L$8,O139<M$7),L$8,IF(AND(O139>=M$7,O139<M$8),M$8,IF(O139>=M$8,M$8,M$8-1))))) -> 06:00:00 | R139: 0.2527777778 | S139: 42402.19638 | T139: =IF($M139="HW",S$2+(S$1-S$2)*$N139,S$3+(S$4-S$3)*$N139) -> 5.819130435 | U139: 42402.26236 | V139: 42402.19726 | W139: =IF($M139="HW",V$2+(V$1-V$2)*$N139,V$3+(V$4-V$3)*$N139) -> 5.630434783 | X139: 42402.14514 | Y139: 42402.1712 | Z139: 4.264347826 | AA139: 42402.16078 | AB139: =IF($M139="HW",$K139+AB$6+(AB$5-AB$6)*$R139,$K139+AB$8+(AB$7-AB$8)*$R139) -> 42402.16597 | AC139: 3.864347826 | AD139: =IF($M139="HW","Opn","Cls") -> Opn | AE139: 42402.05139 | AF139: =IF($M139="HW",$K139+AF$6+(AF$5-AF$6)*$R139,$K139+AF$8+(AF$7-AF$8)*$R139) -> 42402.172 | AG139: 3.375652174 | AH139: =IF($M139="HW",$K139+AH$6+(AH$5-AH$6)*$R139,$K139+AH$8+(AH$7-AH$8)*$R139) -> 42402.1451 | AI139: 3.786956522 | AJ139: =IF($M139="HW",$K139+AJ$6+(AJ$5-AJ$6)*$R139,$K139+AJ$8+(AJ$7-AJ$8)*$R139) -> 42402.19898 | AK139: 5.719130435 | AL139: =IF($M139="HW",$K139+AL$6+(AL$5-AL$6)*$R139,$K139+AL$8+(AL$7-AL$8)*$R139) -> 42402.20157 | AM139: 5.607826087 | AN139: =IF($M139="HW",$K139+AN$6+(AN$5-AN$6)*$R139,$K139+AN$8+(AN$7-AN$8)*$R139) -> 42402.19551 | AO139: 5.530434783 | AP139: =IF($M139="HW",$K139+AP$6+(AP$5-AP$6)*$R139,$K139+AP$8+(AP$7-AP$8)*$R139) -> 42402.20329 | AQ139: 4.930434783 | AR139: 42402.17639 | AS139: 42402.19722 | AT139: =IF($M139="HW",$K139+AT$6+(AT$5-AT$6)*$R139,$K139+AT$8+(AT$7-AT$8)*$R139) -> 42402.16593 | AU139: 3.864347826 | AV139: =IF($M139="HW",$K139+AV$6+(AV$5-AV$6)*$R139,$K139+AV$8+(AV$7-AV$8)*$R139) -> 42402.16593 | AW139: 3.664347826 | AX139: =IF($M139="HW",$K139+AX$6+(AX$5-AX$6)*$R139,$K139+AX$8+(AX$7-AX$8)*$R139) -> 42402.14251 | AY139: 3.353043478 | AZ139: =IF($M139="HW",$K139+AZ$6+(AZ$5-AZ$6)*$R139,$K139+AZ$8+(AZ$7-AZ$8)*$R139) -> 42402.13903 | BA139: 3.264347826 | BB139: =IF($M139="HW",$K139+BB$6+(BB$5-BB$6)*$R139,$K139+BB$8+(BB$7-BB$8)*$R139) -> 42402.13556 | BC139: 3.275652174 | BD139: =IF($M139="HW",$K139+BD$6+(BD$5-BD$6)*$R139,$K139+BD$8+(BD$7-BD$8)*$R139) -> 42402.07921 | BE139: 3.064347826 | BF139: 42402.17639 | BH139: 42402.22847 | BI139: 42402.21806
A140: 0 | B140: =IF(Instructions!$C$2="BST",A140,0) -> 0 | C140: 2020-02-03T10:41:00 | D140: =DATE(YEAR(K140),MONTH(K140),DAY(K140)) -> 2020-02-03 | E140: Mon | F140: =MONTH(K140) -> 2 | G140: =IF(H140="","",TEXT(F140*29,"mmm")) ->  | H140: =IF(I140=I139,"",DAY(K140)) ->  | I140: =WEEKDAY(K140,2) -> 1 | J140: =IF(I140=I139,"",TEXT(I140+2,"ddd")) ->  | K140: =C140+B140/24 -> 42402.44514 | L140: 2.33 | M140: LW | N140: -0.2366412214 | O140: =C140-INT(C140) -> 10:41:00 | P140: 05:00:00 | Q140: 11:00:00 | R140: =ABS((O140-Q140)/(P140-Q140)) -> 0.05277777777 | S140: 42402.47018 | T140: 2.902290076 | U140: 42402.53615 | V140: 42402.46853 | W140: 2.678625954 | X140: 42402.40347 | Y140: 42402.44624 | Z140: 2.283969466 | AA140: =IF($M140="HW",$K140+AA$6+(AA$5-AA$6)*$R140,$K140+AA$8+(AA$7-AA$8)*$R140) -> 42402.43362 | AB140: 42402.4424 | AC140: 2.207633588 | AD140: Cls | AE140: =IF($M140="HW",$AB140-AD$8,$AB139+AD$8) -> 42402.28056 | AF140: 42402.44093 | AG140: 2.083969466 | AH140: 42402.43088 | AI140: 2.183969466 | AJ140: 42402.46999 | AK140: 2.878625954 | AL140: 42402.46999 | AM140: 2.878625954 | AN140: 42402.46287 | AO140: 2.878625954 | AP140: 42402.46963 | AQ140: 2.654961832 | AR140: 42402.43472 | AS140: 42402.45903 | AT140: 42402.43472 | AU140: 2.283969466 | AV140: 42402.43509 | AW140: 2.307633588 | AX140: 42402.43088 | AY140: 2.083969466 | AZ140: 42402.42741 | BA140: 2.107633588 | BB140: 42402.42065 | BC140: 2.207633588 | BD140: 42402.37551 | BE140: 1.712977099 | BF140: 42402.46944 | BH140: 42402.48681 | BI140: 42402.47639
A141: 0 | B141: =IF(Instructions!$C$2="BST",A141,0) -> 0 | C141: 2020-02-03T16:56:00 | D141: 2020-02-03 | E141: =IF(D141=D140,IF(J140="","",J140),D141) ->  | F141: 2 | I141: 1 | K141: 42402.70556 | L141: 4.5 | M141: HW | N141: 0.008695652174 | O141: 16:56:00 | P141: 12:00:00 | Q141: 18:00:00 | R141: 0.1777777778 | S141: 42402.71435 | T141: 6.013913043 | U141: 42402.78032 | V141: 42402.71497 | W141: 5.813043478 | X141: 42402.66389 | Y141: 42402.68943 | Z141: 4.410434783 | AA141: 42402.67901 | AB141: 42402.68472 | AC141: 4.010434783 | AD141: Opn | AE141: 42402.57014 | AF141: 42402.69205 | AG141: 3.509565217 | AH141: 42402.66489 | AI141: 3.908695652 | AJ141: 42402.71721 | AK141: 5.913913043 | AL141: 42402.72006 | AM141: 5.814782609 | AN141: 42402.71373 | AO141: 5.713043478 | AP141: 42402.7223 | AQ141: 5.113043478 | AR141: 42402.69514 | AS141: 42402.71597 | AT141: 42402.68573 | AU141: 4.010434783 | AV141: 42402.68573 | AW141: 3.810434783 | AX141: 42402.66204 | AY141: 3.511304348 | AZ141: 42402.65856 | BA141: 3.410434783 | BB141: 42402.65509 | BC141: 3.409565217 | BD141: 42402.59691 | BE141: 3.210434783 | BF141: 42402.69514 | BH141: 42402.74722 | BI141: 42402.73681
A142: 0 | B142: =IF(Instructions!$C$2="BST",A142,0) -> 0 | C142: 2020-02-03T23:20:00 | D142: 2020-02-03 | F142: 2 | I142: 1 | K142: 42402.97222 | L142: 2.15 | M142: LW | N142: -0.09923664122 | O142: 23:20:00 | P142: 1.208333333 | Q142: 23:00:00 | R142: 0.05555555554 | S142: 42402.9973 | T142: 2.66870229 | U142: 42403.06327 | V142: 42402.99556 | W142: 2.458778626 | X142: 42402.93056 | Y142: 42402.97338 | Z142: 2.119083969 | AA142: 42402.96065 | AB142: 42402.96952 | AC142: 2.029007634 | AD142: Cls | AE142: 42402.79931 | AF142: 42402.96798 | AG142: 1.919083969 | AH142: 42402.95795 | AI142: 2.019083969 | AJ142: 42402.99711 | AK142: 2.658778626 | AL142: 42402.99711 | AM142: 2.658778626 | AN142: 42402.98997 | AO142: 2.658778626 | AP142: 42402.99672 | AQ142: 2.448854962 | AR142: 42402.96181 | AS142: 42402.98611 | AT142: 42402.96181 | AU142: 2.119083969 | AV142: 42402.96219 | AW142: 2.129007634 | AX142: 42402.95795 | AY142: 1.919083969 | AZ142: 42402.95448 | BA142: 1.929007634 | BB142: 42402.94772 | BC142: 2.029007634 | BD142: 42402.90258 | BE142: 1.589312977 | BF142: 42402.99653 | BH142: 42403.01389 | BI142: 42403.00347
A143: 0 | B143: =IF(Instructions!$C$2="BST",A143,0) -> 0 | C143: 2020-02-04T05:46:00 | D143: 2020-02-04 | E143: 2020-02-04 | F143: 2 | G143: Feb | H143: 4 | I143: 2 | J143: Tue | K143: 42403.24028 | L143: 4.36 | M143: HW | N143: -0.1130434783 | O143: 05:46:00 | P143: 00:00:00 | Q143: 06:00:00 | R143: 0.0388888889 | S143: =IF($M143="HW",$K143+S$6+(S$5-S$6)*$R143,$K143+S$8+(S$7-S$8)*$R143) -> 42403.24763 | T143: 5.819130435 | U143: 42403.3136 | V143: 42403.24776 | W143: 5.630434783 | X143: =IF($M143="HW",$K143+X$6+(X$5-X$6)*$R143,$K143+X$8+(X$7-X$8)*$R143) -> 42403.19861 | Y143: 42403.22319 | Z143: 4.264347826 | AA143: 42403.21277 | AB143: 42403.21944 | AC143: 3.864347826 | AD143: Opn | AE143: 42403.10486 | AF143: 42403.22919 | AG143: 3.375652174 | AH143: 42403.20154 | AI143: 3.786956522 | AJ143: 42403.25096 | AK143: 5.719130435 | AL143: 42403.2543 | AM143: 5.607826087 | AN143: 42403.24749 | AO143: 5.530434783 | AP143: 42403.2575 | AQ143: 4.930434783 | AR143: =IF($M143="HW",$K143+AR$6+(AR$5-AR$6)*$R143,$K143+AR$8+(AR$7-AR$8)*$R143) -> 42403.22986 | AS143: 42403.25069 | AT143: 42403.22238 | AU143: 3.864347826 | AV143: 42403.22238 | AW143: 3.664347826 | AX143: 42403.19821 | AY143: 3.353043478 | AZ143: 42403.19473 | BA143: 3.264347826 | BB143: 42403.19126 | BC143: 3.275652174 | BD143: 42403.12971 | BE143: 3.064347826 | BF143: =IF($M143="HW",$K143+BF$6+(BF$5-BF$6)*$R143,$K143+BF$8+(BF$7-BF$8)*$R143) -> 42403.22986 | BH143: 42403.28194 | BI143: 42403.27153
A144: 0 | B144: =IF(Instructions!$C$2="BST",A144,0) -> 0 | C144: 2020-02-04T12:01:00 | D144: 2020-02-04 | E144: Tue | F144: 2 | I144: 2 | K144: 42403.50069 | L144: 2.31 | M144: LW | N144: -0.2213740458 | O144: 12:01:00 | P144: 17:00:00 | Q144: 11:00:00 | R144: 0.1694444445 | S144: 42403.52735 | T144: 2.876335878 | U144: 42403.59333 | V144: 42403.52206 | W144: 2.654198473 | X144: 42403.45903 | Y144: 42403.50422 | Z144: 2.265648855 | AA144: 42403.48675 | AB144: 42403.49958 | AC144: 2.18778626 | AD144: Cls | AE144: 42403.33403 | AF144: 42403.49487 | AG144: 2.065648855 | AH144: 42403.48563 | AI144: 2.165648855 | AJ144: 42403.52677 | AK144: 2.854198473 | AL144: 42403.52677 | AM144: 2.854198473 | AN144: 42403.51923 | AO144: 2.854198473 | AP144: 42403.52559 | AQ144: 2.632061069 | AR144: 42403.49028 | AS144: 42403.51458 | AT144: 42403.49028 | AU144: 2.265648855 | AV144: 42403.49145 | AW144: 2.28778626 | AX144: 42403.48563 | AY144: 2.065648855 | AZ144: 42403.48216 | BA144: 2.08778626 | BB144: 42403.4758 | BC144: 2.18778626 | BD144: 42403.43066 | BE144: 1.699236641 | BF144: 42403.525 | BH144: 42403.54236 | BI144: 42403.53194
A145: 0 | B145: =IF(Instructions!$C$2="BST",A145,0) -> 0 | C145: 2020-02-04T18:16:00 | D145: 2020-02-04 | F145: 2 | I145: 2 | K145: 42403.76111 | L145: 4.5 | M145: HW | N145: 0.008695652174 | O145: 18:16:00 | P145: 1 | Q145: 18:00:00 | R145: 0.04444444444 | S145: 42403.76852 | T145: 6.013913043 | U145: 42403.83449 | V145: 42403.76867 | W145: 5.813043478 | X145: 42403.71944 | Y145: 42403.74406 | Z145: 4.410434783 | AA145: 42403.73364 | AB145: 42403.74028 | AC145: 4.010434783 | AD145: Opn | AE145: 42403.62569 | AF145: 42403.74992 | AG145: 3.509565217 | AH145: 42403.7223 | AI145: 3.908695652 | AJ145: 42403.77184 | AK145: 5.913913043 | AL145: 42403.77515 | AM145: 5.814782609 | AN145: 42403.76836 | AO145: 5.713043478 | AP145: 42403.77832 | AQ145: 5.113043478 | AR145: 42403.75069 | AS145: 42403.77153 | AT145: 42403.74313 | AU145: 4.010434783 | AV145: 42403.74313 | AW145: 3.810434783 | AX145: 42403.71898 | AY145: 3.511304348 | AZ145: 42403.71551 | BA145: 3.410434783 | BB145: 42403.71204 | BC145: 3.409565217 | BD145: 42403.65062 | BE145: 3.210434783 | BF145: 42403.75069 | BH145: 42403.80278 | BI145: 42403.79236
A146: 0 | B146: =IF(Instructions!$C$2="BST",A146,0) -> 0 | C146: 2020-02-05T00:35:00 | D146: 2020-02-05 | E146: 2020-02-05 | F146: 2 | G146: Feb | H146: 5 | I146: 3 | J146: Wed | K146: 42404.02431 | L146: 2.09 | M146: LW | N146: -0.0534351145 | O146: 00:35:00 | P146: 05:00:00 | Q146: -0.04166666667 | R146: 0.2638888889 | S146: 42404.05228 | T146: 2.590839695 | U146: 42404.11825 | V146: 42404.04403 | W146: 2.385496183 | X146: 42403.98264 | Y146: 42404.0298 | Z146: 2.064122137 | AA146: 42404.00839 | AB146: 42404.0245 | AC146: 1.969465649 | AD146: Cls | AE146: 42403.85486 | AF146: 42404.01717 | AG146: 1.864122137 | AH146: 42404.00858 | AI146: 1.964122137 | AJ146: 42404.05136 | AK146: 2.585496183 | AL146: 42404.05136 | AM146: 2.585496183 | AN146: 42404.0435 | AO146: 2.585496183 | AP146: 42404.04953 | AQ146: 2.380152672 | AR146: 42404.01389 | AS146: 42404.03819 | AT146: 42404.01389 | AU146: 2.064122137 | AV146: 42404.01572 | AW146: 2.069465649 | AX146: 42404.00858 | AY146: 1.864122137 | AZ146: 42404.00511 | BA146: 1.869465649 | BB146: 42403.99908 | BC146: 1.969465649 | BD146: 42403.95394 | BE146: 1.548091603 | BF146: 42404.04861 | BH146: 42404.06597 | BI146: 42404.05556
A147: 0 | B147: =IF(Instructions!$C$2="BST",A147,0) -> 0 | C147: 2020-02-05T07:04:00 | D147: 2020-02-05 | E147: Wed | F147: 2 | I147: 3 | K147: 42404.29444 | L147: 4.53 | M147: HW | N147: 0.0347826087 | O147: 07:04:00 | P147: 12:00:00 | Q147: 06:00:00 | R147: 0.1777777778 | S147: 42404.30324 | T147: 6.055652174 | U147: 42404.36921 | V147: 42404.30386 | W147: 5.852173913 | X147: 42404.25278 | Y147: 42404.27832 | Z147: 4.44173913 | AA147: 42404.2679 | AB147: 42404.27361 | AC147: 4.04173913 | AD147: Opn | AE147: 42404.15903 | AF147: 42404.28094 | AG147: 3.53826087 | AH147: 42404.25378 | AI147: 3.934782609 | AJ147: 42404.3061 | AK147: 5.955652174 | AL147: 42404.30895 | AM147: 5.859130435 | AN147: 42404.30262 | AO147: 5.752173913 | AP147: 42404.31119 | AQ147: 5.152173913 | AR147: 42404.28403 | AS147: 42404.30486 | AT147: 42404.27461 | AU147: 4.04173913 | AV147: 42404.27461 | AW147: 3.84173913 | AX147: 42404.25093 | AY147: 3.545217391 | AZ147: 42404.24745 | BA147: 3.44173913 | BB147: 42404.24398 | BC147: 3.43826087 | BD147: 42404.1858 | BE147: 3.24173913 | BF147: 42404.28403 | BH147: 42404.33611 | BI147: 42404.32569
A148: 0 | B148: =IF(Instructions!$C$2="BST",A148,0) -> 0 | C148: 2020-02-05T13:14:00 | D148: 2020-02-05 | F148: 2 | I148: 3 | K148: 42404.55139 | L148: 2.09 | M148: LW | N148: -0.0534351145 | O148: 13:14:00 | P148: 17:00:00 | Q148: 11:00:00 | R148: 0.3722222222 | S148: 42404.58086 | T148: 2.590839695 | U148: 42404.64684 | V148: 42404.56923 | W148: 2.385496183 | X148: 42404.50972 | Y148: 42404.55914 | Z148: 2.064122137 | AA148: 42404.53322 | AB148: 42404.55309 | AC148: 1.969465649 | AD148: Cls | AE148: 42404.38819 | AF148: 42404.54275 | AG148: 1.864122137 | AH148: 42404.53492 | AI148: 1.964122137 | AJ148: 42404.57957 | AK148: 2.585496183 | AL148: 42404.57957 | AM148: 2.585496183 | AN148: 42404.57133 | AO148: 2.585496183 | AP148: 42404.57699 | AQ148: 2.380152672 | AR148: 42404.54097 | AS148: 42404.56528 | AT148: 42404.54097 | AU148: 2.064122137 | AV148: 42404.54356 | AW148: 2.069465649 | AX148: 42404.53492 | AY148: 1.864122137 | AZ148: 42404.53144 | BA148: 1.869465649 | BB148: 42404.52579 | BC148: 1.969465649 | BD148: 42404.48065 | BE148: 1.548091603 | BF148: 42404.57569 | BH148: 42404.59306 | BI148: 42404.58264
A149: 0 | B149: =IF(Instructions!$C$2="BST",A149,0) -> 0 | C149: 2020-02-05T19:29:00 | D149: 2020-02-05 | F149: 2 | I149: 3 | K149: 42404.81181 | L149: 4.68 | M149: HW | N149: 0.1652173913 | O149: 19:29:00 | P149: 1 | Q149: 18:00:00 | R149: 0.2472222222 | S149: 42404.82133 | T149: 6.264347826 | U149: 42404.8873 | V149: 42404.82218 | W149: 6.047826087 | X149: 42404.77014 | Y149: 42404.79616 | Z149: 4.59826087 | AA149: 42404.78574 | AB149: 42404.79097 | AC149: 4.19826087 | AD149: Opn | AE149: 42404.67639 | AF149: 42404.7971 | AG149: 3.68173913 | AH149: 42404.77018 | AI149: 4.065217391 | AJ149: 42404.82394 | AK149: 6.164347826 | AL149: 42404.82655 | AM149: 6.080869565 | AN149: 42404.82047 | AO149: 5.947826087 | AP149: 42404.82831 | AQ149: 5.347826087 | AR149: 42404.80139 | AS149: 42404.82222 | AT149: 42404.79101 | AU149: 4.19826087 | AV149: 42404.79101 | AW149: 3.99826087 | AX149: 42404.76756 | AY149: 3.714782609 | AZ149: 42404.76409 | BA149: 3.59826087 | BB149: 42404.76062 | BC149: 3.58173913 | BD149: 42404.70413 | BE149: 3.39826087 | BF149: 42404.80139 | BH149: 42404.85347 | BI149: 42404.84306
A150: 0 | B150: =IF(Instructions!$C$2="BST",A150,0) -> 0 | C150: 2020-02-06T01:39:00 | D150: 2020-02-06 | E150: 2020-02-06 | F150: 2 | G150: Feb | H150: 6 | I150: 4 | J150: Thu | K150: 42405.06875 | L150: 1.86 | M150: LW | N150: 0.1221374046 | O150: 01:39:00 | P150: 05:00:00 | Q150: -0.04166666667 | R150: 0.4416666667 | S150: 42405.09919 | T150: 2.292366412 | U150: 42405.16516 | V150: 42405.08539 | W150: 2.104580153 | X150: 42405.02708 | Y150: 42405.07795 | Z150: 1.853435115 | AA150: 42405.04913 | AB150: 42405.07141 | AC150: 1.741221374 | AD150: Cls | AE150: 42404.90556 | AF150: 42405.05914 | AG150: 1.653435115 | AH150: 42405.05179 | AI150: 1.753435115 | AJ150: 42405.09766 | AK150: 2.304580153 | AL150: 42405.09766 | AM150: 2.304580153 | AN150: 42405.08918 | AO150: 2.304580153 | AP150: 42405.09459 | AQ150: 2.116793893 | AR150: 42405.05833 | AS150: 42405.08264 | AT150: 42405.05833 | AU150: 1.853435115 | AV150: 42405.0614 | AW150: 1.841221374 | AX150: 42405.05179 | AY150: 1.653435115 | AZ150: 42405.04832 | BA150: 1.641221374 | BB150: 42405.04291 | BC150: 1.741221374 | BD150: 42404.99777 | BE150: 1.390076336 | BF150: 42405.09306 | BH150: 42405.11042 | BI150: 42405.1
A151: 0 | B151: =IF(Instructions!$C$2="BST",A151,0) -> 0 | C151: 2020-02-06T08:04:00 | D151: 2020-02-06 | E151: Thu | F151: 2 | I151: 4 | K151: 42405.33611 | L151: 4.82 | M151: HW | N151: 0.2869565217 | O151: 08:04:00 | P151: 12:00:00 | Q151: 06:00:00 | R151: 0.3444444444 | S151: 42405.34664 | T151: 6.459130435 | U151: 42405.41262 | V151: 42405.34784 | W151: 6.230434783 | X151: 42405.29444 | Y151: 42405.32114 | Z151: 4.744347826 | AA151: 42405.31073 | AB151: 42405.31528 | AC151: 4.344347826 | AD151: Opn | AE151: 42405.20069 | AF151: 42405.31971 | AG151: 3.815652174 | AH151: 42405.29313 | AI151: 4.186956522 | AJ151: 42405.34892 | AK151: 6.359130435 | AL151: 42405.3512 | AM151: 6.287826087 | AN151: 42405.34545 | AO151: 6.130434783 | AP151: 42405.35228 | AQ151: 5.530434783 | AR151: 42405.32569 | AS151: 42405.34653 | AT151: 42405.31397 | AU151: 4.344347826 | AV151: 42405.31397 | AW151: 4.144347826 | AX151: 42405.29086 | AY151: 3.873043478 | AZ151: 42405.28738 | BA151: 3.744347826 | BB151: 42405.28391 | BC151: 3.715652174 | BD151: 42405.22978 | BE151: 3.544347826 | BF151: 42405.32569 | BH151: 42405.37778 | BI151: 42405.36736
A152: 0 | B152: =IF(Instructions!$C$2="BST",A152,0) -> 0 | C152: 2020-02-06T14:12:00 | D152: 2020-02-06 | F152: 2 | I152: 4 | K152: 42405.59167 | L152: 1.74 | M152: LW | N152: 0.213740458 | O152: 14:12:00 | P152: 17:00:00 | Q152: 11:00:00 | R152: 0.5333333333 | S152: 42405.62338 | T152: 2.136641221 | U152: 42405.68935 | V152: 42405.60671 | W152: 1.958015267 | X152: 42405.55 | Y152: 42405.60278 | Z152: 1.74351145 | AA152: 42405.57014 | AB152: 42405.5956 | AC152: 1.622137405 | AD152: Cls | AE152: 42405.42986 | AF152: 42405.58079 | AG152: 1.54351145 | AH152: 42405.57407 | AI152: 1.64351145 | AJ152: 42405.62153 | AK152: 2.158015267 | AL152: 42405.62153 | AM152: 2.158015267 | AN152: 42405.61273 | AO152: 2.158015267 | AP152: 42405.61782 | AQ152: 1.979389313 | AR152: 42405.58125 | AS152: 42405.60556 | AT152: 42405.58125 | AU152: 1.74351145 | AV152: 42405.58495 | AW152: 1.722137405 | AX152: 42405.57407 | AY152: 1.54351145 | AZ152: 42405.5706 | BA152: 1.522137405 | BB152: 42405.56551 | BC152: 1.622137405 | BD152: 42405.52037 | BE152: 1.307633588 | BF152: 42405.61597 | BH152: 42405.63333 | BI152: 42405.62292
A153: 0 | B153: =IF(Instructions!$C$2="BST",A153,0) -> 0 | C153: 2020-02-06T20:27:00 | D153: 2020-02-06 | F153: 2 | I153: 4 | K153: 42405.85208 | L153: 4.96 | M153: HW | N153: 0.4086956522 | O153: 20:27:00 | P153: 1 | Q153: 18:00:00 | R153: 0.4083333333 | S153: 42405.86328 | T153: 6.653913043 | U153: 42405.92925 | V153: 42405.8647 | W153: 6.413043478 | X153: 42405.81042 | Y153: 42405.83756 | Z153: 4.890434783 | AA153: 42405.82714 | AB153: 42405.83125 | AC153: 4.490434783 | AD153: Opn | AE153: 42405.71667 | AF153: 42405.83458 | AG153: 3.949565217 | AH153: 42405.80822 | AI153: 4.308695652 | AJ153: 42405.86534 | AK153: 6.553913043 | AL153: 42405.86739 | AM153: 6.494782609 | AN153: 42405.86186 | AO153: 6.313043478 | AP153: 42405.86803 | AQ153: 5.713043478 | AR153: 42405.84167 | AS153: 42405.8625 | AT153: 42405.82905 | AU153: 4.490434783 | AV153: 42405.82905 | AW153: 4.290434783 | AX153: 42405.80616 | AY153: 4.031304348 | AZ153: 42405.80269 | BA153: 3.890434783 | BB153: 42405.79922 | BC153: 3.849565217 | BD153: 42405.74664 | BE153: 3.690434783 | BF153: 42405.84167 | BH153: 42405.89375 | BI153: 42405.88333
A154: 0 | B154: =IF(Instructions!$C$2="BST",A154,0) -> 0 | C154: 2020-02-07T02:31:00 | D154: 2020-02-07 | E154: 2020-02-07 | F154: 2 | G154: Feb | H154: 7 | I154: 5 | J154: Fri | K154: 42406.10486 | L154: 1.56 | M154: LW | N154: 0.3511450382 | O154: 02:31:00 | P154: 05:00:00 | Q154: -0.04166666667 | R154: 0.5861111111 | S154: 42406.13731 | T154: 1.903053435 | U154: 42406.20328 | V154: 42406.11899 | W154: 1.738167939 | X154: 42406.06319 | Y154: 42406.11707 | Z154: 1.578625954 | AA154: 42406.08223 | AB154: 42406.10953 | AC154: 1.44351145 | AD154: Cls | AE154: 42405.94583 | AF154: 42406.09325 | AG154: 1.378625954 | AH154: 42406.0869 | AI154: 1.478625954 | AJ154: 42406.13527 | AK154: 1.938167939 | AL154: 42406.13527 | AM154: 1.938167939 | AN154: 42406.12629 | AO154: 1.938167939 | AP154: 42406.1312 | AQ154: 1.773282443 | AR154: 42406.09444 | AS154: 42406.11875 | AT154: 42406.09444 | AU154: 1.578625954 | AV154: 42406.09851 | AW154: 1.54351145 | AX154: 42406.0869 | AY154: 1.378625954 | AZ154: 42406.08343 | BA154: 1.34351145 | BB154: 42406.07852 | BC154: 1.44351145 | BD154: 42406.03338 | BE154: 1.183969466 | BF154: 42406.12917 | BH154: 42406.14653 | BI154: 42406.13611
A155: 0 | B155: =IF(Instructions!$C$2="BST",A155,0) -> 0 | C155: 2020-02-07T08:53:00 | D155: 2020-02-07 | E155: Fri | F155: 2 | I155: 5 | K155: 42406.37014 | L155: 5.17 | M155: HW | N155: 0.5913043478 | O155: 08:53:00 | P155: 12:00:00 | Q155: 06:00:00 | R155: 0.4805555556 | S155: 42406.38209 | T155: 6.946086957 | U155: 42406.44806 | V155: 42406.38376 | W155: 6.686956522 | X155: 42406.32847 | Y155: 42406.35611 | Z155: 5.109565217 | AA155: 42406.3457 | AB155: 42406.34931 | AC155: 4.709565217 | AD155: Opn | AE155: 42406.23472 | AF155: 42406.35138 | AG155: 4.150434783 | AH155: 42406.32527 | AI155: 4.491304348 | AJ155: 42406.38389 | AK155: 6.846086957 | AL155: 42406.3857 | AM155: 6.805217391 | AN155: 42406.38042 | AO155: 6.586956522 | AP155: 42406.38583 | AQ155: 5.986956522 | AR155: 42406.35972 | AS155: 42406.38056 | AT155: 42406.3461 | AU155: 4.709565217 | AV155: 42406.3461 | AW155: 4.509565217 | AX155: 42406.32347 | AY155: 4.268695652 | AZ155: 42406.31999 | BA155: 4.109565217 | BB155: 42406.31652 | BC155: 4.050434783 | BD155: 42406.2657 | BE155: 3.909565217 | BF155: 42406.35972 | BH155: 42406.41181 | BI155: 42406.40139
A156: 0 | B156: =IF(Instructions!$C$2="BST",A156,0) -> 0 | C156: 2020-02-07T15:00:00 | D156: 2020-02-07 | F156: 2 | I156: 5 | K156: 42406.625 | L156: 1.33 | M156: LW | N156: 0.5267175573 | O156: 15:00:00 | P156: 17:00:00 | Q156: 11:00:00 | R156: 0.6666666667 | S156: 42406.65856 | T156: 1.604580153 | U156: 42406.72454 | V156: 42406.63773 | W156: 1.457251908 | X156: 42406.58333 | Y156: 42406.63889 | Z156: 1.367938931 | AA156: 42406.60069 | AB156: 42406.63079 | AC156: 1.215267176 | AD156: Cls | AE156: 42406.46389 | AF156: 42406.61227 | AG156: 1.167938931 | AH156: 42406.60648 | AI156: 1.267938931 | AJ156: 42406.65625 | AK156: 1.657251908 | AL156: 42406.65625 | AM156: 1.657251908 | AN156: 42406.64699 | AO156: 1.657251908 | AP156: 42406.65162 | AQ156: 1.509923664 | AR156: 42406.61458 | AS156: 42406.63889 | AT156: 42406.61458 | AU156: 1.367938931 | AV156: 42406.61921 | AW156: 1.315267176 | AX156: 42406.60648 | AY156: 1.167938931 | AZ156: 42406.60301 | BA156: 1.115267176 | BB156: 42406.59838 | BC156: 1.215267176 | BD156: 42406.55324 | BE156: 1.025954198 | BF156: 42406.64931 | BH156: 42406.66667 | BI156: 42406.65625
A157: 0 | B157: =IF(Instructions!$C$2="BST",A157,0) -> 0 | C157: 2020-02-07T21:15:00 | D157: 2020-02-07 | F157: 2 | I157: 5 | K157: 42406.88542 | L157: 5.25 | M157: HW | N157: 0.6608695652 | O157: 21:15:00 | P157: 1 | Q157: 18:00:00 | R157: 0.5416666667 | S157: 42406.898 | T157: 7.057391304 | U157: 42406.96398 | V157: 42406.89988 | W157: 6.791304348 | X157: 42406.84375 | Y157: 42406.87182 | Z157: 5.193043478 | AA157: 42406.8614 | AB157: 42406.86458 | AC157: 4.793043478 | AD157: Opn | AE157: 42406.75 | AF157: 42406.8656 | AG157: 4.226956522 | AH157: 42406.8397 | AI157: 4.560869565 | AJ157: 42406.89959 | AK157: 6.957391304 | AL157: 42406.90119 | AM157: 6.923478261 | AN157: 42406.89612 | AO157: 6.691304348 | AP157: 42406.9009 | AQ157: 6.091304348 | AR157: 42406.875 | AS157: 42406.89583 | AT157: 42406.86053 | AU157: 4.793043478 | AV157: 42406.86053 | AW157: 4.593043478 | AX157: 42406.83811 | AY157: 4.359130435 | AZ157: 42406.83464 | BA157: 4.193043478 | BB157: 42406.83116 | BC157: 4.126956522 | BD157: 42406.78183 | BE157: 3.993043478 | BF157: 42406.875 | BH157: 42406.92708 | BI157: 42406.91667
A158: 0 | B158: =IF(Instructions!$C$2="BST",A158,0) -> 0 | C158: 2020-02-08T03:17:00 | D158: 2020-02-08 | E158: 2020-02-08 | F158: 2 | G158: Feb | H158: 8 | I158: 6 | J158: Sat | K158: 42407.13681 | L158: 1.23 | M158: LW | N158: 0.6030534351 | O158: 03:17:00 | P158: 05:00:00 | Q158: -0.04166666667 | R158: 0.7138888889 | S158: 42407.17103 | T158: 1.47480916 | U158: 42407.237 | V158: 42407.14872 | W158: 1.335114504 | X158: 42407.09514 | Y158: 42407.15168 | Z158: 1.276335878 | AA158: 42407.11152 | AB158: 42407.14325 | AC158: 1.116030534 | AD158: Cls | AE158: 42406.97917 | AF158: 42407.12342 | AG158: 1.076335878 | AH158: 42407.11796 | AI158: 1.176335878 | AJ158: 42407.16855 | AK158: 1.535114504 | AL158: 42407.16855 | AM158: 1.535114504 | AN158: 42407.15912 | AO158: 1.535114504 | AP158: 42407.16359 | AQ158: 1.395419847 | AR158: 42407.12639 | AS158: 42407.15069 | AT158: 42407.12639 | AU158: 1.276335878 | AV158: 42407.13135 | AW158: 1.216030534 | AX158: 42407.11796 | AY158: 1.076335878 | AZ158: 42407.11449 | BA158: 1.016030534 | BB158: 42407.11002 | BC158: 1.116030534 | BD158: 42407.06488 | BE158: 0.9572519084 | BF158: 42407.16111 | BH158: 42407.17847 | BI158: 42407.16806
A159: 0 | B159: =IF(Instructions!$C$2="BST",A159,0) -> 0 | C159: 2020-02-08T09:36:00 | D159: 2020-02-08 | E159: Sat | F159: 2 | I159: 6 | K159: 42407.4 | L159: 5.5 | M159: HW | N159: 0.8782608696 | O159: 09:36:00 | P159: 12:00:00 | Q159: 06:00:00 | R159: 0.6 | S159: 42407.41319 | T159: 7.405217391 | U159: 42407.47917 | V159: 42407.41528 | W159: 7.117391304 | X159: 42407.35833 | Y159: 42407.38681 | Z159: 5.453913043 | AA159: 42407.37639 | AB159: 42407.37917 | AC159: 5.053913043 | AD159: Opn | AE159: 42407.26458 | AF159: 42407.37917 | AG159: 4.466086957 | AH159: 42407.35347 | AI159: 4.77826087 | AJ159: 42407.41458 | AK159: 7.305217391 | AL159: 42407.41597 | AM159: 7.293043478 | AN159: 42407.41111 | AO159: 7.017391304 | AP159: 42407.41528 | AQ159: 6.417391304 | AR159: 42407.38958 | AS159: 42407.41042 | AT159: 42407.37431 | AU159: 5.053913043 | AV159: 42407.37431 | AW159: 4.853913043 | AX159: 42407.35208 | AY159: 4.64173913 | AZ159: 42407.34861 | BA159: 4.453913043 | BB159: 42407.34514 | BC159: 4.366086957 | BD159: 42407.29722 | BE159: 4.253913043 | BF159: 42407.38958 | BH159: 42407.44167 | BI159: 42407.43125
A160: 0 | B160: =IF(Instructions!$C$2="BST",A160,0) -> 0 | C160: 2020-02-08T15:45:00 | D160: 2020-02-08 | F160: 2 | I160: 6 | K160: 42407.65625 | L160: 0.94 | M160: LW | N160: 0.8244274809 | O160: 15:45:00 | P160: 17:00:00 | Q160: 11:00:00 | R160: 0.7916666667 | S160: =IF($M160="HW",$K160+S$6+(S$5-S$6)*$R160,$K160+S$8+(S$7-S$8)*$R160) -> 42407.69155 | T160: 1.098473282 | U160: 42407.75752 | V160: 42407.66681 | W160: 0.9809160305 | X160: =IF($M160="HW",$K160+X$6+(X$5-X$6)*$R160,$K160+X$8+(X$7-X$8)*$R160) -> 42407.61458 | Y160: 42407.67274 | Z160: 1.010687023 | AA160: 42407.62934 | AB160: 42407.66377 | AC160: 0.8282442748 | AD160: Cls | AE160: 42407.49375 | AF160: 42407.64178 | AG160: 0.8106870229 | AH160: 42407.63686 | AI160: 0.9106870229 | AJ160: 42407.6888 | AK160: 1.180916031 | AL160: 42407.6888 | AM160: 1.180916031 | AN160: 42407.67911 | AO160: 1.180916031 | AP160: 42407.6833 | AQ160: 1.063358779 | AR160: =IF($M160="HW",$K160+AR$6+(AR$5-AR$6)*$R160,$K160+AR$8+(AR$7-AR$8)*$R160) -> 42407.64583 | AS160: 42407.67014 | AT160: 42407.64583 | AU160: 1.010687023 | AV160: 42407.65133 | AW160: 0.9282442748 | AX160: 42407.63686 | AY160: 0.8106870229 | AZ160: 42407.63339 | BA160: 0.7282442748 | BB160: 42407.6292 | BC160: 0.8282442748 | BD160: 42407.58406 | BE160: 0.7580152672 | BF160: =IF($M160="HW",$K160+BF$6+(BF$5-BF$6)*$R160,$K160+BF$8+(BF$7-BF$8)*$R160) -> 42407.68056 | BH160: 42407.69792 | BI160: 42407.6875
A161: 0 | B161: =IF(Instructions!$C$2="BST",A161,0) -> 0 | C161: 2020-02-08T21:59:00 | D161: 2020-02-08 | F161: 2 | I161: 6 | K161: 42407.91597 | L161: 5.51 | M161: HW | N161: 0.8869565217 | O161: 21:59:00 | P161: 1 | Q161: 18:00:00 | R161: 0.6638888889 | S161: 42407.92983 | T161: 7.419130435 | U161: 42407.9958 | V161: 42407.93214 | W161: 7.130434783 | X161: 42407.87431 | Y161: 42407.90322 | Z161: 5.464347826 | AA161: 42407.8928 | AB161: 42407.89514 | AC161: 5.064347826 | AD161: Opn | AE161: 42407.78056 | AF161: 42407.89403 | AG161: 4.475652174 | AH161: 42407.86856 | AI161: 4.786956522 | AJ161: 42407.931 | AK161: 7.319130435 | AL161: 42407.93217 | AM161: 7.307826087 | AN161: 42407.92753 | AO161: 7.030434783 | AP161: 42407.93103 | AQ161: 6.430434783 | AR161: 42407.90556 | AS161: 42407.92639 | AT161: 42407.88939 | AU161: 5.064347826 | AV161: 42407.88939 | AW161: 4.864347826 | AX161: 42407.86739 | AY161: 4.653043478 | AZ161: 42407.86392 | BA161: 4.464347826 | BB161: 42407.86045 | BC161: 4.375652174 | BD161: 42407.81408 | BE161: 4.264347826 | BF161: 42407.90556 | BH161: 42407.95764 | BI161: 42407.94722
A162: 0 | B162: =IF(Instructions!$C$2="BST",A162,0) -> 0 | C162: 2020-02-09T04:00:00 | D162: 2020-02-09 | E162: 2020-02-09 | F162: 2 | G162: Feb | H162: 9 | I162: 7 | J162: Sun | K162: 42408.16667 | L162: 0.93 | M162: LW | N162: 0.8320610687 | O162: 04:00:00 | P162: 05:00:00 | Q162: -0.04166666667 | R162: 0.8333333333 | S162: 42408.20255 | T162: 1.085496183 | U162: 42408.26852 | V162: 42408.1765 | W162: 0.9687022901 | X162: 42408.125 | Y162: 42408.18403 | Z162: 1.001526718 | AA162: 42408.13889 | AB162: 42408.17477 | AC162: 0.8183206107 | AD162: Cls | AE162: 42408.00972 | AF162: 42408.15162 | AG162: 0.8015267176 | AH162: 42408.14699 | AI162: 0.9015267176 | AJ162: 42408.19965 | AK162: 1.16870229 | AL162: 42408.19965 | AM162: 1.16870229 | AN162: 42408.18981 | AO162: 1.16870229 | AP162: 42408.19387 | AQ162: 1.051908397 | AR162: 42408.15625 | AS162: 42408.18056 | AT162: 42408.15625 | AU162: 1.001526718 | AV162: 42408.16204 | AW162: 0.9183206107 | AX162: 42408.14699 | AY162: 0.8015267176 | AZ162: 42408.14352 | BA162: 0.7183206107 | BB162: 42408.13947 | BC162: 0.8183206107 | BD162: 42408.09433 | BE162: 0.7511450382 | BF162: 42408.19097 | BH162: 42408.20833 | BI162: 42408.19792
A163: 0 | B163: =IF(Instructions!$C$2="BST",A163,0) -> 0 | C163: 2020-02-09T10:17:00 | D163: 2020-02-09 | E163: Sun | F163: 2 | I163: 7 | K163: 42408.42847 | L163: 5.79 | M163: HW | N163: 1.130434783 | O163: 10:17:00 | P163: 12:00:00 | Q163: 06:00:00 | R163: 0.7138888889 | S163: 42408.44285 | T163: 7.808695652 | U163: 42408.50883 | V163: 42408.44533 | W163: 7.495652174 | X163: 42408.38681 | Y163: 42408.41607 | Z163: 5.756521739 | AA163: 42408.40565 | AB163: 42408.40764 | AC163: 5.356521739 | AD163: Opn | AE163: 42408.29306 | AF163: 42408.40566 | AG163: 4.743478261 | AH163: 42408.38036 | AI163: 5.030434783 | AJ163: 42408.44385 | AK163: 7.708695652 | AL163: 42408.44484 | AM163: 7.72173913 | AN163: 42408.44037 | AO163: 7.395652174 | AP163: 42408.44335 | AQ163: 6.795652174 | AR163: 42408.41806 | AS163: 42408.43889 | AT163: 42408.4012 | AU163: 5.356521739 | AV163: 42408.4012 | AW163: 5.156521739 | AX163: 42408.37937 | AY163: 4.969565217 | AZ163: 42408.3759 | BA163: 4.756521739 | BB163: 42408.37242 | BC163: 4.643478261 | BD163: 42408.32728 | BE163: 4.556521739 | BF163: 42408.41806 | BH163: 42408.47014 | BI163: 42408.45972
A164: 0 | B164: =IF(Instructions!$C$2="BST",A164,0) -> 0 | C164: 2020-02-09T16:28:00 | D164: 2020-02-09 | F164: 2 | I164: 7 | K164: 42408.68611 | L164: 0.6 | M164: LW | N164: 1.083969466 | O164: 16:28:00 | P164: 17:00:00 | Q164: 11:00:00 | R164: 0.9111111111 | S164: 42408.72307 | T164: 0.6572519084 | U164: 42408.78904 | V164: 42408.6946 | W164: 0.565648855 | X164: 42408.64444 | Y164: 42408.70509 | Z164: 0.6992366412 | AA164: 42408.65671 | AB164: 42408.69529 | AC164: 0.4908396947 | AD164: Cls | AE164: 42408.52222 | AF164: 42408.66998 | AG164: 0.4992366412 | AH164: 42408.6659 | AI164: 0.5992366412 | AJ164: 42408.71991 | AK164: 0.765648855 | AL164: 42408.71991 | AM164: 0.765648855 | AN164: 42408.7098 | AO164: 0.765648855 | AP164: 42408.71358 | AQ164: 0.6740458015 | AR164: 42408.67569 | AS164: 42408.7 | AT164: 42408.67569 | AU164: 0.6992366412 | AV164: 42408.68202 | AW164: 0.5908396947 | AX164: 42408.6659 | AY164: 0.4992366412 | AZ164: 42408.66242 | BA164: 0.3908396947 | BB164: 42408.65864 | BC164: 0.4908396947 | BD164: 42408.6135 | BE164: 0.5244274809 | BF164: 42408.71042 | BH164: 42408.72778 | BI164: 42408.71736
A165: 0 | B165: =IF(Instructions!$C$2="BST",A165,0) -> 0 | C165: 2020-02-09T22:42:00 | D165: 2020-02-09 | F165: 2 | I165: 7 | K165: 42408.94583 | L165: 5.7 | M165: HW | N165: 1.052173913 | O165: 22:42:00 | P165: 1 | Q165: 18:00:00 | R165: 0.7833333333 | S165: 42408.96094 | T165: 7.683478261 | U165: 42409.02691 | V165: 42408.96366 | W165: 7.37826087 | X165: 42408.90417 | Y165: 42408.93391 | Z165: 5.662608696 | AA165: 42408.9235 | AB165: 42408.925 | AC165: 5.262608696 | AD165: Opn | AE165: 42408.81042 | AF165: 42408.92182 | AG165: 4.657391304 | AH165: 42408.89676 | AI165: 4.952173913 | AJ165: 42408.96169 | AK165: 7.583478261 | AL165: 42408.96244 | AM165: 7.588695652 | AN165: 42408.95822 | AO165: 7.27826087 | AP165: 42408.96047 | AQ165: 6.67826087 | AR165: 42408.93542 | AS165: 42408.95625 | AT165: 42408.91759 | AU165: 5.262608696 | AV165: 42408.91759 | AW165: 5.062608696 | AX165: 42408.89601 | AY165: 4.867826087 | AZ165: 42408.89253 | BA165: 4.662608696 | BB165: 42408.88906 | BC165: 4.557391304 | BD165: 42408.8456 | BE165: 4.462608696 | BF165: 42408.93542 | BH165: 42408.9875 | BI165: 42408.97708
A166: 0 | B166: =IF(Instructions!$C$2="BST",A166,0) -> 0 | C166: 2020-02-10T04:42:00 | D166: 2020-02-10 | E166: 2020-02-10 | F166: 2 | G166: Feb | H166: 10 | I166: 1 | J166: Mon | K166: 42409.19583 | L166: 0.7 | M166: LW | N166: 1.007633588 | O166: 04:42:00 | P166: 05:00:00 | Q166: -0.04166666667 | R166: 0.95 | S166: 42409.23333 | T166: 0.7870229008 | U166: 42409.29931 | V166: 42409.20365 | W166: 0.6877862595 | X166: 42409.15417 | Y166: 42409.21562 | Z166: 0.7908396947 | AA166: 42409.16563 | AB166: 42409.20556 | AC166: 0.5900763359 | AD166: Cls | AE166: 42409.03958 | AF166: 42409.17917 | AG166: 0.5908396947 | AH166: 42409.17535 | AI166: 0.6908396947 | AJ166: 42409.23003 | AK166: 0.8877862595 | AL166: 42409.23003 | AM166: 0.8877862595 | AN166: 42409.21979 | AO166: 0.8877862595 | AP166: 42409.22344 | AQ166: 0.7885496183 | AR166: 42409.18542 | AS166: 42409.20972 | AT166: 42409.18542 | AU166: 0.7908396947 | AV166: 42409.19201 | AW166: 0.6900763359 | AX166: 42409.17535 | AY166: 0.5908396947 | AZ166: 42409.17188 | BA166: 0.4900763359 | BB166: 42409.16823 | BC166: 0.5900763359 | BD166: 42409.12309 | BE166: 0.593129771 | BF166: 42409.22014 | BH166: 42409.2375 | BI166: 42409.22708
A167: 0 | B167: =IF(Instructions!$C$2="BST",A167,0) -> 0 | C167: 2020-02-10T11:00:00 | D167: 2020-02-10 | E167: Mon | F167: 2 | I167: 1 | K167: 42409.45833 | L167: 6 | M167: HW | N167: 1.313043478 | O167: 11:00:00 | P167: 12:00:00 | Q167: 06:00:00 | R167: 0.8333333333 | S167: 42409.47396 | T167: 8.100869565 | U167: 42409.53993 | V167: 42409.47685 | W167: 7.769565217 | X167: 42409.41667 | Y167: 42409.44676 | Z167: 5.975652174 | AA167: 42409.43634 | AB167: 42409.4375 | AC167: 5.575652174 | AD167: Opn | AE167: 42409.32292 | AF167: 42409.43345 | AG167: 4.944347826 | AH167: 42409.40856 | AI167: 5.213043478 | AJ167: 42409.47454 | AK167: 8.000869565 | AL167: 42409.47512 | AM167: 8.032173913 | AN167: 42409.47106 | AO167: 7.669565217 | AP167: 42409.4728 | AQ167: 7.069565217 | AR167: 42409.44792 | AS167: 42409.46875 | AT167: 42409.4294 | AU167: 5.575652174 | AV167: 42409.4294 | AW167: 5.375652174 | AX167: 42409.40799 | AY167: 5.206956522 | AZ167: 42409.40451 | BA167: 4.975652174 | BB167: 42409.40104 | BC167: 4.844347826 | BD167: 42409.3588 | BE167: 4.775652174 | BF167: 42409.44792 | BH167: 42409.5 | BI167: 42409.48958
A168: 0 | B168: =IF(Instructions!$C$2="BST",A168,0) -> 0 | C168: 2020-02-10T17:12:00 | D168: 2020-02-10 | F168: 2 | I168: 1 | K168: 42409.71667 | L168: 0.37 | M168: LW | N168: 1.259541985 | O168: 17:12:00 | P168: 17:00:00 | Q168: 23:00:00 | R168: 0.9666666667 | S168: 42409.7544 | T168: 0.358778626 | U168: 42409.82037 | V168: 42409.72419 | W168: 0.2847328244 | X168: 42409.675 | Y168: 42409.73681 | Z168: 0.4885496183 | AA168: 42409.68611 | AB168: 42409.72662 | AC168: 0.2625954198 | AD168: Cls | AE168: 42409.55208 | AF168: 42409.69977 | AG168: 0.2885496183 | AH168: 42409.69606 | AI168: 0.3885496183 | AJ168: 42409.75104 | AK168: 0.4847328244 | AL168: 42409.75104 | AM168: 0.4847328244 | AN168: 42409.74074 | AO168: 0.4847328244 | AP168: 42409.74433 | AQ168: 0.4106870229 | AR168: 42409.70625 | AS168: 42409.73056 | AT168: 42409.70625 | AU168: 0.4885496183 | AV168: 42409.71296 | AW168: 0.3625954198 | AX168: 42409.69606 | AY168: 0.2885496183 | AZ168: 42409.69259 | BA168: 0.1625954198 | BB168: 42409.689 | BC168: 0.2625954198 | BD168: 42409.64387 | BE168: 0.3664122137 | BF168: 42409.74097 | BH168: 42409.75833 | BI168: 42409.74792
A169: 0 | B169: =IF(Instructions!$C$2="BST",A169,0) -> 0 | C169: 2020-02-10T23:26:00 | D169: 2020-02-10 | F169: 2 | I169: 1 | K169: 42409.97639 | L169: 5.79 | M169: HW | N169: 1.130434783 | O169: 23:26:00 | P169: 1 | Q169: 18:00:00 | R169: 0.9055555556 | S169: 42409.99277 | T169: 7.808695652 | U169: 42410.05874 | V169: 42409.99591 | W169: 7.495652174 | X169: 42409.93472 | Y169: 42409.96532 | Z169: 5.756521739 | AA169: 42409.9549 | AB169: 42409.95556 | AC169: 5.356521739 | AD169: Opn | AE169: 42409.84097 | AF169: 42409.95025 | AG169: 4.743478261 | AH169: 42409.92562 | AI169: 5.030434783 | AJ169: 42409.99309 | AK169: 7.708695652 | AL169: 42409.99342 | AM169: 7.72173913 | AN169: 42409.98962 | AO169: 7.395652174 | AP169: 42409.99061 | AQ169: 6.795652174 | AR169: 42409.96597 | AS169: 42409.98681 | AT169: 42409.94645 | AU169: 5.356521739 | AV169: 42409.94645 | AW169: 5.156521739 | AX169: 42409.92529 | AY169: 4.969565217 | AZ169: 42409.92182 | BA169: 4.756521739 | BB169: 42409.91834 | BC169: 4.643478261 | BD169: 42409.87785 | BE169: 4.556521739 | BF169: 42409.96597 | BH169: 42410.01806 | BI169: 42410.00764
A170: 0 | B170: =IF(Instructions!$C$2="BST",A170,0) -> 0 | C170: 2020-02-11T05:26:00 | D170: 2020-02-11 | E170: 2020-02-11 | F170: 2 | G170: Feb | H170: 11 | I170: 2 | J170: Tue | K170: 42410.22639 | L170: 0.57 | M170: LW | N170: 1.106870229 | O170: 05:26:00 | P170: 05:00:00 | Q170: 11:00:00 | R170: 0.9277777778 | S170: 42410.26358 | T170: 0.6183206107 | U170: 42410.32955 | V170: 42410.23459 | W170: 0.5290076336 | X170: 42410.18472 | Y170: 42410.24572 | Z170: 0.6717557252 | AA170: 42410.19664 | AB170: 42410.2358 | AC170: 0.4610687023 | AD170: Cls | AE170: 42410.07014 | AF170: 42410.21003 | AG170: 0.4717557252 | AH170: 42410.20606 | AI170: 0.5717557252 | AJ170: 42410.26036 | AK170: 0.7290076336 | AL170: 42410.26036 | AM170: 0.7290076336 | AN170: 42410.25019 | AO170: 0.7290076336 | AP170: 42410.25392 | AQ170: 0.6396946565 | AR170: 42410.21597 | AS170: 42410.24028 | AT170: 42410.21597 | AU170: 0.6717557252 | AV170: 42410.22242 | AW170: 0.5610687023 | AX170: 42410.20606 | AY170: 0.4717557252 | AZ170: 42410.20258 | BA170: 0.3610687023 | BB170: 42410.19886 | BC170: 0.4610687023 | BD170: 42410.15372 | BE170: 0.5038167939 | BF170: 42410.25069 | BH170: 42410.26806 | BI170: 42410.25764
A171: 0 | B171: =IF(Instructions!$C$2="BST",A171,0) -> 0 | C171: 2020-02-11T11:42:00 | D171: 2020-02-11 | E171: Tue | F171: 2 | I171: 2 | K171: 42410.4875 | L171: 6.09 | M171: HW | N171: 1.391304348 | O171: 11:42:00 | P171: 12:00:00 | Q171: 06:00:00 | R171: 0.95 | S171: 42410.50434 | T171: 8.226086957 | U171: 42410.57031 | V171: 42410.50764 | W171: 7.886956522 | X171: 42410.44583 | Y171: 42410.47674 | Z171: 6.069565217 | AA171: 42410.46632 | AB171: 42410.46667 | AC171: 5.669565217 | AD171: Opn | AE171: 42410.35208 | AF171: 42410.46059 | AG171: 5.030434783 | AH171: 42410.43611 | AI171: 5.291304348 | AJ171: 42410.50451 | AK171: 8.126086957 | AL171: 42410.50469 | AM171: 8.165217391 | AN171: 42410.50104 | AO171: 7.786956522 | AP171: 42410.50156 | AQ171: 7.186956522 | AR171: 42410.47708 | AS171: 42410.49792 | AT171: 42410.45694 | AU171: 5.669565217 | AV171: 42410.45694 | AW171: 5.469565217 | AX171: 42410.43594 | AY171: 5.308695652 | AZ171: 42410.43247 | BA171: 5.069565217 | BB171: 42410.42899 | BC171: 4.930434783 | BD171: 42410.38958 | BE171: 4.869565217 | BF171: 42410.47708 | BH171: 42410.52917 | BI171: 42410.51875
A172: 0 | B172: =IF(Instructions!$C$2="BST",A172,0) -> 0 | C172: 2020-02-11T17:56:00 | D172: 2020-02-11 | F172: 2 | I172: 2 | K172: 42410.74722 | L172: 0.28 | M172: LW | N172: 1.328244275 | O172: 17:56:00 | P172: 17:00:00 | Q172: 23:00:00 | R172: 0.8444444445 | S172: 42410.78326 | T172: 0.2419847328 | U172: 42410.84923 | V172: 42410.75687 | W172: 0.1748091603 | X172: 42410.70556 | Y172: 42410.76481 | Z172: 0.4061068702 | AA172: 42410.71921 | AB172: 42410.75548 | AC172: 0.1732824427 | AD172: Cls | AE172: 42410.58125 | AF172: 42410.73202 | AG172: 0.2061068702 | AH172: 42410.72747 | AI172: 0.3061068702 | AJ172: 42410.78032 | AK172: 0.3748091603 | AL172: 42410.78032 | AM172: 0.3748091603 | AN172: 42410.77045 | AO172: 0.3748091603 | AP172: 42410.77446 | AQ172: 0.3076335878 | AR172: 42410.73681 | AS172: 42410.76111 | AT172: 42410.73681 | AU172: 0.4061068702 | AV172: 42410.74267 | AW172: 0.2732824427 | AX172: 42410.72747 | AY172: 0.2061068702 | AZ172: 42410.724 | BA172: 0.07328244275 | BB172: 42410.71998 | BC172: 0.1732824427 | BD172: 42410.67485 | BE172: 0.3045801527 | BF172: 42410.77153 | BH172: 42410.78889 | BI172: 42410.77847
A173: 0 | B173: =IF(Instructions!$C$2="BST",A173,0) -> 0 | C173: 2020-02-12T00:10:00 | D173: 2020-02-12 | E173: 2020-02-12 | F173: 2 | G173: Feb | H173: 12 | I173: 3 | J173: Wed | K173: 42411.00694 | L173: 5.78 | M173: HW | N173: 1.12173913 | O173: 00:10:00 | P173: 00:00:00 | Q173: 06:00:00 | R173: 0.9722222222 | S173: 42411.02402 | T173: 7.794782609 | U173: 42411.08999 | V173: 42411.02739 | W173: 7.482608696 | X173: 42410.96528 | Y173: 42410.99633 | Z173: 5.746086957 | AA173: 42410.98592 | AB173: 42410.98611 | AC173: 5.346086957 | AD173: Opn | AE173: 42410.87153 | AF173: 42410.97965 | AG173: 4.733913043 | AH173: 42410.95525 | AI173: 5.02173913 | AJ173: 42411.02411 | AK173: 7.694782609 | AL173: 42411.02421 | AM173: 7.706956522 | AN173: 42411.02064 | AO173: 7.382608696 | AP173: 42411.02093 | AQ173: 6.782608696 | AR173: 42410.99653 | AS173: 42411.01736 | AT173: 42410.97608 | AU173: 5.346086957 | AV173: 42410.97608 | AW173: 5.146086957 | AX173: 42410.95515 | AY173: 4.95826087 | AZ173: 42410.95168 | BA173: 4.746086957 | BB173: 42410.94821 | BC173: 4.633913043 | BD173: 42410.90934 | BE173: 4.546086957 | BF173: 42410.99653 | BH173: 42411.04861 | BI173: 42411.03819
A174: 0 | B174: =IF(Instructions!$C$2="BST",A174,0) -> 0 | C174: 2020-02-12T06:09:00 | D174: 2020-02-12 | E174: Wed | F174: 2 | I174: 3 | K174: 42411.25625 | L174: 0.56 | M174: LW | N174: 1.114503817 | O174: 06:09:00 | P174: 05:00:00 | Q174: 11:00:00 | R174: 0.8083333333 | S174: 42411.29178 | T174: 0.6053435115 | U174: 42411.35775 | V174: 42411.26652 | W174: 0.5167938931 | X174: 42411.21458 | Y174: 42411.27309 | Z174: 0.6625954198 | AA174: 42411.22899 | AB174: 42411.264 | AC174: 0.4511450382 | AD174: Cls | AE174: 42411.10069 | AF174: 42411.24155 | AG174: 0.4625954198 | AH174: 42411.23675 | AI174: 0.5625954198 | AJ174: 42411.28898 | AK174: 0.7167938931 | AL174: 42411.28898 | AM174: 0.7167938931 | AN174: 42411.27922 | AO174: 0.7167938931 | AP174: 42411.28336 | AQ174: 0.6282442748 | AR174: 42411.24583 | AS174: 42411.27014 | AT174: 42411.24583 | AU174: 0.6625954198 | AV174: 42411.25145 | AW174: 0.5511450382 | AX174: 42411.23675 | AY174: 0.4625954198 | AZ174: 42411.23328 | BA174: 0.3511450382 | BB174: 42411.22914 | BC174: 0.4511450382 | BD174: 42411.184 | BE174: 0.4969465649 | BF174: 42411.28056 | BH174: 42411.29792 | BI174: 42411.2875
A175: 0 | B175: =IF(Instructions!$C$2="BST",A175,0) -> 0 | C175: 2020-02-12T12:26:00 | D175: 2020-02-12 | F175: 2 | I175: 3 | K175: 42411.51806 | L175: 6.07 | M175: HW | N175: 1.373913043 | O175: 12:26:00 | P175: 12:00:00 | Q175: 18:00:00 | R175: 0.9277777778 | S175: 42411.53466 | T175: 8.19826087 | U175: 42411.60064 | V175: 42411.53789 | W175: 7.860869565 | X175: 42411.47639 | Y175: 42411.50714 | Z175: 6.048695652 | AA175: 42411.49672 | AB175: 42411.49722 | AC175: 5.648695652 | AD175: Opn | AE175: 42411.38264 | AF175: 42411.49153 | AG175: 5.011304348 | AH175: 42411.46698 | AI175: 5.273913043 | AJ175: 42411.53492 | AK175: 8.09826087 | AL175: 42411.53517 | AM175: 8.135652174 | AN175: 42411.53144 | AO175: 7.760869565 | AP175: 42411.5322 | AQ175: 7.160869565 | AR175: 42411.50764 | AS175: 42411.52847 | AT175: 42411.48781 | AU175: 5.648695652 | AV175: 42411.48781 | AW175: 5.448695652 | AX175: 42411.46672 | AY175: 5.286086957 | AZ175: 42411.46325 | BA175: 5.048695652 | BB175: 42411.45978 | BC175: 4.911304348 | BD175: 42411.41983 | BE175: 4.848695652 | BF175: 42411.50764 | BH175: 42411.55972 | BI175: 42411.54931
A176: 0 | B176: =IF(Instructions!$C$2="BST",A176,0) -> 0 | C176: 2020-02-12T18:42:00 | D176: 2020-02-12 | F176: 2 | I176: 3 | K176: 42411.77917 | L176: 0.34 | M176: LW | N176: 1.282442748 | O176: 18:42:00 | P176: 17:00:00 | Q176: 23:00:00 | R176: 0.7166666667 | S176: =IF($M176="HW",$K176+S$6+(S$5-S$6)*$R176,$K176+S$8+(S$7-S$8)*$R176) -> 42411.81343 | T176: 0.3198473282 | U176: 42411.8794 | V176: 42411.79103 | W176: 0.2480916031 | X176: =IF($M176="HW",$K176+X$6+(X$5-X$6)*$R176,$K176+X$8+(X$7-X$8)*$R176) -> 42411.7375 | Y176: 42411.7941 | Z176: 0.4610687023 | AA176: 42411.75382 | AB176: 42411.78565 | AC176: 0.2328244275 | AD176: Cls | AE176: 42411.61181 | AF176: 42411.76574 | AG176: 0.2610687023 | AH176: 42411.7603 | AI176: 0.3610687023 | AJ176: 42411.81094 | AK176: 0.4480916031 | AL176: 42411.81094 | AM176: 0.4480916031 | AN176: 42411.8015 | AO176: 0.4480916031 | AP176: 42411.80596 | AQ176: 0.3763358779 | AR176: =IF($M176="HW",$K176+AR$6+(AR$5-AR$6)*$R176,$K176+AR$8+(AR$7-AR$8)*$R176) -> 42411.76875 | AS176: 42411.79306 | AT176: 42411.76875 | AU176: 0.4610687023 | AV176: 42411.77373 | AW176: 0.3328244275 | AX176: 42411.7603 | AY176: 0.2610687023 | AZ176: 42411.75683 | BA176: 0.1328244275 | BB176: 42411.75237 | BC176: 0.2328244275 | BD176: 42411.70723 | BE176: 0.3458015267 | BF176: =IF($M176="HW",$K176+BF$6+(BF$5-BF$6)*$R176,$K176+BF$8+(BF$7-BF$8)*$R176) -> 42411.80347 | BH176: 42411.82083 | BI176: 42411.81042
A177: 0 | B177: =IF(Instructions!$C$2="BST",A177,0) -> 0 | C177: 2020-02-13T00:54:00 | D177: 2020-02-13 | E177: 2020-02-13 | F177: 2 | G177: Feb | H177: 13 | I177: 4 | J177: Thu | K177: 42412.0375 | L177: 5.66 | M177: HW | N177: 1.017391304 | O177: 00:54:00 | P177: 00:00:00 | Q177: 06:00:00 | R177: 0.85 | S177: 42412.0533 | T177: 7.627826087 | U177: 42412.11927 | V177: 42412.05625 | W177: 7.326086957 | X177: 42411.99583 | Y177: 42412.02604 | Z177: 5.620869565 | AA177: 42412.01562 | AB177: 42412.01667 | AC177: 5.220869565 | AD177: Opn | AE177: 42411.90208 | AF177: 42412.01233 | AG177: 4.619130435 | AH177: 42411.9875 | AI177: 4.917391304 | AJ177: 42412.05382 | AK177: 7.527826087 | AL177: 42412.05434 | AM177: 7.529565217 | AN177: 42412.05035 | AO177: 7.226086957 | AP177: 42412.05191 | AQ177: 6.626086957 | AR177: 42412.02708 | AS177: 42412.04792 | AT177: 42412.00833 | AU177: 5.220869565 | AV177: 42412.00833 | AW177: 5.020869565 | AX177: 42411.98698 | AY177: 4.822608696 | AZ177: 42411.98351 | BA177: 4.620869565 | BB177: 42411.98003 | BC177: 4.519130435 | BD177: 42411.93819 | BE177: 4.420869565 | BF177: 42412.02708 | BH177: 42412.07917 | BI177: 42412.06875
A178: 0 | B178: =IF(Instructions!$C$2="BST",A178,0) -> 0 | C178: 2020-02-13T06:55:00 | D178: 2020-02-13 | E178: Thu | F178: 2 | I178: 4 | K178: 42412.28819 | L178: 0.67 | M178: LW | N178: 1.030534351 | O178: 06:55:00 | P178: 05:00:00 | Q178: 11:00:00 | R178: 0.6805555556 | S178: 42412.32195 | T178: 0.7480916031 | U178: 42412.38792 | V178: 42412.30068 | W178: 0.6511450382 | X178: 42412.24653 | Y178: 42412.30237 | Z178: 0.7633587786 | AA178: 42412.2636 | AB178: 42412.29417 | AC178: 0.5603053435 | AD178: Cls | AE178: 42412.13125 | AF178: 42412.27527 | AG178: 0.5633587786 | AH178: 42412.26958 | AI178: 0.6633587786 | AJ178: 42412.31959 | AK178: 0.8511450382 | AL178: 42412.31959 | AM178: 0.8511450382 | AN178: 42412.31028 | AO178: 0.8511450382 | AP178: 42412.31486 | AQ178: 0.7541984733 | AR178: 42412.27778 | AS178: 42412.30208 | AT178: 42412.27778 | AU178: 0.7633587786 | AV178: 42412.2825 | AW178: 0.6603053435 | AX178: 42412.26958 | AY178: 0.5633587786 | AZ178: 42412.26611 | BA178: 0.4603053435 | BB178: 42412.26153 | BC178: 0.5603053435 | BD178: 42412.21639 | BE178: 0.572519084 | BF178: 42412.3125 | BH178: 42412.32986 | BI178: 42412.31944
A179: 0 | B179: =IF(Instructions!$C$2="BST",A179,0) -> 0 | C179: 2020-02-13T13:12:00 | D179: 2020-02-13 | F179: 2 | I179: 4 | K179: 42412.55 | L179: 5.92 | M179: HW | N179: 1.243478261 | O179: 13:12:00 | P179: 12:00:00 | Q179: 18:00:00 | R179: 0.8 | S179: 42412.56528 | T179: 7.989565217 | U179: 42412.63125 | V179: 42412.56806 | W179: 7.665217391 | X179: 42412.50833 | Y179: 42412.53819 | Z179: 5.892173913 | AA179: 42412.52778 | AB179: 42412.52917 | AC179: 5.492173913 | AD179: Opn | AE179: 42412.41458 | AF179: 42412.52569 | AG179: 4.867826087 | AH179: 42412.50069 | AI179: 5.143478261 | AJ179: 42412.56597 | AK179: 7.889565217 | AL179: 42412.56667 | AM179: 7.913913043 | AN179: 42412.5625 | AO179: 7.565217391 | AP179: 42412.56458 | AQ179: 6.965217391 | AR179: 42412.53958 | AS179: 42412.56042 | AT179: 42412.52153 | AU179: 5.492173913 | AV179: 42412.52153 | AW179: 5.292173913 | AX179: 42412.5 | AY179: 5.116521739 | AZ179: 42412.49653 | BA179: 4.892173913 | BB179: 42412.49306 | BC179: 4.767826087 | BD179: 42412.45 | BE179: 4.692173913 | BF179: 42412.53958 | BH179: 42412.59167 | BI179: 42412.58125
A180: 0 | B180: =IF(Instructions!$C$2="BST",A180,0) -> 0 | C180: 2020-02-13T19:29:00 | D180: 2020-02-13 | F180: 2 | I180: 4 | K180: 42412.81181 | L180: 0.54 | M180: LW | N180: 1.129770992 | O180: 19:29:00 | P180: 17:00:00 | Q180: 23:00:00 | R180: 0.5861111111 | S180: 42412.84425 | T180: 0.579389313 | U180: 42412.91022 | V180: 42412.82594 | W180: 0.4923664122 | X180: 42412.77014 | Y180: 42412.82402 | Z180: 0.6442748092 | AA180: 42412.78918 | AB180: 42412.81647 | AC180: 0.4312977099 | AD180: Cls | AE180: 42412.64375 | AF180: 42412.80019 | AG180: 0.4442748092 | AH180: 42412.79385 | AI180: 0.5442748092 | AJ180: 42412.84222 | AK180: 0.6923664122 | AL180: 42412.84222 | AM180: 0.6923664122 | AN180: 42412.83324 | AO180: 0.6923664122 | AP180: 42412.83815 | AQ180: 0.6053435115 | AR180: 42412.80139 | AS180: 42412.82569 | AT180: 42412.80139 | AU180: 0.6442748092 | AV180: 42412.80546 | AW180: 0.5312977099 | AX180: 42412.79385 | AY180: 0.4442748092 | AZ180: 42412.79037 | BA180: 0.3312977099 | BB180: 42412.78546 | BC180: 0.4312977099 | BD180: 42412.74033 | BE180: 0.4832061069 | BF180: 42412.83611 | BH180: 42412.85347 | BI180: 42412.84306
A181: 0 | B181: =IF(Instructions!$C$2="BST",A181,0) -> 0 | C181: 2020-02-14T01:41:00 | D181: 2020-02-14 | E181: 2020-02-14 | F181: 2 | G181: Feb | H181: 14 | I181: 5 | J181: Fri | K181: 42413.07014 | L181: 5.45 | M181: HW | N181: 0.8347826087 | O181: 01:41:00 | P181: 00:00:00 | Q181: 06:00:00 | R181: 0.7194444444 | S181: 42413.08458 | T181: 7.335652174 | U181: 42413.15055 | V181: 42413.08708 | W181: 7.052173913 | X181: 42413.02847 | Y181: 42413.05777 | Z181: 5.40173913 | AA181: 42413.04736 | AB181: 42413.04931 | AC181: 5.00173913 | AD181: Opn | AE181: 42412.93472 | AF181: 42413.04723 | AG181: 4.41826087 | AH181: 42413.02195 | AI181: 4.734782609 | AJ181: 42413.08555 | AK181: 7.235652174 | AL181: 42413.08653 | AM181: 7.219130435 | AN181: 42413.08208 | AO181: 6.952173913 | AP181: 42413.085 | AQ181: 6.352173913 | AR181: 42413.05972 | AS181: 42413.08056 | AT181: 42413.04279 | AU181: 5.00173913 | AV181: 42413.04279 | AW181: 4.80173913 | AX181: 42413.02098 | AY181: 4.585217391 | AZ181: 42413.01751 | BA181: 4.40173913 | BB181: 42413.01403 | BC181: 4.31826087 | BD181: 42412.96902 | BE181: 4.20173913 | BF181: 42413.05972 | BH181: 42413.11181 | BI181: 42413.10139
A182: 0 | B182: =IF(Instructions!$C$2="BST",A182,0) -> 0 | C182: 2020-02-14T07:43:00 | D182: 2020-02-14 | E182: Fri | F182: 2 | I182: 5 | K182: 42413.32153 | L182: 0.89 | M182: LW | N182: 0.8625954198 | O182: 07:43:00 | P182: 05:00:00 | Q182: 11:00:00 | R182: 0.5472222222 | S182: 42413.35343 | T182: 1.033587786 | U182: 42413.41941 | V182: 42413.33633 | W182: 0.9198473282 | X182: 42413.27986 | Y182: 42413.33293 | Z182: 0.9648854962 | AA182: 42413.29971 | AB182: 42413.32566 | AC182: 0.7786259542 | AD182: Cls | AE182: 42413.16389 | AF182: 42413.31046 | AG182: 0.7648854962 | AH182: 42413.30384 | AI182: 0.8648854962 | AJ182: 42413.35153 | AK182: 1.119847328 | AL182: 42413.35153 | AM182: 1.119847328 | AN182: 42413.34269 | AO182: 1.119847328 | AP182: 42413.34773 | AQ182: 1.00610687 | AR182: 42413.31111 | AS182: 42413.33542 | AT182: 42413.31111 | AU182: 0.9648854962 | AV182: 42413.31491 | AW182: 0.8786259542 | AX182: 42413.30384 | AY182: 0.7648854962 | AZ182: 42413.30037 | BA182: 0.6786259542 | BB182: 42413.29532 | BC182: 0.7786259542 | BD182: 42413.25018 | BE182: 0.7236641221 | BF182: 42413.34583 | BH182: 42413.36319 | BI182: 42413.35278
A183: 0 | B183: =IF(Instructions!$C$2="BST",A183,0) -> 0 | C183: 2020-02-14T14:00:00 | D183: 2020-02-14 | F183: 2 | I183: 5 | K183: 42413.58333 | L183: 5.67 | M183: HW | N183: 1.026086957 | O183: 14:00:00 | P183: 12:00:00 | Q183: 18:00:00 | R183: 0.6666666667 | S183: 42413.59722 | T183: 7.64173913 | U183: 42413.66319 | V183: 42413.59954 | W183: 7.339130435 | X183: 42413.54167 | Y183: 42413.5706 | Z183: 5.631304348 | AA183: 42413.56019 | AB183: 42413.5625 | AC183: 5.231304348 | AD183: Opn | AE183: 42413.44792 | AF183: 42413.56134 | AG183: 4.628695652 | AH183: 42413.53588 | AI183: 4.926086957 | AJ183: 42413.59838 | AK183: 7.54173913 | AL183: 42413.59954 | AM183: 7.544347826 | AN183: 42413.59491 | AO183: 7.239130435 | AP183: 42413.59838 | AQ183: 6.639130435 | AR183: 42413.57292 | AS183: 42413.59375 | AT183: 42413.55671 | AU183: 5.231304348 | AV183: 42413.55671 | AW183: 5.031304348 | AX183: 42413.53472 | AY183: 4.833913043 | AZ183: 42413.53125 | BA183: 4.631304348 | BB183: 42413.52778 | BC183: 4.528695652 | BD183: 42413.48148 | BE183: 4.431304348 | BF183: 42413.57292 | BH183: 42413.625 | BI183: 42413.61458
A184: 0 | B184: =IF(Instructions!$C$2="BST",A184,0) -> 0 | C184: 2020-02-14T20:19:00 | D184: 2020-02-14 | F184: 2 | I184: 5 | K184: 42413.84653 | L184: 0.86 | M184: LW | N184: 0.8854961832 | O184: 20:19:00 | P184: 17:00:00 | Q184: 23:00:00 | R184: 0.4472222222 | S184: 42413.87704 | T184: 0.9946564885 | U184: 42413.94302 | V184: 42413.86307 | W184: 0.8832061069 | X184: 42413.80486 | Y184: 42413.85584 | Z184: 0.9374045802 | AA184: 42413.82679 | AB184: 42413.84927 | AC184: 0.7488549618 | AD184: Cls | AE184: 42413.67708 | AF184: 42413.83684 | AG184: 0.7374045802 | AH184: 42413.82953 | AI184: 0.8374045802 | AJ184: 42413.87549 | AK184: 1.083206107 | AL184: 42413.87549 | AM184: 1.083206107 | AN184: 42413.86699 | AO184: 1.083206107 | AP184: 42413.87239 | AQ184: 0.9717557252 | AR184: 42413.83611 | AS184: 42413.86042 | AT184: 42413.83611 | AU184: 0.9374045802 | AV184: 42413.83922 | AW184: 0.8488549618 | AX184: 42413.82953 | AY184: 0.7374045802 | AZ184: 42413.82606 | BA184: 0.6488549618 | BB184: 42413.82067 | BC184: 0.7488549618 | BD184: 42413.77553 | BE184: 0.7030534351 | BF184: 42413.87083 | BH184: 42413.88819 | BI184: 42413.87778
A185: 0 | B185: =IF(Instructions!$C$2="BST",A185,0) -> 0 | C185: 2020-02-15T02:31:00 | D185: 2020-02-15 | E185: 2020-02-15 | F185: 2 | G185: Feb | H185: 15 | I185: 6 | J185: Sat | K185: 42414.10486 | L185: 5.18 | M185: HW | N185: 0.6 | O185: 02:31:00 | P185: 00:00:00 | Q185: 06:00:00 | R185: 0.5805555556 | S185: 42414.11785 | T185: 6.96 | U185: 42414.18383 | V185: 42414.11987 | W185: 6.7 | X185: 42414.06319 | Y185: 42414.09153 | Z185: 5.12 | AA185: 42414.08111 | AB185: 42414.08403 | AC185: 4.72 | AD185: Opn | AE185: 42413.96944 | AF185: 42414.08437 | AG185: 4.16 | AH185: 42414.0586 | AI185: 4.5 | AJ185: 42414.11931 | AK185: 6.86 | AL185: 42414.12077 | AM185: 6.82 | AN185: 42414.11584 | AO185: 6.6 | AP185: 42414.12021 | AQ185: 6 | AR185: 42414.09444 | AS185: 42414.11528 | AT185: 42414.07944 | AU185: 4.72 | AV185: 42414.07944 | AW185: 4.52 | AX185: 42414.05715 | AY185: 4.28 | AZ185: 42414.05367 | BA185: 4.12 | BB185: 42414.0502 | BC185: 4.06 | BD185: 42414.00181 | BE185: 3.92 | BF185: 42414.09444 | BH185: 42414.14653 | BI185: 42414.13611
A186: 0 | B186: =IF(Instructions!$C$2="BST",A186,0) -> 0 | C186: 2020-02-15T08:35:00 | D186: 2020-02-15 | E186: Sat | F186: 2 | I186: 6 | K186: 42414.35764 | L186: 1.2 | M186: LW | N186: 0.6259541985 | O186: 08:35:00 | P186: 05:00:00 | Q186: 11:00:00 | R186: 0.4027777778 | S186: 42414.38754 | T186: 1.435877863 | U186: 42414.45351 | V186: 42414.37495 | W186: 1.298473282 | X186: 42414.31597 | Y186: 42414.36603 | Z186: 1.248854962 | AA186: 42414.33883 | AB186: 42414.35976 | AC186: 1.086259542 | AD186: Cls | AE186: 42414.19861 | AF186: 42414.34857 | AG186: 1.048854962 | AH186: 42414.34095 | AI186: 1.148854962 | AJ186: 42414.38614 | AK186: 1.498473282 | AL186: 42414.38614 | AM186: 1.498473282 | AN186: 42414.3778 | AO186: 1.498473282 | AP186: 42414.38334 | AQ186: 1.361068702 | AR186: 42414.34722 | AS186: 42414.37153 | AT186: 42414.34722 | AU186: 1.248854962 | AV186: 42414.35002 | AW186: 1.186259542 | AX186: 42414.34095 | AY186: 1.048854962 | AZ186: 42414.33748 | BA186: 0.986259542 | BB186: 42414.33193 | BC186: 1.086259542 | BD186: 42414.2868 | BE186: 0.9366412214 | BF186: 42414.38194 | BH186: 42414.39931 | BI186: 42414.38889
A187: 0 | B187: =IF(Instructions!$C$2="BST",A187,0) -> 0 | C187: 2020-02-15T14:54:00 | D187: 2020-02-15 | F187: 2 | I187: 6 | K187: 42414.62083 | L187: 5.33 | M187: HW | N187: 0.7304347826 | O187: 14:54:00 | P187: 12:00:00 | Q187: 18:00:00 | R187: 0.5166666667 | S187: 42414.63316 | T187: 7.168695652 | U187: 42414.69913 | V187: 42414.63495 | W187: 6.895652174 | X187: 42414.57917 | Y187: 42414.60706 | Z187: 5.276521739 | AA187: 42414.59664 | AB187: 42414.6 | AC187: 4.876521739 | AD187: Opn | AE187: 42414.48542 | AF187: 42414.60145 | AG187: 4.303478261 | AH187: 42414.57546 | AI187: 4.630434783 | AJ187: 42414.63484 | AK187: 7.068695652 | AL187: 42414.63652 | AM187: 7.04173913 | AN187: 42414.63137 | AO187: 6.795652174 | AP187: 42414.6364 | AQ187: 6.195652174 | AR187: 42414.61042 | AS187: 42414.63125 | AT187: 42414.5963 | AU187: 4.876521739 | AV187: 42414.5963 | AW187: 4.676521739 | AX187: 42414.57378 | AY187: 4.449565217 | AZ187: 42414.57031 | BA187: 4.276521739 | BB187: 42414.56684 | BC187: 4.203478261 | BD187: 42414.5169 | BE187: 4.076521739 | BF187: 42414.61042 | BH187: 42414.6625 | BI187: 42414.65208
A188: 0 | B188: =IF(Instructions!$C$2="BST",A188,0) -> 0 | C188: 2020-02-15T21:15:00 | D188: 2020-02-15 | F188: 2 | I188: 6 | K188: 42414.88542 | L188: 1.25 | M188: LW | N188: 0.5877862595 | O188: 21:15:00 | P188: 17:00:00 | Q188: 23:00:00 | R188: 0.2916666667 | S188: 42414.91377 | T188: 1.500763359 | U188: 42414.97975 | V188: 42414.90466 | W188: 1.359541985 | X188: 42414.84375 | Y188: 42414.89149 | Z188: 1.294656489 | AA188: 42414.86892 | AB188: 42414.886 | AC188: 1.135877863 | AD188: Cls | AE188: 42414.71458 | AF188: 42414.87789 | AG188: 1.094656489 | AH188: 42414.8695 | AI188: 1.194656489 | AJ188: 42414.91276 | AK188: 1.559541985 | AL188: 42414.91276 | AM188: 1.559541985 | AN188: 42414.9048 | AO188: 1.559541985 | AP188: 42414.91073 | AQ188: 1.418320611 | AR188: 42414.875 | AS188: 42414.89931 | AT188: 42414.875 | AU188: 1.294656489 | AV188: 42414.87703 | AW188: 1.235877863 | AX188: 42414.8695 | AY188: 1.094656489 | AZ188: 42414.86603 | BA188: 1.035877863 | BB188: 42414.8601 | BC188: 1.135877863 | BD188: 42414.81496 | BE188: 0.9709923664 | BF188: 42414.90972 | BH188: 42414.92708 | BI188: 42414.91667
A189: 0 | B189: =IF(Instructions!$C$2="BST",A189,0) -> 0 | C189: 2020-02-16T03:28:00 | D189: 2020-02-16 | E189: 2020-02-16 | F189: 2 | G189: Feb | H189: 16 | I189: 7 | J189: Sun | K189: 42415.14444 | L189: 4.89 | M189: HW | N189: 0.347826087 | O189: 03:28:00 | P189: 00:00:00 | Q189: 06:00:00 | R189: 0.4222222222 | S189: 42415.15579 | T189: 6.556521739 | U189: 42415.22176 | V189: 42415.15725 | W189: 6.32173913 | X189: 42415.10278 | Y189: 42415.13002 | Z189: 4.817391304 | AA189: 42415.1196 | AB189: 42415.12361 | AC189: 4.417391304 | AD189: Opn | AE189: 42415.00903 | AF189: 42415.1267 | AG189: 3.882608696 | AH189: 42415.10039 | AI189: 4.247826087 | AJ189: 42415.15779 | AK189: 6.456521739 | AL189: 42415.1598 | AM189: 6.391304348 | AN189: 42415.15432 | AO189: 6.22173913 | AP189: 42415.16034 | AQ189: 5.62173913 | AR189: 42415.13403 | AS189: 42415.15486 | AT189: 42415.12122 | AU189: 4.417391304 | AV189: 42415.12122 | AW189: 4.217391304 | AX189: 42415.09838 | AY189: 3.952173913 | AZ189: 42415.09491 | BA189: 3.817391304 | BB189: 42415.09144 | BC189: 3.782608696 | BD189: 42415.0392 | BE189: 3.617391304 | BF189: 42415.13403 | BH189: 42415.18611 | BI189: 42415.17569
A190: 0 | B190: =IF(Instructions!$C$2="BST",A190,0) -> 0 | C190: 2020-02-16T09:35:00 | D190: 2020-02-16 | E190: Sun | F190: 2 | I190: 7 | K190: 42415.39931 | L190: 1.55 | M190: LW | N190: 0.358778626 | O190: 09:35:00 | P190: 05:00:00 | Q190: 11:00:00 | R190: 0.2361111111 | S190: 42415.42689 | T190: 1.890076336 | U190: 42415.49286 | V190: 42415.41951 | W190: 1.725954198 | X190: 42415.35764 | Y190: 42415.40422 | Z190: 1.569465649 | AA190: 42415.38397 | AB190: 42415.39911 | AC190: 1.433587786 | AD190: Cls | AE190: 42415.23819 | AF190: 42415.39255 | AG190: 1.369465649 | AH190: 42415.38378 | AI190: 1.469465649 | AJ190: 42415.42607 | AK190: 1.925954198 | AL190: 42415.42607 | AM190: 1.925954198 | AN190: 42415.41831 | AO190: 1.925954198 | AP190: 42415.42443 | AQ190: 1.761832061 | AR190: 42415.38889 | AS190: 42415.41319 | AT190: 42415.38889 | AU190: 1.569465649 | AV190: 42415.39053 | AW190: 1.533587786 | AX190: 42415.38378 | AY190: 1.369465649 | AZ190: 42415.3803 | BA190: 1.333587786 | BB190: 42415.37418 | BC190: 1.433587786 | BD190: 42415.32904 | BE190: 1.177099237 | BF190: 42415.42361 | BH190: 42415.44097 | BI190: 42415.43056
A191: 0 | B191: =IF(Instructions!$C$2="BST",A191,0) -> 0 | C191: 2020-02-16T15:57:00 | D191: 2020-02-16 | F191: 2 | I191: 7 | K191: 42415.66458 | L191: 4.96 | M191: HW | N191: 0.4086956522 | O191: 15:57:00 | P191: 12:00:00 | Q191: 18:00:00 | R191: 0.3416666667 | S191: 42415.67509 | T191: 6.653913043 | U191: 42415.74106 | V191: 42415.67627 | W191: 6.413043478 | X191: 42415.62292 | Y191: 42415.64959 | Z191: 4.890434783 | AA191: 42415.63918 | AB191: 42415.64375 | AC191: 4.490434783 | AD191: Opn | AE191: 42415.52917 | AF191: 42415.64823 | AG191: 3.949565217 | AH191: 42415.62164 | AI191: 4.308695652 | AJ191: 42415.67737 | AK191: 6.553913043 | AL191: 42415.67966 | AM191: 6.494782609 | AN191: 42415.6739 | AO191: 6.313043478 | AP191: 42415.68076 | AQ191: 5.713043478 | AR191: 42415.65417 | AS191: 42415.675 | AT191: 42415.64248 | AU191: 4.490434783 | AV191: 42415.64248 | AW191: 4.290434783 | AX191: 42415.61936 | AY191: 4.031304348 | AZ191: 42415.61589 | BA191: 3.890434783 | BB191: 42415.61241 | BC191: 3.849565217 | BD191: 42415.55822 | BE191: 3.690434783 | BF191: 42415.65417 | BH191: 42415.70625 | BI191: 42415.69583
A192: 0 | B192: =IF(Instructions!$C$2="BST",A192,0) -> 0 | C192: 2020-02-16T22:22:00 | D192: 2020-02-16 | F192: 2 | I192: 7 | K192: 42415.93194 | L192: 1.62 | M192: LW | N192: 0.3053435115 | O192: 22:22:00 | P192: 17:00:00 | Q192: 23:00:00 | R192: 0.1055555556 | S192: 42415.95772 | T192: 1.980916031 | U192: 42416.02369 | V192: 42415.95442 | W192: 1.811450382 | X192: 42415.89028 | Y192: 42415.93414 | Z192: 1.633587786 | AA192: 42415.91933 | AB192: 42415.92994 | AC192: 1.503053435 | AD192: Cls | AE192: 42415.75833 | AF192: 42415.92701 | AG192: 1.433587786 | AH192: 42415.91732 | AI192: 1.533587786 | AJ192: 42415.95735 | AK192: 2.011450382 | AL192: 42415.95735 | AM192: 2.011450382 | AN192: 42415.95004 | AO192: 2.011450382 | AP192: 42415.95662 | AQ192: 1.841984733 | AR192: 42415.92153 | AS192: 42415.94583 | AT192: 42415.92153 | AU192: 1.633587786 | AV192: 42415.92226 | AW192: 1.603053435 | AX192: 42415.91732 | AY192: 1.433587786 | AZ192: 42415.91385 | BA192: 1.403053435 | BB192: 42415.90727 | BC192: 1.503053435 | BD192: 42415.86213 | BE192: 1.22519084 | BF192: 42415.95625 | BH192: 42415.97361 | BI192: 42415.96319
A193: 0 | B193: =IF(Instructions!$C$2="BST",A193,0) -> 0 | C193: 2020-02-17T04:38:00 | D193: 2020-02-17 | E193: 2020-02-17 | F193: 2 | G193: Feb | H193: 17 | I193: 1 | J193: Mon | K193: 42416.19306 | L193: 4.64 | M193: HW | N193: 0.1304347826 | O193: 04:38:00 | P193: 00:00:00 | Q193: 06:00:00 | R193: 0.2277777778 | S193: =IF($M193="HW",$K193+S$6+(S$5-S$6)*$R193,$K193+S$8+(S$7-S$8)*$R193) -> 42416.20237 | T193: 6.208695652 | U193: 42416.26834 | V193: 42416.20316 | W193: 5.995652174 | X193: =IF($M193="HW",$K193+X$6+(X$5-X$6)*$R193,$K193+X$8+(X$7-X$8)*$R193) -> 42416.15139 | Y193: 42416.17728 | Z193: 4.556521739 | AA193: 42416.16686 | AB193: 42416.17222 | AC193: 4.156521739 | AD193: Opn | AE193: 42416.05764 | AF193: 42416.17868 | AG193: 3.643478261 | AH193: 42416.1517 | AI193: 4.030434783 | AJ193: 42416.20505 | AK193: 6.108695652 | AL193: 42416.20774 | AM193: 6.02173913 | AN193: 42416.20158 | AO193: 5.895652174 | AP193: 42416.20963 | AQ193: 5.295652174 | AR193: =IF($M193="HW",$K193+AR$6+(AR$5-AR$6)*$R193,$K193+AR$8+(AR$7-AR$8)*$R193) -> 42416.18264 | AS193: 42416.20347 | AT193: 42416.17253 | AU193: 4.156521739 | AV193: 42416.17253 | AW193: 3.956521739 | AX193: 42416.14902 | AY193: 3.669565217 | AZ193: 42416.14554 | BA193: 3.556521739 | BB193: 42416.14207 | BC193: 3.543478261 | BD193: 42416.08511 | BE193: 3.356521739 | BF193: =IF($M193="HW",$K193+BF$6+(BF$5-BF$6)*$R193,$K193+BF$8+(BF$7-BF$8)*$R193) -> 42416.18264 | BH193: 42416.23472 | BI193: 42416.22431
A194: 0 | B194: =IF(Instructions!$C$2="BST",A194,0) -> 0 | C194: 2020-02-17T10:49:00 | D194: 2020-02-17 | E194: Mon | F194: 2 | I194: 1 | K194: 42416.45069 | L194: 1.83 | M194: LW | N194: 0.1450381679 | O194: 10:49:00 | P194: 05:00:00 | Q194: 11:00:00 | R194: 0.03055555556 | S194: 42416.47542 | T194: 2.253435115 | U194: 42416.5414 | V194: 42416.47447 | W194: 2.067938931 | X194: 42416.40903 | Y194: 42416.45133 | Z194: 1.825954198 | AA194: 42416.43964 | AB194: 42416.44765 | AC194: 1.711450382 | AD194: Cls | AE194: 42416.28681 | AF194: 42416.4468 | AG194: 1.625954198 | AH194: 42416.43659 | AI194: 1.725954198 | AJ194: 42416.47532 | AK194: 2.267938931 | AL194: 42416.47532 | AM194: 2.267938931 | AN194: 42416.46827 | AO194: 2.267938931 | AP194: 42416.47511 | AQ194: 2.082442748 | AR194: 42416.44028 | AS194: 42416.46458 | AT194: 42416.44028 | AU194: 1.825954198 | AV194: 42416.44049 | AW194: 1.811450382 | AX194: 42416.43659 | AY194: 1.625954198 | AZ194: 42416.43312 | BA194: 1.611450382 | BB194: 42416.42628 | BC194: 1.711450382 | BD194: 42416.38114 | BE194: 1.369465649 | BF194: 42416.475 | BH194: 42416.49236 | BI194: 42416.48194
A195: 0 | B195: =IF(Instructions!$C$2="BST",A195,0) -> 0 | C195: 2020-02-17T17:18:00 | D195: 2020-02-17 | F195: 2 | I195: 1 | K195: 42416.72083 | L195: 4.69 | M195: HW | N195: 0.1739130435 | O195: 17:18:00 | P195: 12:00:00 | Q195: 18:00:00 | R195: 0.1166666667 | S195: 42416.72899 | T195: 6.27826087 | U195: 42416.79497 | V195: 42416.7294 | W195: 6.060869565 | X195: 42416.67917 | Y195: 42416.70428 | Z195: 4.608695652 | AA195: 42416.69387 | AB195: 42416.7 | AC195: 4.208695652 | AD195: Opn | AE195: 42416.58542 | AF195: 42416.70839 | AG195: 3.691304348 | AH195: 42416.68102 | AI195: 4.073913043 | AJ195: 42416.73206 | AK195: 6.17826087 | AL195: 42416.73513 | AM195: 6.095652174 | AN195: 42416.72859 | AO195: 5.960869565 | AP195: 42416.73779 | AQ195: 5.360869565 | AR195: 42416.71042 | AS195: 42416.73125 | AT195: 42416.70185 | AU195: 4.208695652 | AV195: 42416.70185 | AW195: 4.008695652 | AX195: 42416.67795 | AY195: 3.726086957 | AZ195: 42416.67448 | BA195: 3.608695652 | BB195: 42416.67101 | BC195: 3.591304348 | BD195: 42416.61134 | BE195: 3.408695652 | BF195: 42416.71042 | BH195: 42416.7625 | BI195: 42416.75208
A196: 0 | B196: =IF(Instructions!$C$2="BST",A196,0) -> 0 | C196: 2020-02-17T23:40:00 | D196: 2020-02-17 | F196: 2 | I196: 1 | K196: 42416.98611 | L196: 1.86 | M196: LW | N196: 0.1221374046 | O196: 23:40:00 | P196: 1.208333333 | Q196: 23:00:00 | R196: 0.1111111111 | S196: 42417.01196 | T196: 2.292366412 | U196: 42417.07793 | V196: 42417.00849 | W196: 2.104580153 | X196: 42416.94444 | Y196: 42416.98843 | Z196: 1.853435115 | AA196: 42416.97338 | AB196: 42416.98418 | AC196: 1.741221374 | AD196: Cls | AE196: 42416.81458 | AF196: 42416.9811 | AG196: 1.653435115 | AH196: 42416.97145 | AI196: 1.753435115 | AJ196: 42417.01157 | AK196: 2.304580153 | AL196: 42417.01157 | AM196: 2.304580153 | AN196: 42417.00424 | AO196: 2.304580153 | AP196: 42417.0108 | AQ196: 2.116793893 | AR196: 42416.97569 | AS196: 42417 | AT196: 42416.97569 | AU196: 1.853435115 | AV196: 42416.97647 | AW196: 1.841221374 | AX196: 42416.97145 | AY196: 1.653435115 | AZ196: 42416.96798 | BA196: 1.641221374 | BB196: 42416.96142 | BC196: 1.741221374 | BD196: 42416.91628 | BE196: 1.390076336 | BF196: 42417.01042 | BH196: 42417.02778 | BI196: 42417.01736
A197: 0 | B197: =IF(Instructions!$C$2="BST",A197,0) -> 0 | C197: 2020-02-18T06:02:00 | D197: 2020-02-18 | E197: 2020-02-18 | F197: 2 | G197: Feb | H197: 18 | I197: 2 | J197: Tue | K197: 42417.25139 | L197: 4.56 | M197: HW | N197: 0.06086956522 | O197: 06:02:00 | P197: 12:00:00 | Q197: 06:00:00 | R197: 0.005555555545 | S197: 42417.25839 | T197: 6.097391304 | U197: 42417.32436 | V197: 42417.25841 | W197: 5.891304348 | X197: 42417.20972 | Y197: 42417.23407 | Z197: 4.473043478 | AA197: 42417.22365 | AB197: 42417.23056 | AC197: 4.073043478 | AD197: Opn | AE197: 42417.11597 | AF197: 42417.24088 | AG197: 3.566956522 | AH197: 42417.21312 | AI197: 3.960869565 | AJ197: 42417.26184 | AK197: 5.997391304 | AL197: 42417.2653 | AM197: 5.903478261 | AN197: 42417.25837 | AO197: 5.791304348 | AP197: 42417.26873 | AQ197: 5.191304348 | AR197: 42417.24097 | AS197: 42417.26181 | AT197: 42417.23395 | AU197: 4.073043478 | AV197: 42417.23395 | AW197: 3.873043478 | AX197: 42417.20966 | AY197: 3.579130435 | AZ197: 42417.20619 | BA197: 3.473043478 | BB197: 42417.20272 | BC197: 3.466956522 | BD197: 42417.14035 | BE197: 3.273043478 | BF197: 42417.24097 | BH197: 42417.29306 | BI197: 42417.28264
A198: 0 | B198: =IF(Instructions!$C$2="BST",A198,0) -> 0 | C198: 2020-02-18T12:15:00 | D198: 2020-02-18 | E198: Tue | F198: 2 | I198: 2 | K198: 42417.51042 | L198: 1.92 | M198: LW | N198: 0.07633587786 | O198: 12:15:00 | P198: 17:00:00 | Q198: 11:00:00 | R198: 0.2083333333 | S198: 42417.53762 | T198: 2.370229008 | U198: 42417.60359 | V198: 42417.53111 | W198: 2.177862595 | X198: 42417.46875 | Y198: 42417.51476 | Z198: 1.908396947 | AA198: 42417.49566 | AB198: 42417.50984 | AC198: 1.800763359 | AD198: Cls | AE198: 42417.34514 | AF198: 42417.50405 | AG198: 1.708396947 | AH198: 42417.49508 | AI198: 1.808396947 | AJ198: 42417.53689 | AK198: 2.377862595 | AL198: 42417.53689 | AM198: 2.377862595 | AN198: 42417.52922 | AO198: 2.377862595 | AP198: 42417.53545 | AQ198: 2.185496183 | AR198: 42417.5 | AS198: 42417.52431 | AT198: 42417.5 | AU198: 1.908396947 | AV198: 42417.50145 | AW198: 1.900763359 | AX198: 42417.49508 | AY198: 1.708396947 | AZ198: 42417.49161 | BA198: 1.700763359 | BB198: 42417.48539 | BC198: 1.800763359 | BD198: 42417.44025 | BE198: 1.43129771 | BF198: 42417.53472 | BH198: 42417.55208 | BI198: 42417.54167
A199: 0 | B199: =IF(Instructions!$C$2="BST",A199,0) -> 0 | C199: 2020-02-18T18:48:00 | D199: 2020-02-18 | F199: 2 | I199: 2 | K199: 42417.78333 | L199: 4.63 | M199: HW | N199: 0.1217391304 | O199: 18:48:00 | P199: 1 | Q199: 18:00:00 | R199: 0.1333333333 | S199: 42417.79167 | T199: 6.194782609 | U199: 42417.85764 | V199: 42417.79213 | W199: 5.982608696 | X199: 42417.74167 | Y199: 42417.7669 | Z199: 4.546086957 | AA199: 42417.75648 | AB199: 42417.7625 | AC199: 4.146086957 | AD199: Opn | AE199: 42417.64792 | AF199: 42417.7706 | AG199: 3.633913043 | AH199: 42417.74329 | AI199: 4.02173913 | AJ199: 42417.79468 | AK199: 6.094782609 | AL199: 42417.79769 | AM199: 6.006956522 | AN199: 42417.7912 | AO199: 5.882608696 | AP199: 42417.80023 | AQ199: 5.282608696 | AR199: 42417.77292 | AS199: 42417.79375 | AT199: 42417.76412 | AU199: 4.146086957 | AV199: 42417.76412 | AW199: 3.946086957 | AX199: 42417.74028 | AY199: 3.65826087 | AZ199: 42417.73681 | BA199: 3.546086957 | BB199: 42417.73333 | BC199: 3.533913043 | BD199: 42417.67407 | BE199: 3.346086957 | BF199: 42417.77292 | BH199: 42417.825 | BI199: 42417.81458
A200: 0 | B200: =IF(Instructions!$C$2="BST",A200,0) -> 0 | C200: 2020-02-19T00:58:00 | D200: 2020-02-19 | E200: 2020-02-19 | F200: 2 | G200: Feb | H200: 19 | I200: 3 | J200: Wed | K200: 42418.04028 | L200: 1.88 | M200: LW | N200: 0.106870229 | O200: 00:58:00 | P200: 05:00:00 | Q200: -0.04166666667 | R200: 0.3277777778 | S200: 42418.06914 | T200: 2.318320611 | U200: 42418.13511 | V200: 42418.05889 | W200: 2.129007634 | X200: 42417.99861 | Y200: 42418.04711 | Z200: 1.871755725 | AA200: 42418.02303 | AB200: 42418.04136 | AC200: 1.761068702 | AD200: Cls | AE200: 42417.87708 | AF200: 42418.03225 | AG200: 1.671755725 | AH200: 42418.02411 | AI200: 1.771755725 | AJ200: 42418.068 | AK200: 2.329007634 | AL200: 42418.068 | AM200: 2.329007634 | AN200: 42418.05992 | AO200: 2.329007634 | AP200: 42418.06572 | AQ200: 2.139694656 | AR200: 42418.02986 | AS200: 42418.05417 | AT200: 42418.02986 | AU200: 1.871755725 | AV200: 42418.03214 | AW200: 1.861068702 | AX200: 42418.02411 | AY200: 1.671755725 | AZ200: 42418.02064 | BA200: 1.661068702 | BB200: 42418.01483 | BC200: 1.761068702 | BD200: 42417.9697 | BE200: 1.403816794 | BF200: 42418.06458 | BH200: 42418.08194 | BI200: 42418.07153
... 1225 more rows
